Workbook

Sheet Data Summary
A1: Report Name
A2: Table 1 : SEBI Registered Market Intermediaries/Market Infrastructure Institutions
A3: Table 2 : Company-wise Capital Raised through Public and Rights Issues (Equity) during the month
A4: Table 3 : Open Offers Closed under SAST Regulations (during the month)
A5: Table 4 : Substantial Acquisition of Shares and Takeovers
A6: Table 5 : Capital Raised from the Primary Market through Public and Rights Issues
A7: Table 6 : Issues Listed on SME Platform
A8: Table 7 : Industry-wise Classification of Capital Raised through Public and Rights Issues (Equity)
A9: Table 8 : Sector-wise and Region-wise Distribution of Capital Mobilised through Public and Rights Issues (Equity)
A10: Table 9 : Size-wise Classification of Capital Raised through Public and Rights Issues (Equity)
A11: Table 10 : Capital Raised by Listed Companies from the Primary Market through QIPs
A12: Table 11 : Preferential Allotments Listed at Stock Exchanges
A13: Table 12 : Private Placement of Corporate Debt Reported to Stock Exchanges
A14: Table 13 : Trading in the Corporate Debt Market
A15: Table 14 : Ratings Assigned for Long-term Corporate Debt Securities (Maturity ≥ 1 year)
A16: Table 15 : Review of Accepted Ratings of Corporate Debt Securities (Maturity ≥ 1 year)
A17: Table 16 : Distribution of Turnover on Cash Segments of Stock Exchanges (₹crore)
A18: Table 17 : Trends in Cash Segment of BSE
A19: Table 18 : Trends in Cash Segment of NSE
A20: Table 19 : Trends in Cash Segment of MSEI
A21: Table 20 : City-wise Distribution of Turnover on Cash Segment of Exchanges
A22: Table 21 : Category-wise Share of Turnover in Cash Segment of BSE
A23: Table 22 : Category-wise Share of Turnover in Cash Segment of NSE
A24: Table 23 : Category-wise Share of Turnover in Cash Segment of MSEI
A25: Table 24 : Component Stocks: S&P BSE Sensex
A26: Table 25 : Component Stocks: Nifty 50 Index
A27: Table 26 : Component Stocks: SX40 Index during
A28: Table 27 : Advances/Declines in Cash Segment of Exchanges
A29: Table 28 : Trading Frequency in Cash Segment of of Exchanges
A30: Table 29 : Daily Volatility of Major Indices
A31: Table 30 : Percentage Share of Top ‘N’ Securities/Members in Turnover of Cash Segment of Exchanges
A32: Table 31 : Settlement Statistics for Cash Segment of ICCL
A33: Table 32 : Settlement Statistics for Cash Segment of NCL
A34: Table 33 : Settlement Statistics for Cash Segment of MCCIL
A35: Table 34 : Trends in Equity Derivatives Segment at BSE (Turnover in Notional Value)
A36: Table 35 : Trends in Equity Derivatives Segment at NSE (Turnover in Notional Value)
A37: Table 36 : Settlement Statistics in Equity Derivatives Segment
A38: Table 37 : Category-wise Share of Turnover & Open Interest in Equity Derivative Segment of BSE
A39: Table 38 : Category-wise Share of Turnover & Open Interest in Equity Derivative Segment of NSE
A40: Table 39 : Instrument-wise Turnover in Index Derivatives at BSE
A41: Table 40 : Instrument-wise Turnover in Index Derivatives at NSE
A42: Table 41 : Trends in Currency Derivatives Segment at BSE
A43: Table 42 : Trends in Currency Derivatives Segment at NSE
A44: Table 43 : Trends in Currency Derivatives Segment at MSEI
A45: Table 44 : Settlement Statistics of Currency Derivatives Segment
A46: Table 45 : Instrument-wise Turnover in Currency Derivative Segment of BSE
A47: Table 46 : Instrument-wise Turnover in Currency Derivatives of NSE
A48: Table 47 : Instrument-wise Turnover in Currency Derivative Segment of MSEI
A49: Table 48 : Maturity-wise Turnover in Currency Derivative Segment of BSE
A50: Table 49 : Maturity-wise Turnover in Currency Derivative Segment of NSE
A51: Table 50 : Maturity-wise Turnover in Currency Derivative Segment of MSEI
A52: Table 51 : Trading Statistics in Interest Rate Derivatives Segment
A53: Table 52 : Settlement Statistics in Interest Rate Derivatives Segment
A54: Table 53 : Trends in Foreign Portfolio Investment
A55: Table 54 : Notional Value of Offshore Derivative Instruments (ODIs) compared to Assets Under Custody (AUC) of FPIs/Deemed FPIs
A56: Table 55 : Assets under the Custody of Custodians
A57: Table 56 : Trends in Resource Mobilization by Mutual Funds
A58: Table 57 : Status of Mutual Funds Industry in India
A59: Table 58 : Trends in Transactions on Stock Exchanges by Mutual Funds
A60: Table 59 : Assets Managed by Portfolio Managers
A61: Table 60 : Progress Report of NSDL & CDSL for Listed Companies
A62: Table 61 : Progress of Dematerialisation at NSDL and CDSL (Listed and Unlisted Companies)
A63: Table 62 : Depository Statistics
A64: Table 63 : Number of Commodities Permitted and Traded at Exchanges
A65: Table 64 : Trends in Commodity Indices
A66: Table 65 : Trends in Commodity Derivatives at MCX
A67: Table 66 : Trends in Commodity Derivatives at NCDEX
A68: Table 67 : Trends in Commodity Derivatives at ICEX
A69: Table 68 : Trends in Commodity Derivatives Segment at BSE
A70: Table 69 : Trends in Commodity Derivatives Segment at NSE
A71: Table 70 : Participant-wise percentage Share of Turnover in Commodity Derivatives at various Exchanges
A72: Table 71 : Commodity-wise Turnover and Trading Volume at MCX
A73: Table 72 : Commodity-wise Turnover and Trading Volume at NCDEX
A74: Table 73 : Commodity-wise Turnover and Trading Volume at ICEX, BSE and NSE
A75: Table 74 : Macro Economic Indicators
A78: Note- No. - Number

Sheet 1
A1: Table 1: SEBI Recognised/Registered Intermediaries / Market Infrastructure Institutions
A2: Particular | B2: 2019-20 | C2: 2020-21$
A3: Stock Exchanges | B3: 9 | C3: 7
A4: of that have:
A5: Cash Segment # | B5: 3 | C5: 3
A6: Equity Derivatives Segment # | B6: 3 | C6: 3
A7: Currency Derivatives Segment# | B7: 3 | C7: 3
A8: Commodity Derivatives Segment# | B8: 5 | C8: 5
A9: International Exchange (IFSC)#% | B9: 2 | C9: 0
A10: Brokers (Cash Segment) | B10: 4249 | C10: 4591
A11: Brokers (Equity Derivatives Segment) | B11: 3460 | C11: 3456
A12: Brokers (Currency Derivatives Segment) | B12: 2708 | C12: 2683
A13: Brokers (Debt Segment) | B13: 378 | C13: 415
A14: Brokers (Commodity Derivatives Segment) | B14: 2257 | C14: 2227
A15: Corporate Brokers(Cash Segment) | B15: 3231 | C15: 3535
A16: Foreign Portfolio Investors (FPIs) | B16: 9679 | C16: 9846
A17: Custodians | B17: 19 | C17: 19
A18: Depositories | B18: 2 | C18: 2
A19: Depository Participants (NSDL) | B19: 285 | C19: 281
A20: Depository Participants (CDSL) | B20: 614 | C20: 611
A21: Merchant Bankers | B21: 215 | C21: 212
A22: Bankers to an Issue | B22: 66 | C22: 64
A23: Underwriters | B23: 2 | C23: 2
A24: Debenture Trustees | B24: 31 | C24: 29
A25: Credit Rating Agencies | B25: 7 | C25: 7
A26: KYC Registration Agencies (KRA) | B26: 5 | C26: 5
A27: Registrars to an Issue & Share Transfer Agents | B27: 80 | C27: 78
A28: Venture Capital Funds | B28: 189 | C28: 188
A29: Foreign Venture Capital Investors | B29: 251 | C29: 255
A30: Alternative Investment Funds | B30: 649 | C30: 706
A31: Portfolio Managers | B31: 351 | C31: 356
A32: Mutual Funds | B32: 47 | C32: 49
A33: Investment Advisors | B33: 1291 | C33: 1338
A34: Research Analysts | B34: 680 | C34: 705
A35: Infrastructure Investment Trusts (InvITs) | B35: 10 | C35: 11
A36: Collective Investment Schemes | B36: 1 | C36: 1
A37: Approved Intermediaries (Stock Lending Schemes) | B37: 2 | C37: 2
A38: STP (Centralised Hub) | B38: 1 | C38: 1
A39: STP Service Providers | B39: 3 | C39: 3
A40: Notes:
A41: $ indicates as on November 30, 2020
A42: #% IFSC are now under regulatory jurisdiction of International Financial Services Centres Authority (IFSCA) w.e.f. October 01, 2020
A43: # SEBI has granted recognition for carrying out operations in the respective segment.
A44: Source: SEBI, NSDL.

Sheet 2
A1: Table 2: Company-wise Capital Raised through Public and Rights Issues (Equity) during the month
A2: Sl.No. | B2: Name of the Issuer/Company | C2: Date of Listing | D2: Type of Issue | E2: Type of Instrument | F2: No. of Shares Issued | G2: Face Value (₹ ) | H2: Premium Value (₹ ) | I2: Issue Price (₹ ) | J2: Size of Issue ( ₹ crore)
A3: 1 | B3: Equitas Small Finance Bank Limited | C3: 2020-11-02 | D3: BSE/ NSE | E3: Equity | F3: 156848484 | G3: 10 | H3: =I3-G3 -> 23 | I3: 33 | J3: 517.6
A4: 2 | B4: Gland Pharma Limited | C4: 2020-11-20 | D4: BSE/ NSE | E4: Equity | F4: 43196968 | G4: 1 | H4: =I4-G4 -> 1499 | I4: 1500 | J4: 6479.5452
A5: 3 | B5: Shine Fashions (India) Limited | C5: 2020-11-02 | D5: BSE SME IPO | E5: Equity | F5: 399000 | G5: 10 | H5: 30 | I5: 40 | J5: 1.59
A6: 4 | B6: Mold-Tek Packaging Limited*** | C6: 2020-11-27 | D6: BSE/ NSE | E6: Equity | F6: =555330+3331980 -> 3887310 | G6: 5 | H6: 175 | I6: 180 | J6: 71.3
A7: Notes: All the issues are compiled from the Prospectus of Issuer Companies filed with SEBI.
A8: From April, 2020 onwards the data is being prepared based on the listing date of the issues as against earlier practice of preparing it based on the closing date.
A9: ***Shares issued by the Company are partly paid up but the information is provided considering the same as fully paid up & figures also includes 33,31,980 warrants issued under Rights Issue at the Issue Price of ₹184.
A10: Source: SEBI.

Sheet 3
A1: Table 3: Open Offers Closed under SAST Regulations (during November 2020)
A2: Sl.No | B2: Target Company | C2: Acquirer | D2: Offer Opening Date | E2: Offer Closing Date | F2: Offer Size | H2: Offer Price (₹ ) per share | I2: Offer Size ( ₹ crore)
F3: No. of Shares | G3: as per cent of Equity Capital
A4: Nil | B4: Nil | C4: Nil | D4: Nil | E4: Nil | F4: Nil | G4: Nil | H4: Nil | I4: Nil
A5: Source: SEBI.

Sheet 4
A1: Table 4: Substantial Acquisition of Shares and Takeovers
A2: Year / Month | B2: Offers
B3: Objectives | H3: Total
B4: Change in Control of Management | D4: Consolidation of Holdings | F4: Substantial Acquisition | H4: No. of Offers | I4: Amount ( ₹ crore)
B5: No. of Offers | C5: Amount ( ₹ crore) | D5: No. of Offers | E5: Amount ( ₹ crore) | F5: No. of Offers | G5: Amount ( ₹ crore)
A6: 2019-20 | B6: 49 | C6: 16401.64 | D6: 4 | E6: 3641.83 | F6: 3 | G6: 478.38 | H6: 56 | I6: 20521.85
A7: 2020-21$ | B7: =SUM(B8:B15) -> 26 | C7: =SUM(C8:C15) -> 8958.6 | D7: 2 | E7: 9.87 | F7: 2 | G7: 4.08 | H7: 30 | I7: 8972.55
A8: Apr-20 | B8: 2 | C8: 1.36 | D8: 1 | E8: 2.36 | F8: 0 | G8: 0 | H8: 3 | I8: 3.72
A9: May-20 | B9: 0 | C9: 0 | D9: 0 | E9: 0 | F9: 0 | G9: 0 | H9: 0 | I9: 0
A10: Jun-20 | B10: 4 | C10: 1088.11 | D10: 0 | E10: 0 | F10: 0 | G10: 0 | H10: 4 | I10: 1088.11
A11: Jul-20 | B11: 2 | C11: 528.16 | D11: 0 | E11: 0 | F11: 0 | G11: 0 | H11: 2 | I11: 528.16
A12: Aug-20 | B12: 7 | C12: 3852.44 | D12: 1 | E12: 7.51 | F12: 1 | G12: 1.72 | H12: 9 | I12: 3861.67
A13: 2020-09-01 | B13: 5 | C13: 3008.03 | D13: 0 | E13: 0 | F13: 1 | G13: 2.36 | H13: =B13+D13+F13 -> 6 | I13: =C13+E13+G13 -> 3010.39
A14: 2020-10-01 | B14: 6 | C14: 480.5 | D14: 0 | E14: 0 | F14: 0 | G14: 0 | H14: 6 | I14: 480.5
A15: Nov-20 | B15: 0 | C15: 0 | D15: 0 | E15: 0 | F15: 0 | G15: 0 | H15: 0 | I15: 0
A16: Note: $ indicates as on November 30, 2020
A17: Source: SEBI.

Sheet 5
A1: Table 5: Capital Raised from the Primary Market through Public and Rights Issues
A2: Year / Month | B2: Total (Equity + Debt) | D2: Equity Issue | P2: Debt Issue
D3: Category-wise | H3: Issue-Type | L3: Instrument-wise | P3: No. of issues | Q3: Amount ( ₹ crore)
D4: Public | F4: Rights | H4: Listed | J4: IPOs | L4: At Par | N4: At Premium
B5: No. of issues | C5: Amount ( ₹ crore) | D5: No. of issues | E5: Amount ( ₹ crore) | F5: No. of issues | G5: Amount ( ₹ crore) | H5: No. of issues | I5: Amount ( ₹ crore) | J5: No. of issues | K5: Amount ( ₹ crore) | L5: No. of issues | M5: Amount ( ₹ crore) | N5: No. of issues | O5: Amount ( ₹ crore)
A6: 2019-20 | B6: =D6+F6+P6 -> 110 | C6: 91948.93544 | D6: 60 | E6: 21322.87377 | F6: 16 | G6: 55642.04166 | H6: 19 | I6: 55679.27166 | J6: 57 | K6: 21285.65 | L6: 2 | M6: 8.74 | N6: 74 | O6: 76956.18166 | P6: 34 | Q6: 14984.02
A7: 2020-21$ | B7: =D7+F7+P7 -> 55 | C7: 94212.19075 | D7: =SUM(D8:D15) -> 30 | E7: =SUM(E8:E15) -> 29733.40127 | F7: 15 | G7: 60607.73948 | H7: 16 | I7: 75607.73948 | J7: 29 | K7: 14733.40127 | L7: 0 | M7: 0 | N7: 45 | O7: 90341.14445 | P7: 10 | Q7: 3871.05
A8: 2020-04-01 | B8: 4 | C8: 116.31 | D8: 3 | E8: 13.92 | F8: 0 | G8: 0 | H8: 0 | I8: 0 | J8: 3 | K8: 13.92 | L8: 0 | M8: 0 | N8: 3 | O8: 13.92 | P8: 1 | Q8: 102.39
A9: 2020-05-01 | B9: 1 | C9: 297.25 | D9: 0 | E9: 0 | F9: 0 | G9: 0 | H9: 0 | I9: 0 | J9: 0 | K9: 0 | L9: 0 | M9: 0 | N9: 0 | O9: 0 | P9: 1 | Q9: 297.25
A10: 2020-06-01 | B10: =D10+F10+P10 -> 4 | C10: =E10+G10+Q10 -> 53448.84 | D10: 1 | E10: 2.46 | F10: 1 | G10: 53124.2 | H10: 1 | I10: 53124.2 | J10: 1 | K10: 2.46 | L10: 0 | M10: 0 | N10: 2 | O10: =E10+G10 -> 53126.66 | P10: 2 | Q10: 322.18
A11: 2020-07-01 | B11: 6 | C11: 16070.56998 | D11: 4 | E11: 15510.77998 | F11: 1 | G11: 399.79 | H11: 2 | I11: 15399.79 | J11: 3 | K11: 510.779975 | L11: 0 | M11: 0 | N11: 5 | O11: 15910.56998 | P11: 1 | Q11: 160
A12: 2020-08-01 | B12: =D12+F12+P12 -> 9 | C12: 6107.75 | D12: 2 | E12: 11.45 | F12: 7 | G12: 6096.3 | H12: 7 | I12: 6096.3 | J12: 2 | K12: 11.45 | L12: 0 | M12: 0 | N12: 9 | O12: 6107.75 | P12: 0 | Q12: 0
A13: 2020-09-01 | B13: 6 | C13: 1821.294477 | D13: 3 | E13: 1308.905 | F13: 2 | G13: 362.689477 | H13: 2 | I13: 362.689477 | J13: 3 | K13: 1308.905 | L13: 0 | M13: 0 | N13: 5 | O13: 1671.594477 | P13: 1 | Q13: 149.7
A14: 2020-10-01 | B14: 20 | C14: 9137.6063 | D14: 14 | E14: 5887.1463 | F14: 3 | G14: 553.46 | H14: 3 | I14: 553.46 | J14: 14 | K14: 5887.1463 | L14: 0 | M14: 0 | N14: 17 | O14: 6440.61 | P14: 3 | Q14: =300+397+2000 -> 2697
A15: 2020-11-01 | B15: =D15+F15+P15 -> 5 | C15: =E15+G15+Q15 -> 7212.57 | D15: 3 | E15: 6998.74 | F15: 1 | G15: 71.3 | H15: 1 | I15: 71.3 | J15: 3 | K15: 6998.74 | L15: 0 | M15: 0 | N15: 4 | O15: 7070.04 | P15: 1 | Q15: 142.53
A16: Notes:
A17: 1. Equity public issues also includes issues listed on SME platform.
A18: 2. From April, 2020 onwards the data of equity is being prepared based on the listing date of the issues as against earlier practice of preparing it based on the closing date.
A19: 3. The data of Debt is being prepared based on closing date.
A20: $ indicates as on November 30, 2020
A21: Source: SEBI.

Sheet 6
A1: Table 6: Issues Listed on SME Platform
A2: Year/Month | B2: No. of issue | C2: Amount ( ₹ crore)
A3: 2019-20 | B3: 46 | C3: 495.3828
A4: 2020-21$ | B4: =SUM(B5:B12) -> 18 | C4: =SUM(C5:C12) -> 113.095
A5: 2020-04-01 | B5: 3 | C5: 13.92
A6: 2020-05-01 | B6: 0 | C6: 0
A7: 2020-06-01 | B7: 1 | C7: 2.46
A8: 2020-07-01 | B8: 2 | C8: 14.53
A9: 2020-08-01 | B9: 2 | C9: 11.45
A10: 2020-09-01 | B10: 1 | C10: 6.885
A11: 2020-10-01 | B11: 8 | C11: 62.26
A12: 2020-11-01 | B12: 1 | C12: 1.59
A13: Notes -
A14: From April, 2020 onwards the data of equity is being prepared based on the listing date of the issues as against earlier practice of preparing it based on the closing date.
A15: $ indicates as on November 30, 2020
A16: Source: SEBI

Sheet 7
A1: Table 7: Industry-wise Classification of Capital Raised through Public and Rights Issues (Equity)
A2: Industry | B2: 2019-20 | D2: 2020-21$ | F2: 2020-11-01
B3: No. of issues | C3: Amount ( ₹ crore) | D3: No. of issues | E3: Amount ( ₹ crore) | F3: No. of issues | G3: Amount ( ₹ crore)
A4: Airlines | B4: 0 | C4: 0 | D4: 0 | E4: 0 | F4: 0 | G4: 0
A5: Automobiles | B5: 0 | C5: 0 | D5: 0 | E5: 0 | F5: 0 | G5: 0
A6: Banks/FIs | B6: 3 | C6: 2345.476223 | D6: 2 | E6: 15119.896 | F6: 0 | G6: 0
A7: Cement/ Constructions | B7: 5 | C7: 274.9363706 | D7: 3 | E7: 22.65 | F7: 0 | G7: 0
A8: Chemical | B8: 4 | C8: 152.655882 | D8: 3 | E8: 993.17 | F8: 0 | G8: 0
A9: Consumer Services | B9: 3 | C9: 66.1104 | D9: 4 | E9: 487.06 | F9: 0 | G9: 0
A10: Electronic Equipments/ Products | B10: 5 | C10: 4217.97356 | D10: 1 | E10: 6.89 | F10: 0 | G10: 0
A11: Engineering | B11: 5 | C11: 1992.097451 | D11: 3 | E11: 515.4 | F11: 0 | G11: 0
A12: Entertainment | B12: 1 | C12: 2.2692 | D12: 2 | E12: 303.49 | F12: 0 | G12: 0
A13: Finance | B13: 3 | C13: 10446.40757 | D13: 4 | E13: 5519.6 | F13: 1 | G13: 517.6
A14: Food processing | B14: 2 | C14: 64.08 | D14: 0 | E14: 0 | F14: 0 | G14: 0
A15: Healthcare | B15: 7 | C15: 4701.94867 | D15: 1 | E15: 6479.55 | F15: 1 | G15: 6479.55
A16: Hotels | B16: 0 | C16: 0 | D16: 1 | E16: 349.66 | F16: 0 | G16: 0
A17: Info Tech | B17: 4 | C17: 484.0077222 | D17: 6 | E17: 1336.25 | F17: 0 | G17: 0
A18: Misc | B18: 0 | C18: 0 | D18: 7 | E18: 5044.24 | F18: 1 | G18: 71.3
A19: Roads & Highways | B19: 0 | C19: 0 | D19: 1 | E19: 4.55 | F19: 0 | G19: 0
A20: Telecom | B20: 1 | C20: 500 | D20: 0 | E20: 0 | F20: 0 | G20: 0
A21: Textile | B21: 0 | C21: 0 | D21: 2 | E21: 996.71 | F21: 1 | G21: 1.59
A22: Plastic | B22: 2 | C22: 8.9792 | D22: 2 | E22: 10.55 | F22: 0 | G22: 0
A23: Power | B23: 0 | C23: 0 | D23: 0 | E23: 0 | F23: 0 | G23: 0
A24: Printing | B24: 3 | C24: 49969.65765 | D24: 1 | E24: 2.4 | F24: 0 | G24: 0
A25: Oil & Natural Gas | B25: 1 | C25: 23.1576345 | D25: 2 | E25: 53149.07 | F25: 0 | G25: 0
A26: Insurance | B26: 27 | C26: 1715.155245 | D26: 0 | E26: 0 | F26: 0 | G26: 0
A27: Total | B27: 76 | C27: 76964.91278 | D27: =SUM(D4:D26) -> 45 | E27: 90341.136 | F27: =SUM(F4:F26) -> 4 | G27: =SUM(G4:G26) -> 7070.04
A28: Notes - From April, 2020 onwards the data of equity is being prepared based on the listing date of the issues as against earlier practice of preparing it based on the closing date.
A29: $ indicates as on November 30, 2020
A30: Source: SEBI.

Sheet 8
A1: Table 8: Sector-wise and Region-wise Distribution of Capital Mobilised through Public and Rights Issues (Equity)
A2: Year / Month | B2: Total | D2: Sector-wise | H2: Region-wise
D3: Private | F3: Public | H3: Northern | J3: Eastern | L3: Western | N3: Southern | P3: Central
B4: No. of issues | C4: Amount ( ₹ crore) | D4: No. of issues | E4: Amount ( ₹ crore) | F4: No. of issues | G4: Amount ( ₹ crore) | H4: No. of issues | I4: Amount ( ₹ crore) | J4: No. of issues | K4: Amount ( ₹ crore) | L4: No. of issues | M4: Amount ( ₹ crore) | N4: No. of issues | O4: Amount ( ₹ crore) | P4: No. of issues | Q4: Amount ( ₹ crore)
A5: 2019-20 | B5: =D5+F5 -> 76 | C5: =E5+G5 -> 76964.92166 | D5: 74 | E5: 75849.85166 | F5: 2 | G5: 1115.07 | H5: 17 | I5: 39089.74361 | J5: 0 | K5: 0 | L5: 51 | M5: 34666.08 | N5: 8 | O5: 3209.099586 | P5: 0 | Q5: 0
A6: 2020-21$ | B6: =SUM(B7:B14) -> 45 | C6: =SUM(C7:C14) -> 90341.14445 | D6: 44 | E6: 89897.45445 | F6: 1 | G6: 443.69 | H6: 6 | I6: 681.509477 | J6: 2 | K6: 429.19 | L6: 29 | M6: 77639.60497 | N6: 8 | O6: 11590.84 | P6: 0 | Q6: 0
A7: 2020-04-01 | B7: 3 | C7: 13.92 | D7: 3 | E7: 13.92 | F7: 0 | G7: 0 | H7: 0 | I7: 0 | J7: 0 | K7: 0 | L7: 3 | M7: 13.92 | N7: 0 | O7: 0 | P7: 0 | Q7: 0
A8: 2020-05-01 | B8: 0 | C8: 0 | D8: 0 | E8: 0 | F8: 0 | G8: 0 | H8: 0 | I8: 0 | J8: 0 | K8: 0 | L8: 0 | M8: 0 | N8: 0 | O8: 0 | P8: 0 | Q8: 0
A9: 2020-06-01 | B9: 2 | C9: =E9+G9 -> 53126.66 | D9: 2 | E9: 53126.66 | F9: 0 | G9: 0 | H9: 0 | I9: 0 | J9: 0 | K9: 0 | L9: 2 | M9: 53126.66 | N9: 0 | O9: 0 | P9: 0 | Q9: 0
A10: 2020-07-01 | B10: 5 | C10: 15910.56998 | D10: 5 | E10: 15910.56998 | F10: 0 | G10: 0 | H10: 2 | I10: 14.53 | J10: 0 | K10: 0 | L10: 3 | M10: 15896.03998 | N10: 0 | O10: 0 | P10: 0 | Q10: 0
A11: 2020-08-01 | B11: 9 | C11: =E11+G11 -> 6107.75 | D11: 9 | E11: 6107.75 | F11: 0 | G11: 0 | H11: 1 | I11: 299.79 | J11: 1 | K11: 79.53 | L11: 5 | M11: 4211.37 | N11: 2 | O11: 1517.06 | P11: 0 | Q11: 0
A12: 2020-09-01 | B12: 5 | C12: 1671.594477 | D12: 5 | E12: 1671.594477 | F12: 0 | G12: 0 | H12: 2 | I12: 362.689477 | J12: 0 | K12: 0 | L12: 2 | M12: 606.885 | N12: 1 | O12: 702.02 | P12: 0 | Q12: 0
A13: 2020-10-01 | B13: =D13+F13 -> 17 | C13: =E13+G13 -> 6440.61 | D13: 16 | E13: 5996.92 | F13: 1 | G13: 443.69 | H13: 1 | I13: 4.5 | J13: 1 | K13: 349.66 | L13: 13 | M13: 3783.14 | N13: 2 | O13: 2303.31 | P13: 0 | Q13: 0
A14: 2020-11-01 | B14: =D14+F14 -> 4 | C14: =E14+G14 -> 7070.04 | D14: 4 | E14: 7070.04 | F14: 0 | G14: 0 | H14: 0 | I14: 0 | J14: 0 | K14: 0 | L14: 1 | M14: 1.59 | N14: 3 | O14: 7068.45 | P14: 0 | Q14: 0
A15: Notes - From April, 2020 onwards the data of equity is being prepared based on the listing date of the issues as against earlier practice of preparing it based on the closing date.
A16: $ indicates as on November 30, 2020
A17: Source: SEBI.

Sheet 9
A1: Table 9: Size-wise Classification of Capital Raised through Public and Rights Issues (Equity)
A2: Year / Month | B2: Total | D2: < ₹ 5 crore | F2: ≥ ₹5crore - < ₹10crore | H2: ≥₹ 10 crore - < ₹50 crore | J2: ≥₹ 50 crore - < ₹100 crore | L2: ≥ ₹100 crore - < ₹500 crore | N2: >=₹500 crore
B3: No. of issues | C3: Amount ( ₹ crore) | D3: No. of issues | E3: Amount ( ₹ crore) | F3: No. of issues | G3: Amount ( ₹ crore) | H3: No. of issues | I3: Amount ( ₹ crore) | J3: No. of issues | K3: Amount ( ₹ crore) | L3: No. of issues | M3: Amount ( ₹ crore) | N3: No. of issues | O3: Amount ( ₹ crore)
A4: 2019-20 | B4: 76 | C4: 76964.91166 | D4: 19 | E4: 59.28 | F4: 12 | G4: 89.88 | H4: 24 | I4: 481.426867 | J4: 1 | K4: 60 | L4: 8 | M4: 2606.62369 | N4: 12 | O4: 73667.70111
A5: 2020-21$ | B5: =SUM(B6:B13) -> 45 | C5: =SUM(C6:C13) -> 90341.14497 | D5: 10 | E5: 36.34 | F5: 4 | G5: 30.155 | H5: 6 | I5: 96.35 | J5: 3 | K5: 212.03 | L5: 10 | M5: 2964.769975 | N5: 12 | O5: 87001.5
A6: 2020-04-01 | B6: =D6+H6+L6+N6+F6+J6 -> 3 | C6: 13.92 | D6: 2 | E6: 5.64 | F6: 1 | G6: 8.28 | H6: 0 | I6: 0 | J6: 0 | K6: 0 | L6: 0 | M6: 0 | N6: 0 | O6: 0
A7: 2020-05-01 | B7: 0 | C7: 0 | D7: 0 | E7: 0 | F7: 0 | G7: 0 | H7: 0 | I7: 0 | J7: 0 | K7: 0 | L7: 0 | M7: 0 | N7: 0 | O7: 0
A8: 2020-06-01 | B8: 2 | C8: 53126.66 | D8: 1 | E8: 2.46 | F8: 0 | G8: 0 | H8: 0 | I8: 0 | J8: 0 | K8: 0 | L8: 0 | M8: 0 | N8: 1 | O8: 53124.2
A9: 2020-07-01 | B9: 5 | C9: 15910.56998 | D9: 1 | E9: 4.02 | F9: 0 | G9: 0 | H9: 1 | I9: 10.51 | J9: 0 | K9: 0 | L9: 2 | M9: 896.039975 | N9: 1 | O9: 15000
A10: 2020-08-01 | B10: 9 | C10: 6107.75 | D10: 1 | E10: 4.55 | F10: 1 | G10: 6.9 | H10: 1 | I10: 24.87 | J10: 1 | K10: 79.53 | L10: 2 | M10: 415.77 | N10: 3 | O10: 5576.13
A11: 2020-09-01 | B11: 5 | C11: 1671.595 | D11: 0 | E11: 0 | F11: 1 | G11: 6.885 | H11: 0 | I11: 0 | J11: 0 | K11: 0 | L11: 2 | M11: 362.69 | N11: 2 | O11: 1302.02
A12: 2020-10-01 | B12: 17 | C12: =E12+I12+M12+O12+G12+K12 -> 6440.61 | D12: 4 | E12: 18.08 | F12: 1 | G12: 8.09 | H12: 4 | I12: 60.97 | J12: 1 | K12: 61.2 | L12: 4 | M12: 1290.27 | N12: 3 | O12: 5002
A13: 2020-11-01 | B13: =D13+H13+L13+N13+F13+J13 -> 4 | C13: =E13+I13+M13+O13+G13+K13 -> 7070.04 | D13: 1 | E13: 1.59 | F13: 0 | G13: 0 | H13: 0 | I13: 0 | J13: 1 | K13: 71.3 | L13: 0 | M13: 0 | N13: 2 | O13: 6997.15
A14: Notes - From April, 2020 onwards the data of equity is being prepared based on the listing date of the issues as against earlier practice of preparing it based on the closing date.
A15: $ indicates as on November 30, 2020
A16: Source: SEBI.

Sheet 10
A1: Table 10: Capital Raised by Listed Companies from the Primary Market through QIPs
A2: Year / Month | B2: Only BSE | D2: Only NSE | F2: Only MSEI | H2: Both NSE and BSE | J2: Total
B3: No. of issues | C3: Amount (₹ crore) | D3: No. of issues | E3: Amount (₹crore) | F3: No. of issues | G3: Amount (₹crore) | H3: No. of issues | I3: Amount (₹ crore) | J3: No. of issues | K3: Amount (₹ crore)
A4: 2019-20 | B4: 0 | C4: 0 | D4: 0 | E4: 0 | F4: 0 | G4: 0 | H4: 14 | I4: 54388.92492 | J4: 14 | K4: 54388.92492
A5: 2020-21$ | B5: =SUM(B6:B13) -> 0 | C5: =SUM(C6:C13) -> 0 | D5: 0 | E5: 0 | F5: 0 | G5: 0 | H5: 17 | I5: 56725.27 | J5: 17 | K5: 56725.27
A6: Apr-20 | B6: 0 | C6: 0 | D6: 0 | E6: 0 | F6: 0 | G6: 0 | H6: 0 | I6: 0 | J6: 0 | K6: 0
A7: May-20 | B7: 0 | C7: 0 | D7: 0 | E7: 0 | F7: 0 | G7: 0 | H7: 0 | I7: 0 | J7: 0 | K7: 0
A8: Jun-20 | B8: 0 | C8: 0 | D8: 0 | E8: 0 | F8: 0 | G8: 0 | H8: 2 | I8: 8212.5 | J8: 2 | K8: 8212.5
A9: Jul-20 | B9: 0 | C9: 0 | D9: 0 | E9: 0 | F9: 0 | G9: 0 | H9: 1 | I9: 2000 | J9: 1 | K9: 2000
A10: Aug-20 * | B10: 0 | C10: 0 | D10: 0 | E10: 0 | F10: 0 | G10: 0 | H10: 7 | I10: 42724.94 | J10: 7 | K10: 42724.94
A11: 2020-09-01 | B11: 0 | C11: 0 | D11: 0 | E11: 0 | F11: 0 | G11: 0 | H11: 3 | I11: 1337.87 | J11: 3 | K11: 1337.87
A12: 2020-10-01 | B12: 0 | C12: 0 | D12: 0 | E12: 0 | F12: 0 | G12: 0 | H12: 3 | I12: 2199.97 | J12: 3 | K12: 2199.97
A13: 2020-11-01 | B13: 0 | C13: 0 | D13: 0 | E13: 0 | F13: 0 | G13: 0 | H13: 1 | I13: 249.99 | J13: 1 | K13: 249.99
A14: Notes -
A15: $ indicates as on November 30, 2020
A16: * In the month of August 2020, the common amount on BSE and NSE includes warrants of HDFC Ltd of ₹ 3,999.99 cr
A17: Source: BSE, NSE and MSEI.

Sheet 11
A1: Table 11: Preferential Allotments Listed at Stock Exchanges
B2: BSE@ | D2: NSE@ | F2: MSEI @ | H2: Common# | J2: Total
A3: Year/ Month | B3: No.of issues | C3: Amount (`crore) | D3: No.of issues | E3: Amount (`crore) | F3: No.of issues | G3: Amount (`crore) | H3: No.of issues | I3: Amount (`crore) | J3: No.of issues | K3: Amount (`crore)
A4: 1 | B4: 2 | C4: 3 | D4: 4 | E4: 5 | F4: 6 | G4: 7 | H4: 8 | I4: 9 | J4: 10 | K4: 11
A5: 2019-20 | B5: 128 | C5: 1839.73 | D5: 14 | E5: 76.11 | F5: 4 | G5: 11.26 | H5: 138 | I5: 172959.35 | J5: 284 | K5: 174886.46
A6: 2020-21$ | B6: =SUM(B7:B14) -> 65 | C6: =SUM(C7:C14) -> 634.24 | D6: 7 | E6: 50.76 | F6: 3 | G6: 7.8 | H6: 70 | I6: 25008.46402 | J6: =SUM(J7:J14) -> 145 | K6: 25701.26
A7: Apr-20 | B7: 14 | C7: 117.45 | D7: 0 | E7: 0 | F7: 0 | G7: 0 | H7: 8 | I7: 988.95 | J7: 22 | K7: 1106.4
A8: May-20 | B8: 4 | C8: 11.14 | D8: 0 | E8: 0 | F8: 0 | G8: 0 | H8: 7 | I8: 295.88 | J8: 11 | K8: 307.02
A9: Jun-20 | B9: 10 | C9: 64.96 | D9: 0 | E9: 0 | F9: 0 | G9: 0 | H9: 8 | I9: 3967.7 | J9: 18 | K9: 4032.66
A10: Jul-20 | B10: 9 | C10: 83.64 | D10: 0 | E10: 0 | F10: 0 | G10: 0 | H10: 9 | I10: 798.85 | J10: 18 | K10: 882.49
A11: Aug-20 | B11: 10 | C11: 101.04 | D11: 2 | E11: 9 | F11: 0 | G11: 0 | H11: 6 | I11: 2626.62 | J11: 18 | K11: 2736.66
A12: 2020-09-01 | B12: 7 | C12: 43.41 | D12: 2 | E12: 10.46 | F12: 0 | G12: 0 | H12: 11 | I12: 7621.09 | J12: 20 | K12: 7674.96
A13: 2020-10-01 | B13: 5 | C13: 63.09 | D13: 2 | E13: 30.1 | F13: 3 | G13: 7.8 | H13: 15 | I13: 1851.294023 | J13: 25 | K13: 1952.28
A14: 2020-11-01 | B14: 6 | C14: 149.51 | D14: 1 | E14: 1.2 | F14: 0 | G14: 0 | H14: 6 | I14: 6858.08 | J14: 13 | K14: 7008.79
A15: Notes :
A16: 1. @ The issues are exclusively listed on respective exchanges.
A17: 2. # The issues listed on 'any two' or 'all three' exchanges.
A18: $ indicates as on November 30, 2020
A19: Source: BSE, NSE and MSEI.

Sheet 12
A1: Table 12: Private Placement of Corporate Debt Reported to Stock Exchanges
A2: Year/Month | B2: Listed only on NSE | D2: Listed only on BSE | F2: Listed both Both NSE and BSE | H2: TOTAL
B3: No. of Issues | C3: Amount (₹crore) | D3: No. of Issues | E3: Amount (₹ crore) | F3: No. of Issues | G3: Amount (₹ crore) | H3: No. of Issues | I3: Amount (₹crore)
A4: 2019-20 | B4: 363 | C4: 203066.26 | D4: 1272 | E4: 254976.4 | F4: 152 | G4: 216660.39 | H4: 1787 | I4: 674702.88
A5: 2020-21$ | B5: =SUM(B6:B13) -> 253 | C5: =SUM(C6:C13) -> 121561.3328 | D5: =SUM(D6:D13) -> 930 | E5: 163378.49 | F5: 116 | G5: 203132.11 | H5: 1299 | I5: 488071.5628
A6: Apr-20 | B6: 19 | C6: 11880 | D6: 40 | E6: 15200 | F6: 11 | G6: 27559.1 | H6: 70 | I6: 54638.72
A7: May-20 | B7: 33 | C7: 21706 | D7: 48 | E7: 14911.19 | F7: 26 | G7: 47956.3 | H7: 107 | I7: 84573.49
A8: Jun-20 | B8: 43 | C8: 18704 | D8: 136 | E8: 28221 | F8: 9 | G8: 23289 | H8: 188 | I8: 70214
A9: Jul-20 | B9: 40 | C9: 17454.84 | D9: 191 | E9: 20187.64 | F9: 12 | G9: 10319.2 | H9: 243 | I9: 47961.68
A10: 2020-08-01 | B10: 26 | C10: 5592.7 | D10: 163 | E10: 21144.71 | F10: 24 | G10: 31681.8 | H10: =SUM(B10,D10,F10) -> 213 | I10: =SUM(C10,E10,G10) -> 58419.21
A11: 2020-09-01 | B11: 34 | C11: 12161.71 | D11: 145 | E11: 28999.54 | F11: 10 | G11: 23227.4 | H11: 189 | I11: 64388.65
A12: 2020-10-01 | B12: 26 | C12: 16792.11 | D12: 110 | E12: 24320.69 | F12: 11 | G12: 21218.01 | H12: 147 | I12: 62330.82
A13: 2020-11-01 | B13: 32 | C13: 17269.9728 | D13: 97 | E13: 10393.72 | F13: 13 | G13: 17881.3 | H13: 142 | I13: 45544.9928
A14: Notes -
A15: $ indicates as on November 30, 2020
A16: Source: BSE and NSE

Sheet 13
A1: Table 13: Trading in the Corporate Debt Market
A2: Year / Month | B2: BSE | D2: NSE | F2: MSEI | H2: Total
B3: No. of Trades | C3: Traded Value (₹crore) | D3: No. of Trades | E3: Traded Value (₹crore) | F3: No. of Trades | G3: Traded Value (₹crore) | H3: No. of Trades | I3: Traded Value (₹crore)
A4: 2019-20 | B4: 57669 | C4: 764268.62 | D4: 80558 | E4: 1463552.27 | F4: 0 | G4: 0 | H4: 138227 | I4: 2227820.96
A5: 2020-21$ | B5: =SUM(B6:B13) -> 43047 | C5: =SUM(C6:C13) -> 469624.6512 | D5: =SUM(D6:D13) -> 46790 | E5: 881046.502 | F5: 0 | G5: 0 | H5: 89837 | I5: 1350671.153
A6: Apr-20 | B6: 3753 | C6: 65285.07 | D6: 5173 | E6: 149229.69 | F6: 0 | G6: 0 | H6: =B6+D6 -> 8926 | I6: =E6+C6 -> 214514.76
A7: May-20 | B7: 4677 | C7: 64964.768 | D7: 6004 | E7: 131841.632 | F7: 0 | G7: 0 | H7: =B7+D7 -> 10681 | I7: =E7+C7 -> 196806.4
A8: Jun-20 | B8: 7231 | C8: 76987.05 | D8: 7647 | E8: 130256.79 | F8: 0 | G8: 0 | H8: 14878 | I8: 207243.84
A9: Jul-20 | B9: 6813 | C9: 80074.63 | D9: 6710 | E9: 121730.01 | F9: 0 | G9: 0 | H9: 13523 | I9: 201804.64
A10: 2020-08-01 | B10: 4946 | C10: 53915.52 | D10: 5200 | E10: 89136.44 | F10: 0 | G10: 0 | H10: =SUM(B10,D10,F10) -> 10146 | I10: =SUM(C10,E10,G10) -> 143051.96
A11: 2020-09-01 | B11: 5695 | C11: 50693.92 | D11: 5864 | E11: 90782.64 | F11: 0 | G11: 0 | H11: 11559 | I11: 141476.56
A12: 2020-10-01 | B12: 5019 | C12: 42448.36 | D12: 5332 | E12: 88404 | F12: 0 | G12: 0 | H12: 10351 | I12: 130852.36
A13: 2020-11-01 | B13: 4913 | C13: 35255.33322 | D13: 4860 | E13: 79665.3 | F13: 0 | G13: 0 | H13: 9773 | I13: 114920.6332
A14: Notes -
A15: $ indicates as on November 30, 2020
A16: Source: BSE, NSE & MSEI

Sheet 14
A1: Table 14: Ratings Assigned for Long-term Corporate Debt Securities (Maturity ≥ 1 year)
A2: Grade | B2: Investment Grade | J2: Non-Investment Grade | L2: Total
B3: Highest Safety (AAA) | D3: High Safety (AA) | F3: Adequate Safety (A) | H3: Moderate Safety (BBB)
A4: Period | B4: No. of issue | C4: Amount (₹crore) | D4: No. of issue | E4: Amount (₹crore) | F4: No. of issue | G4: Amount (₹ crore) | H4: No. of issue | I4: Amount (₹crore) | J4: No. of issue | K4: Amount (₹ crore) | L4: No. of issue | M4: Amount (₹ crore)
A5: 2019-20 | B5: 315 | C5: 1895046.59 | D5: 308 | E5: 194418.72 | F5: 278 | G5: 40357.38 | H5: 200 | I5: 31405.885 | J5: 44 | K5: 10059.96 | L5: 1145 | M5: 2171738.535
A6: 2020-21$ | B6: =SUM(B7:B14) -> 179 | C6: =SUM(C7:C14) -> 1379321.79 | D6: 317 | E6: 255998.54 | F6: 196 | G6: 34329.03 | H6: 123 | I6: 30892.74 | J6: 34 | K6: 6140.7 | L6: 849 | M6: 1706682.72
A7: Apr-20 | B7: 25 | C7: 540951.9 | D7: 28 | E7: 52120.9 | F7: 11 | G7: 5075 | H7: 5 | I7: 1630.19 | J7: 2 | K7: 535 | L7: 71 | M7: 600312.99
A8: May-20 | B8: 17 | C8: 76524.42 | D8: 38 | E8: 19249.33 | F8: 21 | G8: 5426.38 | H8: 7 | I8: 620 | J8: 1 | K8: 100 | L8: 84 | M8: 101920.13
A9: Jun-20 | B9: 30 | C9: 49056.53 | D9: 43 | E9: 33536.16 | F9: 36 | G9: 4757.08 | H9: 27 | I9: 19665.78 | J9: 0 | K9: 0 | L9: 136 | M9: 107015.55
A10: Jul-20 | B10: 23 | C10: 115681.76 | D10: 41 | E10: 16437.48 | F10: 22 | G10: 2665.11 | H10: 22 | I10: 866.59 | J10: 7 | K10: 352 | L10: 115 | M10: 136003.02
A11: Aug-20 | B11: 18 | C11: 148303.47 | D11: 24 | E11: 25639.17 | F11: 32 | G11: 6989.12 | H11: 17 | I11: 3401.9 | J11: 3 | K11: 167 | L11: 94 | M11: 184500.66
A12: 2020-09-01 | B12: 34 | C12: 357648.64 | D12: 63 | E12: 58608.86 | F12: 34 | G12: 5034.52 | H12: 17 | I12: 2227.82 | J12: 7 | K12: 2544.05 | L12: 155 | M12: 426063.89
A13: Oct-20 | B13: 22 | C13: 64275.07 | D13: 35 | E13: 21266.64 | F13: 10 | G13: 1254.93 | H13: 10 | I13: 772.91 | J13: 10 | K13: 1687.65 | L13: 87 | M13: 89257.2
A14: Nov-20 | B14: 10 | C14: 26880 | D14: 45 | E14: 29140 | F14: 30 | G14: 3126.89 | H14: 18 | I14: 1707.55 | J14: 4 | K14: 755 | L14: 107 | M14: 61609.28
A15: Notes -
A16: $ indicates as on November 30, 2020
A17: Source: Credit Rating Agencies.

Sheet 15
A1: Table 15: Review of Accepted Ratings of Corporate Debt Securities (Maturity ≥ 1 year)
A2: Grade | B2: Upgraded | D2: Downgraded | F2: Reaffirmed | H2: Rating Watch | J2: Withdrawn/ Suspended | L2: Total
A3: Period | B3: No. of issue | C3: Amount (₹crore) | D3: No. of issue | E3: Amount (₹crore) | F3: No. of issue | G3: Amount (₹crore) | H3: No. of issue | I3: Amount (₹crore) | J3: No. of issue | K3: Amount (₹crore) | L3: No. of issue | M3: Amount (₹crore)
A4: 2019-20 | B4: 252 | C4: 75088.09 | D4: 1689 | E4: 1854100.55 | F4: 4425 | G4: 9132486.1 | H4: 768 | I4: 739873.1 | J4: 1193 | K4: 580065.57 | L4: 8184 | M4: 12225936.51
A5: 2020-21$ | B5: =SUM(B6:B13) -> 156 | C5: =SUM(C6:C13) -> 93911.24 | D5: 642 | E5: 270805.55 | F5: 4307 | G5: 10069283.9 | H5: 207 | I5: 127823.18 | J5: 1001 | K5: 1003778.51 | L5: 6164 | M5: 11388745.87
A6: Apr-20 | B6: 4 | C6: 598.4 | D6: 78 | E6: 18083.34 | F6: 335 | G6: 1772609.63 | H6: 46 | I6: 24584.43 | J6: 181 | K6: 514291.99 | L6: 644 | M6: 2330167.795
A7: May-20 | B7: 4 | C7: 37.63 | D7: 85 | E7: 57246.42 | F7: 493 | G7: 1201121.33 | H7: 29 | I7: 40188.47 | J7: 82 | K7: 42963.5 | L7: 689 | M7: 1340951.46
A8: Jun-20 | B8: 9 | C8: 2751.45 | D8: 78 | E8: 47594.14 | F8: 700 | G8: 1263013.22 | H8: 16 | I8: 13712.15 | J8: 104 | K8: 55701.22 | L8: 889 | M8: 1361302.26
A9: Jul-20 | B9: 6 | C9: 138.13 | D9: 61 | E9: 11188 | F9: 567 | G9: 1234071.65 | H9: 9 | I9: 3821.4 | J9: 111 | K9: 76813.8 | L9: 737 | M9: 1310780.67
A10: Aug-20 | B10: 21 | C10: 7118.39 | D10: 67 | E10: 24674.93 | F10: 612 | G10: 1496279.868 | H10: 15 | I10: 5088.58 | J10: 115 | K10: 117215.56 | L10: 803 | M10: 1589777.448
A11: 2020-09-01 | B11: 38 | C11: 51115 | D11: 127 | E11: 57497.39 | F11: 832 | G11: 1777440.668 | H11: 27 | I11: 18424.75 | J11: 189 | K11: 97682.6 | L11: 1186 | M11: 1966397.238
A12: Oct-20 | B12: 29 | C12: 1063.24 | D12: 75 | E12: 38775.13 | F12: 346 | G12: 726268.648 | H12: 27 | I12: 12466.2 | J12: 142 | K12: 78441.39 | L12: 572 | M12: 816353.218
A13: Nov-20 | B13: 45 | C13: 31089 | D13: 71 | E13: 15746.2 | F13: 422 | G13: 598478.888 | H13: 38 | I13: 9537.2 | J13: 77 | K13: 20668.45 | L13: 644 | M13: 673015.778
A14: Notes -
A15: $ indicates as on November 30, 2020
A16: Source: Credit Rating Agencies.

Sheet 16
A1: Table 16: Distribution of Turnover on Cash Segments of Stock Exchanges (₹crore)
A2: Stock Exchanges | B2: Nov-20 | C2: 2019-20 | D2: 2020-21$
A3: BSE | B3: 70675.89 | C3: 660896.02 | D3: 591428.2
A4: MSEI | B4: 0.28305 | C4: 27.98824717 | D4: 4.84
A5: NSE | B5: 1337271.92 | C5: 8998811.071 | D5: =8210229.441+1337271.92 -> 9547501.361
A6: Notes -
A7: $ indicates as on November 30, 2020
A8: Source: BSE, NSE and MSEI.

Sheet 17
A1: Table 17: Trends in Cash Segment of BSE
A2: Year / Month | B2: No. of Companies Listed | C2: No. of Companies Permitted* | D2: No. of companies traded | E2: No. of Trading Days | F2: No. of Trades (Lakh) | G2: Traded Quantity (Lakh) | H2: Turnover (₹ crore) | I2: Average Daily Turnover (₹ crore) | J2: Average Trade Size (₹ ) | K2: Demat Securities Traded (Lakh) | L2: Demat Turnover (₹crore) | M2: Market Capitalisation (₹ crore) | N2: S&P BSE Sensex
N3: High | O3: Low | P3: Close
A4: 2019-20 | B4: 5377 | C4: 36 | D4: 4089 | E4: 247 | F4: 3247.6 | G4: 573547.84 | H4: 660896.02 | I4: 2675.692389 | J4: 20350.29006 | K4: 573547.84 | L4: 660895.9 | M4: 11348756.59 | N4: 42273.87 | O4: 25638.9 | P4: 29468.49
A5: 2020-21$ | B5: =B13 -> 5442 | C5: =C13 -> 28 | D5: 3837 | E5: =SUM(E6:E13) -> 166 | F5: =SUM(F6:F13) -> 3396.26 | G5: =SUM(G6:G13) -> 597823.6 | H5: =SUM(H6:H13) -> 591428.2 | I5: =H5/E5 -> 3562.820482 | J5: =H5/F5*100 -> 17414.10257 | K5: =SUM(K6:K13) -> 597823.6 | L5: =SUM(L6:L13) -> 591428.16 | M5: =M13 -> 17414859.59 | N5: =MAX(N6:N13) -> 44825.37 | O5: =MIN(O6:O13) -> 27500.79 | P5: =P13 -> 44149.72
A6: Apr-20 | B6: 5380 | C6: 36 | D6: 3352 | E6: 18 | F6: 349.14 | G6: 38886.06 | H6: 44476.34 | I6: 2470.907778 | J6: 12738.82683 | K6: 38886.06 | L6: 44476.34 | M6: 12941620.82 | N6: 33887.25 | O6: 27500.79 | P6: 33717.62
A7: May-20 | B7: 5369 | C7: 36 | D7: 3303 | E7: 19 | F7: 314.3 | G7: 50830.89 | H7: 65018.99 | I7: 3422.052105 | J7: 20686.92014 | K7: 50830.89 | L7: 65018.97 | M7: 12706528.94 | N7: 32845.48 | O7: 29968.45 | P7: 32424.1
A8: Jun-20 | B8: 5377 | C8: 28 | D8: 3481 | E8: 22 | F8: 555.78 | G8: 108236.37 | H8: 110192.7 | I8: 5008.759091 | J8: 19826.67602 | K8: 108236.37 | L8: 110192.67 | M8: 13915689.83 | N8: 35706.55 | O8: 32348.1 | P8: 34915.8
A9: Jul-20 | B9: 5399 | C9: 27 | D9: 3624 | E9: 23 | F9: 513.7 | G9: 98513.1 | H9: 80092.74 | I9: 3482.293043 | J9: 15591.34514 | K9: 98513.1 | L9: 80092.73 | M9: 14739115.83 | N9: 38617.03 | O9: 34927.2 | P9: 37606.89 | Q9: 0
A10: Aug-20 | B10: 5413 | C10: 27 | D10: 3605 | E10: 21 | F10: 484.21 | G10: 99670 | H10: 93079.96 | I10: 4432.379048 | J10: 19223.05611 | K10: 99670 | L10: 93079.99 | M10: 15376302.71 | N10: 40010.17 | O10: 36911.23 | P10: 38628.29
A11: 2020-09-01 | B11: 5428 | C11: 28 | D11: 3587 | E11: 22 | F11: 402.69 | G11: 78826.51 | H11: 70025.27 | I11: 3182.966818 | J11: 17389.37396 | K11: 78826.51 | L11: 70025.27 | M11: 15524267.37 | N11: 39359.51 | O11: 36495.98 | P11: 38067.93
A12: Oct-20 | B12: 5437 | C12: 28 | D12: 3543 | E12: 21 | F12: 364.27 | G12: 54524.33 | H12: 57866.31 | I12: 2755.538571 | J12: 15885.55467 | K12: 54524.33 | L12: 57866.31 | M12: 15792249.91 | N12: 41048.05 | O12: 38410.2 | P12: 39614.07
A13: Nov-20 | B13: 5442 | C13: 28 | D13: 3551 | E13: 20 | F13: 412.17 | G13: 68336.34 | H13: 70675.89 | I13: 3533.7945 | J13: 17147.2669 | K13: 68336.34 | L13: 70675.88 | M13: 17414859.59 | N13: 44825.37 | O13: 39334.92 | P13: 44149.72
A14: Notes -
A15: $ indicates as on November 30, 2020
A16: Source: BSE .
E19: =SUM(E6:E13) -> 166 | F19: =SUM(F6:F13) -> 3396.26 | G19: 597823.6 | H19: 591428.2 | I19: 28288.69095 | J19: =SUM(J6:J13) -> 138489.0198 | K19: 597823.6 | L19: 591428.16
E20: =E5-E19 -> 0 | F20: =F5-F19 -> 0 | G20: 0 | H20: 0 | I20: =I19/8 -> 3536.086369 | J20: =J19/8 -> 17311.12747 | K20: 0 | L20: 0
I22: =H6/E6 -> 2470.907778 | J22: =I22-I6 -> -2.222222975e-07 | K22: =H6/F6*100 -> 12738.82683 | L22: =K22-J6 -> 1.643466021e-06
I23: 3422.052105 | J23: 1.577973308e-10 | K23: 20686.92014 | L23: -3.637978807e-10
I24: 5008.759091 | J24: 9.003997548e-11 | K24: 19826.67602 | L24: -2.437445801e-10
I25: 3482.293043 | J25: 2.610249794e-10 | K25: 15591.34514 | L25: -3.801687853e-10
I26: 4432.379048 | J26: 4.820321919e-11 | K26: 19223.05611 | L26: -4.838511813e-10
I27: 3182.966818 | J27: -1.818989404e-10 | K27: 17389.37396 | L27: 2.07364792e-10
I28: 2755.538571 | J28: -4.288267519e-10 | K28: 15885.55467 | L28: -1.928128768e-10
I29: 3533.7945 | J29: 0 | K29: 17147.2669 | L29: 0

Sheet 18
A1: Table 18: Trends in Cash Segment of NSE
A2: Year / Month | B2: No. of Companies Listed | C2: No. of Companies Permitted* | D2: No. of companies traded | E2: No. of Trading Days | F2: No. of Trades (Lakh) | G2: Traded Quantity (Lakh) | H2: Turnover (₹ crore) | I2: Average Daily Turnover (₹crore) | J2: Average Trade Size (`) | K2: Demat Securities Traded (Lakh) | L2: Demat Turnover (` crore) | M2: Market Capitalisation (` crore) | N2: Nifty 50 Index
N3: High | O3: Low | P3: Close
A4: 2019-20 | B4: 1949 | C4: 18 | D4: 1989 | E4: 247 | F4: 31459.71247 | G4: 4674056.682 | H4: 8998811.071 | I4: 36432.43348 | J4: 28604.23813 | K4: 4674056.682 | L4: 8998811.071 | M4: 11243111.77 | N4: 12430.5 | O4: 7511.1 | P4: 8597.75
A5: 2020-21$ | B5: 1959 | C5: 22 | D5: 1983 | E5: 166 | F5: 29278.87881 | G5: 4617739.515 | H5: 9547501.356 | I5: 57515.06841 | J5: 32608.83526 | K5: 4617739.515 | L5: 9547501.356 | M5: 17271314.45 | N5: 13145.85 | O5: 8055.8 | P5: 12968.95
A6: Apr-20 | B6: 1949 | C6: 18 | D6: 1855 | E6: 18 | F6: 3606.19038 | G6: 427307.91 | H6: 905802.22 | I6: 50322.34556 | J6: 25117.98115 | K6: 427307.91 | L6: 905802.22 | M6: 12738625.88 | N6: 9889.05 | O6: 8055.8 | P6: 9859.9
A7: May-20 | B7: 1947 | C7: 18 | D7: 1854 | E7: 19 | F7: 3417.96702 | G7: 493359.2655 | H7: 1000456.48 | I7: 52655.60421 | J7: 29270.51297 | K7: 493359.2655 | L7: 1000456.48 | M7: 12516959.59 | N7: 9598.85 | O7: 8806.75 | P7: 9580.3
A8: Jun-20 | B8: 1944 | C8: 18 | D8: 1872 | E8: 22 | F8: 4304.02717 | G8: 845760.3684 | H8: 1350680.724 | I8: 61394.57836 | J8: 31381.78897 | K8: 845760.3684 | L8: 1350680.724 | M8: 13804601.48 | N8: 10553.15 | O8: 9544.35 | P8: 10302.1
A9: Jul-20 | B9: 1941 | C9: 18 | D9: 1886 | E9: 23 | F9: 3950.46271 | G9: 667758.1397 | H9: 1348520.985 | I9: 58631.34716 | J9: 34135.77304 | K9: 667758.1397 | L9: 1348520.985 | M9: 14629658.61 | N9: 11341.4 | O9: 10299.6 | P9: 11073.45
A10: Aug-20 | B10: 1943 | C10: 18 | D10: 1886 | E10: 21 | F10: 3783.65128 | G10: 659450.225 | H10: 1282556.535 | I10: 61074.1207 | J10: 33897.32403 | K10: 659450.225 | L10: 1282556.535 | M10: 15234206.7 | N10: 11794.25 | O10: 10882.25 | P10: 11387.5
A11: Sep-20 | B11: 1946 | C11: 18 | D11: 1892 | E11: 22 | F11: 3596.49061 | G11: 574785.8484 | H11: 1223328.734 | I11: 55605.85152 | J11: 34014.5121 | K11: 574785.8484 | L11: 1223328.734 | M11: 15304722.35 | N11: 11618.1 | O11: 10790.2 | P11: 11247.55
A12: Oct-20 | B12: 1959 | C12: 22 | D12: 1908 | E12: 21 | F12: 3181.93019 | G12: 418797.6797 | H12: 1098883.765 | I12: 52327.79831 | J12: 34535.13116 | K12: 418797.6797 | L12: 1098883.765 | M12: 15587902.94 | N12: 12025.45 | O12: 11347.05 | P12: 11642.4
A13: Nov-20 | B13: 1959 | C13: 22 | D13: 1899 | E13: 20 | F13: 3438.15945 | G13: 530520.0785 | H13: 1337271.915 | I13: 66863.6 | J13: 38894.9941 | K13: 530520.0785 | L13: 1337271.915 | M13: 17271314.45 | N13: 13145.85 | O13: 11557.4 | P13: 12968.95
A14: Notes -
A15: Turnover Data compiled for all markets except auction market
A16: $ indicates as on November 30, 2020
A17: * As on November 30, 2020
A18: Source: NSE

Sheet 19
A1: Table 19: Trends in Cash Segment of MSEI
A2: Year/Month | B2: No. of Companies Listed | C2: No. of Companies Permitted ** | D2: No. of Companies Traded | E2: No. of Trading Days | F2: No. of Trades (Lakh) | G2: Traded Quantity (Lakh) | H2: Turnover (₹ crore) | I2: Average Daily Turnover (₹ crore) | J2: Average Trade Size (`) | K2: Demat Securities Traded (Lakh) | L2: Demat Turnover (₹ crore) | M2: Market Capitalisation (₹ crore) * | N2: SX 50 Index
N3: High | O3: Low | P3: Close
A4: 2019-20 | B4: 295 | C4: 1256 | D4: 15 | E4: 247 | F4: 0.0075 | G4: 12.98218 | H4: 27.98824717 | I4: 0.113312742 | J4: 373176.6289 | K4: 15.34975823 | L4: 20.30463782 | M4: 11034810.51 | N4: 24440.1 | O4: 15102.84 | P4: 17120.96
A5: 2020-21$ | B5: 298 | C5: 1254 | D5: 5 | E5: =SUM(E6:E13) -> 166 | F5: =SUM(F6:F13) -> 0.00257 | G5: =SUM(G6:G13) -> 1.35668 | H5: =SUM(H6:H13) -> 4.83552225 | I5: =H5/E5 -> 0.02912965211 | J5: =H5/(F5/100) -> 188152.6167 | K5: 0 | L5: 0 | M5: 16730075.9 | N5: 25893.97 | O5: 16065.53 | P5: 25707.37
A6: Apr-20 | B6: 296 | C6: 1257 | D6: 3 | E6: 18 | F6: 0.00013 | G6: 0.19211 | H6: 0.692056 | I6: 0.038447556 | J6: 532350.7692 | K6: 0 | L6: 0 | M6: 12577219.92 | N6: 19582.8 | O6: 16065.53 | P6: 19582.82
A7: May-20 | B7: 295 | C7: 1257 | D7: 0 | E7: 19 | F7: 0 | G7: 0 | H7: 0 | I7: 0 | J7: 0 | K7: 0 | L7: 0 | M7: 12348176.5 | N7: 18975.6 | O7: 17527.78 | P7: 18975.6
A8: Jun-20 | B8: 295 | C8: 1256 | D8: 3 | E8: 22 | F8: 0.00018 | G8: 0.19714 | H8: 0.7096088 | I8: 0.032254945 | J8: 394227.1111 | K8: 0 | L8: 0 | M8: 13487770.94 | N8: 20692.27 | O8: 19439.25 | P8: 20394.99
A9: Jul-20 | B9: 296 | C9: 1257 | D9: 1 | E9: 23 | F9: 7e-05 | G9: 0.0591 | H9: 0.21276 | I9: 0.009250435 | J9: 303942.8571 | K9: 0 | L9: 0 | M9: 14394821.94 | N9: 22504.43 | O9: 20643.12 | P9: 22015.44
A10: Aug-20 | B10: 297 | C10: 1258 | D10: 2 | E10: 21 | F10: 0.00029 | G10: 0.32501 | H10: 1.153661 | I10: 0.054936238 | J10: 397814.1379 | K10: 0 | L10: 0 | M10: 14933471.63 | N10: 23093.36 | O10: 21661.75 | P10: 22609.56
A11: 2020-09-01 | B11: 297 | C11: 1260 | D11: 4 | E11: 22 | F11: 0.00111 | G11: 0.32167 | H11: 1.14371145 | I11: 0.051986884 | J11: 103037.0676 | K11: 0 | L11: 0 | M11: 14948126.76 | N11: 23068.57 | O11: 21505 | P11: 22386.29
A12: Oct-20 | B12: 297 | C12: 1255 | D12: 1 | E12: 21 | F12: 0.0006 | G12: 0.18305 | H12: 0.640675 | I12: 0.030508333 | J12: 106779.1667 | K12: 0 | L12: 0 | M12: 15176584.51 | N12: 23871.67 | O12: 22720.35 | P12: 23186.74
A13: Nov-20 | B13: 298 | C13: 1254 | D13: 2 | E13: 20 | F13: 0.00019 | G13: 0.0786 | H13: 0.28305 | I13: =H13/E13 -> 0.0141525 | J13: =H13/(F13/100) -> 148973.6842 | K13: 0 | L13: 0 | M13: 16730075.9 | N13: 25893.97 | O13: 23186.74 | P13: 25707.37
A14: Notes -
A15: * The data of the Market Capitalization provided in the Bulletin includes listed as well as permitted to trade companies
A16: $ indicates as on November 30, 2020
A17: **As on November 30, 2020
A18: Source: MSEI

Sheet 20
A1: Table 20: City-wise Distribution of Turnover on Cash Segments
A2: (Percentage share in Turnover)
A3: S.No | B3: City | C3: BSE | E3: NSE | G3: MSEI
C4: 2019-20 | D4: 2020-11-01 | E4: 2019-20 | F4: 2020-11-01 | G4: 2019-20 | H4: 2020-11-01
A5: 1 | B5: Ahmedabad | C5: 2.205511324 | D5: 12.60644492 | E5: 1.65 | F5: 4.81 | G5: 1.04 | H5: 0
A6: 2 | B6: Bengaluru | C6: 1.1804078 | D6: 0.5364268477 | E6: 3.22 | F6: 1.72 | G6: 0 | H6: 0
A7: 3 | B7: Vadodra | C7: 0.730764059 | D7: 0.466174077 | E7: 0.24 | F7: 0.15 | G7: 0 | H7: 0
A8: 4 | B8: Bhubneshwar | C8: 0.016662055 | D8: 0.01636427748 | E8: 0 | F8: 0 | G8: 0 | H8: 0
A9: 5 | B9: Chennai | C9: 0.733786792 | D9: 0.2834698258 | E9: 0.87 | F9: 0.59 | G9: 0 | H9: 0
A10: 6 | B10: Cochin/Ernakulum | C10: 0.080620224 | D10: 0.05306974427 | E10: 0.7 | F10: 0.63 | G10: 0 | H10: 0
A11: 7 | B11: Coimbatore | C11: 0.025038392 | D11: 0.01395856629 | E11: 0.05 | F11: 0.05 | G11: 0 | H11: 0
A12: 8 | B12: New Delhi | C12: 1.080805639 | D12: 1.373459513 | E12: 5.92 | F12: 4.67 | G12: 48.72 | H12: 50
A13: 9 | B13: Guwahati | C13: 0.027876812 | D13: 0.03713145183 | E13: 0 | F13: 0 | G13: 0 | H13: 0
A14: 10 | B14: Hyderabad | C14: 0.280567373 | D14: 0.1077545354 | E14: 3.13 | F14: 3.53 | G14: 0 | H14: 0
A15: 11 | B15: Indore | C15: 0.246330406 | D15: 0.2654957827 | E15: 0.3 | F15: 0.3 | G15: 0 | H15: 0
A16: 12 | B16: Jaipur | C16: 0.4909551 | D16: 0.3086168725 | E16: 0.3 | F16: 0.2 | G16: 0 | H16: 8.81
A17: 13 | B17: Kanpur | C17: 0.252796584 | D17: 0.195480963 | E17: 0.08 | F17: 0.1 | G17: 1.93 | H17: 0
A18: 14 | B18: Kolkata | C18: 3.411444209 | D18: 3.9361194 | E18: 5.24 | F18: 3.64 | G18: 0 | H18: 0
A19: 15 | B19: Ludhiana | C19: 0.073506303 | D19: 0.07731692215 | E19: 0.11 | F19: 0.06 | G19: 0 | H19: 0
A20: 16 | B20: Mangalore | C20: 0.013216734 | D20: 0.008001378756 | E20: 0 | F20: 0 | G20: 0 | H20: 0
A21: 17 | B21: Mumbai | C21: 51.07366618 | D21: 34.0726366 | E21: 64.04 | F21: 70.27 | G21: 21.1 | H21: 0
A22: 18 | B22: Patna | C22: 0.033395599 | D22: 0.01871727109 | E22: 0 | F22: 0 | G22: 0 | H22: 0
A23: 19 | B23: Pune | C23: 0.263635306 | D23: 0.4527898258 | E23: 0.08 | F23: 0.12 | G23: 0 | H23: 0
A24: 20 | B24: Rajkot | C24: 1.609832749 | D24: 1.908020229 | E24: 1.07 | F24: 0.86 | G24: 0 | H24: 0
A25: 21 | B25: Others | C25: 36.16918036 | D25: 43.262551 | E25: 13 | F25: 8.3 | G25: 27.21 | H25: 41.19
B26: Total | C26: 100 | D26: 100 | E26: 100 | F26: 100 | G26: 100 | H26: 100
A27: Notes -
A28: The city-wise distribution of turnover is based on the cities uploaded in the UCC database of the Exchange for clientele trades and members registered office city for proprietary trades.
A30: Source: BSE, NSE and MSEI.

Sheet 21
A1: Table 21: Category-wise Share of Turnover in Cash Segment of BSE
A2: Year / Month | B2: Percentage Share in Turnover
B3: Proprietary | C3: FPIs | D3: Mutual Funds | E3: Banks | F3: Others
A4: 2019-20 | B4: 27.63833065 | C4: 9.976644983 | D4: 7.335572939 | E4: 0.116972822 | F4: 54.93247861
A5: 2020-21$ | B5: 31.91401891 | C5: 13.0526481 | D5: 2.77342154 | E5: 0.09030868623 | F5: 52.16960277
A6: Apr-20 | B6: 38.65 | C6: 9.98 | D6: 2.74 | E6: 0.01 | F6: 48.61
A7: May-20 | B7: 28.1 | C7: 22 | D7: 5.33 | E7: 0.02 | F7: 44.54
A8: Jun-20 | B8: 27.04 | C8: 24 | D8: 2.89 | E8: 0.01 | F8: 46.06
A9: Jul-20 | B9: 36.62 | C9: 3.13 | D9: 2.26 | E9: 0.01 | F9: 57.98
A10: Aug-20 | B10: 30.41 | C10: 8.97 | D10: 1.91 | E10: 0.1 | F10: 58.61
A11: Sept-20 | B11: 33.79 | C11: 7.81 | D11: 2.99 | E11: 0.05 | F11: 55.36
A12: Oct-20 | B12: 33.32 | C12: 10.69 | D12: 2.51 | E12: 0.14 | F12: 53.34
A13: Nov-20 | B13: 32.47 | C13: 10.6 | D13: 1.97 | E13: 0.41 | F13: 54.55
A14: Notes -
A15: $ indicates as on November 30, 2020
A16: Source: BSE.

Sheet 22
A1: Table 22: Category-wise Share of Turnover in Cash Segment of NSE
A2: Year /Month | B2: Percentage Share in Turnover
B3: Proprietary | C3: FPIs | D3: Mutual Funds | E3: Banks | F3: Others
A4: 2019-20 | B4: 22.74 | C4: 15.18 | D4: 7.47 | E4: 0.17 | F4: 54.45
A5: 2020-21$ | B5: 23.88 | C5: 11.31 | D5: 5.04 | E5: 0.09 | F5: 59.68
A6: Apr-20 | B6: 22.68 | C6: 13.45 | D6: 6.19 | E6: 0.06 | F6: 57.62
A7: May-20 | B7: 21.62 | C7: 13.44 | D7: 6.17 | E7: 0.05 | F7: 58.72
A8: Jun-20 | B8: 23.22 | C8: 9.32 | D8: 5 | E8: 0.17 | F8: 62.29
A9: Jul-20 | B9: 21.67 | C9: 8.16 | D9: 4.69 | E9: 0.08 | F9: 65.4
A10: Aug-20 | B10: 23.12 | C10: 9.05 | D10: 4.31 | E10: 0.12 | F10: 63.39
A11: 2020-09-01 | B11: 26.6 | C11: 10.38 | D11: 4.84 | E11: 0.09 | F11: 58.1
A12: Oct-20 | B12: 26.32 | C12: 11.29 | D12: 4.92 | E12: 0.07 | F12: 57.4
A13: 2020-11-01 | B13: 25.55 | C13: 16.49 | D13: 4.77 | E13: 0.06 | F13: 53.14
A14: Notes -
A15: $ indicates as on November 30, 2020
A16: Source: NSE.

Sheet 23
A1: Table 23: Category-wise Share of Turnover in Cash Segment of MSEI
A2: Year / Month | B2: Percentage Share in Turnover
B3: Proprietary | C3: FPIs | D3: Mutual Funds | E3: Banks | F3: Others
A4: 2019-20 | B4: 0 | C4: 0 | D4: 0 | E4: 0 | F4: 100
A5: 2020-21$ | B5: 0 | C5: 0 | D5: 0 | E5: 0 | F5: 100
A6: Apr-20 | B6: 0 | C6: 0 | D6: 0 | E6: 0 | F6: 100
A7: May-20 | B7: 0 | C7: 0 | D7: 0 | E7: 0 | F7: 0
A8: Jun-20 | B8: 0 | C8: 0 | D8: 0 | E8: 0 | F8: 100
A9: Jul-20 | B9: 0 | C9: 0 | D9: 0 | E9: 0 | F9: 100
A10: Aug-20 | B10: 0 | C10: 0 | D10: 0 | E10: 0 | F10: 100
A11: 2020-09-01 | B11: 0 | C11: 0 | D11: 0 | E11: 0 | F11: 100
A12: Oct-20 | B12: 0 | C12: 0 | D12: 0 | E12: 0 | F12: 100
A13: 2020-11-01 | B13: 0 | C13: 0 | D13: 0 | E13: 0 | F13: 100
A14: Notes -
A15: $ indicates as on November 30, 2020
A16: Source: MSEI.

Sheet 24
A1: Table 24: Component Stocks: S&P BSE Sensex during Nov-20
A2: Sl.No | B2: Name of Security | C2: Issued Capital (₹ crore) | D2: Free Float Market Capitalisation ( ₹ crore) | E2: Weightage (per cent) | F2: Beta | G2: R2 | H2: Daily Volatility (per cent) | I2: Monthly Return (per cent) | J2: Impact Cost (per cent)
A3: 1 | B3: Reliance Industries Limited | C3: 6339.44 | D3: 623315.14 | E3: 12.95396714 | F3: 1.08 | G3: 0.554201 | H3: 2.96 | I3: -6.060311 | J3: 0.02
A4: 2 | B4: HDFC Bank Limited | C4: 550.66 | D4: 586282.5957 | E4: 12.18434303 | F4: 1.08 | G4: 0.721262 | H4: 2.59 | I4: 21.737293 | J4: 0.02
A5: 3 | B5: Infosys Limited | C5: 2129.75 | D5: 406514.1287 | E5: 8.448327865 | F5: 0.85 | G5: 0.479504 | H5: 2.5 | I5: 3.766735 | J5: 0.02
A6: 4 | B6: Housing Development Finance Corporation Limited | C6: 359.68 | D6: 404422.6994 | E6: 8.404863003 | F6: 1.22 | G6: 0.675237 | H6: 3.04 | I6: 17.41256 | J6: 0.03
A7: 5 | B7: ICICI Bank Limited | C7: 1379.97 | D7: 326015.0321 | E7: 6.77536569 | F7: 1.42 | G7: 0.725769 | H7: 3.4 | I7: 20.443255 | J7: 0.03
A8: 6 | B8: Tata Consultancy Services Limited | C8: 375.24 | D8: 281489.6636 | E8: 5.850022917 | F8: 0.72 | G8: 0.417561 | H8: 2.26 | I8: 0.536615 | J8: 0.02
A9: 7 | B9: Kotak Mahindra Bank Limited | C9: 989.89 | D9: 248357.5134 | E9: 5.161458243 | F9: 1.08 | G9: 0.577577 | H9: 2.91 | I9: 22.877358 | J9: 0.03
A10: 8 | B10: Hindustan Unilever Limited | C10: 234.96 | D10: 190792.9177 | E10: 3.9651294 | F10: 0.59 | G10: 0.322998 | H10: 2.11 | I10: 3.131785 | J10: 0.03
A11: 9 | B11: ITC Limited | C11: 1230.5 | D11: 169223.2603 | E11: 3.516860754 | F11: 0.65 | G11: 0.294564 | H11: 2.44 | I11: 17.216338 | J11: 0.03
A12: 10 | B12: Axis Bank Limited | C12: 612.09 | D12: 158452.0535 | E12: 3.293009528 | F12: 1.59 | G12: 0.631895 | H12: 4.08 | I12: 22.278635 | J12: 0.03
A13: 11 | B13: Larsen & Toubro Limited | C13: 280.85 | D13: 134394.7135 | E13: 2.793040937 | F13: 0.95 | G13: 0.554129 | H13: 2.59 | I13: 20.03012 | J13: 0.03
A14: 12 | B14: Bajaj Finance Limited | C14: 120.52 | D14: 129811.5136 | E14: 2.697791173 | F14: 1.51 | G14: 0.586607 | H14: 4.01 | I14: 48.241198 | J14: 0.03
A15: 13 | B15: Bharti Airtel Limited | C15: 2727.78 | D15: 111212.6206 | E15: 2.311262057 | F15: 0.76 | G15: 0.316162 | H15: 2.76 | I15: 6.84963 | J15: 0.07
A16: 14 | B16: Asian Paints Limited | C16: 95.92 | D16: 99963.25121 | E16: 2.077473478 | F16: 0.69 | G16: 0.400902 | H16: 2.21 | I16: 0.194301 | J16: 0.04
A17: 15 | B17: State Bank of India | C17: 892.46 | D17: 93751.90448 | E17: 1.948386959 | F17: 1.14 | G17: 0.588272 | H17: 3.03 | I17: 29.088507 | J17: 0.03
A18: 16 | B18: Maruti Suzuki India Limited | C18: 151.04 | D18: 93395.52358 | E18: 1.940980519 | F18: 1.09 | G18: 0.566164 | H18: 2.96 | I18: 1.013484 | J18: 0.03
A19: 17 | B19: HCL Technologies Limited | C19: 542.73 | D19: 89210.6075 | E19: 1.854008036 | F19: 0.76 | G19: 0.092989 | H19: 5.06 | I19: -2.490512 | J19: 0.06
A20: 18 | B20: Mahindra & Mahindra Limited | C20: 621.6 | D20: 68871.46337 | E20: 1.431312375 | F20: 0.97 | G20: 0.408048 | H20: 3.09 | I20: 21.251157 | J20: 0.04
A21: 19 | B21: Nestle India Ltd | C21: 96.42 | D21: 62991.58098 | E21: 1.309114472 | F21: 0.55 | G21: 0.286273 | H21: 2.09 | I21: 2.882979 | J21: 0.05
A22: 20 | B22: Titan Company Limited | C22: 88.78 | D22: 56657.57035 | E22: 1.177478706 | F22: 0.87 | G22: 0.473806 | H22: 2.58 | I22: 16.563653 | J22: 0.04
A23: 21 | B23: UltraTech Cement Limited | C23: 288.63 | D23: 55445.63554 | E23: 1.152291826 | F23: 0.9 | G23: 0.559086 | H23: 2.44 | I23: 5.004536 | J23: 0.05
A24: 22 | B24: Sun Pharmaceuticals Industries Limited | C24: 239.93 | D24: 55230.04311 | E24: 1.147811304 | F24: 0.6 | G24: 0.261935 | H24: 2.38 | I24: 9.833601 | J24: 0.04
A25: 23 | B25: Tech Mahindra Limited | C25: 483.51 | D25: 54037.51151 | E25: 1.123027669 | F25: 0.83 | G25: 0.406552 | H25: 2.64 | I25: 7.674818 | J25: 0.04
A26: 24 | B26: Bajaj Finserv Limited | C26: 79.57 | D26: 52942.50179 | E26: 1.100270769 | F26: 1.38 | G26: 0.611235 | H26: 3.59 | I26: 57.08903 | J26: 0.04
A27: 25 | B27: IndusInd Bank Limited | C27: 756.47 | D27: 51702.97998 | E27: 1.074510566 | F27: 1.69 | G27: 0.401403 | H27: 5.45 | I27: 46.456625 | J27: 0.08
A28: 26 | B28: Power Grid Corporation of India Limited | C28: 5231.59 | D28: 49346.97267 | E28: 1.025547146 | F28: 0.58 | G28: 0.294951 | H28: 2.18 | I28: 12.573099 | J28: 0.05
A29: 27 | B29: NTPC Limited | C29: 9894.56 | D29: 45671.30082 | E29: 0.949157965 | F29: 0.66 | G29: 0.325883 | H29: 2.35 | I29: 7.534246 | J29: 0.05
A30: 28 | B30: Tata Steel Limited | C30: 1145.9 | D30: 42315.71569 | E30: 0.879420947 | F30: 1.05 | G30: 0.477908 | H30: 3.1 | I30: 40.818813 | J30: 0.03
A31: 29 | B31: Bajaj Auto Limited | C31: 289.37 | D31: 41312.85233 | E31: 0.858579068 | F31: 0.79 | G31: 0.467029 | H31: 2.37 | I31: 9.915293 | J31: 0.05
A32: 30 | B32: Oil & Natural Gas Corporation Limited | C32: 6290.14 | D32: 28639.00514 | E32: 0.59518646 | F32: 1 | G32: 0.374316 | H32: 3.33 | I32: 20.862201 | J32: 0.07
A33: Notes: 1. Beta & R2 are calculated for the trailing 12 months. Beta measures the degree to which any portfolio of stocks is affected as compared to the effect on the market as a whole.
A34: 2. The coefficient of determination (R2) measures the strength of relationship between two variables the return on a security versus that of the market.
A35: 3. Volatility is the standard deviation of the daily returns for the trailing 12 months.
A36: 4. Impact cost is calculated as the difference between actual buy price and ideal buy price, divided by ideal buy price, multiplied by 100. Hence ideal price is calculated as (best buy + best sell)/2. The above is calculated for a month for the portfolio size of ` 5 lakh. It is calculated for the current month.
A37: Source: BSE.

Sheet 25
A1: Table 25: Component Stocks: Nifty 50 Index during Nov-20
A2: Sl. No | B2: Name of Security | C2: Issued Capital (₹ crore) | D2: Free Float Market Capitalisation (₹ crore) | E2: Weightage (per cent) | F2: Beta | G2: R2 | H2: Daily Volatility (per cent) | I2: Monthly Return (per cent) | J2: Impact Cost (per cent)
A3: 1 | B3: HDFC Bank Ltd. | C3: 550.31 | D3: 626405.27 | E3: 11.21 | F3: 1.09 | G3: 0.69 | H3: 1.85 | I3: 21.74 | J3: 0.02
A4: 2 | B4: Reliance Industries Ltd. | C4: 6339.41 | D4: 623923.54 | E4: 11.17 | F4: 1.11 | G4: 0.54 | H4: 2.77 | I4: -6.07 | J4: 0.02
A5: 3 | B5: Housing Development Finance Corporation Ltd. | C5: 358.26 | D5: 404163.25 | E5: 7.23 | F5: 1.25 | G5: 0.66 | H5: 2.41 | I5: 17.3 | J5: 0.02
A6: 4 | B6: Infosys Ltd. | C6: 2129.7 | D6: 402938.79 | E6: 7.21 | F6: 0.87 | G6: 0.46 | H6: 1.77 | I6: 3.71 | J6: 0.02
A7: 5 | B7: ICICI Bank Ltd. | C7: 1379.2 | D7: 326421.95 | E7: 5.84 | F7: 1.44 | G7: 0.71 | H7: 2.7 | I7: 20.57 | J7: 0.03
A8: 6 | B8: Tata Consultancy Services Ltd. | C8: 375.24 | D8: 281542.17 | E8: 5.04 | F8: 0.73 | G8: 0.4 | H8: 1.28 | I8: 0.56 | J8: 0.02
A9: 7 | B9: Kotak Mahindra Bank Ltd. | C9: 989.6 | D9: 279316.49 | E9: 5 | F9: 1.1 | G9: 0.56 | H9: 1.68 | I9: 23.25 | J9: 0.02
A10: 8 | B10: Hindustan Unilever Ltd. | C10: 234.96 | D10: 190905.21 | E10: 3.42 | F10: 0.62 | G10: 0.33 | H10: 1.12 | I10: 3.23 | J10: 0.02
A11: 9 | B11: ITC Ltd. | C11: 1230.47 | D11: 169179.58 | E11: 3.03 | F11: 0.66 | G11: 0.28 | H11: 1.57 | I11: 17.19 | J11: 0.03
A12: 10 | B12: Axis Bank Ltd. | C12: 612.02 | D12: 149116.74 | E12: 2.67 | F12: 1.59 | G12: 0.62 | H12: 2.7 | I12: 22.15 | J12: 0.03
A13: 11 | B13: Larsen & Toubro Ltd. | C13: 280.81 | D13: 137102.32 | E13: 2.45 | F13: 0.96 | G13: 0.54 | H13: 2.24 | I13: 20.75 | J13: 0.03
A14: 12 | B14: Bajaj Finance Ltd. | C14: 120.52 | D14: 130151.15 | E14: 2.33 | F14: 1.49 | G14: 0.56 | H14: 2.42 | I14: 48.35 | J14: 0.02
A15: 13 | B15: Bharti Airtel Ltd. | C15: 2727.78 | D15: 111200.63 | E15: 1.99 | F15: 0.76 | G15: 0.3 | H15: 2.13 | I15: 6.8 | J15: 0.03
A16: 14 | B16: Asian Paints Ltd. | C16: 95.92 | D16: 99870.81 | E16: 1.79 | F16: 0.7 | G16: 0.39 | H16: 1.36 | I16: 0.17 | J16: 0.01
A17: 15 | B17: State Bank of India | C17: 892.46 | D17: 93732.96 | E17: 1.68 | F17: 1.17 | G17: 0.58 | H17: 2.77 | I17: 29.06 | J17: 0.03
A18: 16 | B18: Maruti Suzuki India Ltd. | C18: 151.04 | D18: 93516.49 | E18: 1.67 | F18: 1.13 | G18: 0.57 | H18: 1.27 | I18: 1.01 | J18: 0.02
A19: 17 | B19: HCL Technologies Ltd. | C19: 542.73 | D19: 89236.16 | E19: 1.6 | F19: 0.77 | G19: 0.37 | H19: 1.99 | I19: -2.36 | J19: 0.03
A20: 18 | B20: Mahindra & Mahindra Ltd. | C20: 621.6 | D20: 69114.05 | E20: 1.24 | F20: 1.02 | G20: 0.42 | H20: 2.51 | I20: 21.55 | J20: 0.02
A21: 19 | B21: Nestle India Ltd. | C21: 96.42 | D21: 63816.71 | E21: 1.14 | F21: 0.59 | G21: 0.3 | H21: 1.49 | I21: 4.24 | J21: 0.03
A22: 20 | B22: Dr. Reddy's Laboratories Ltd. | C22: 83.13 | D22: 58607.11 | E22: 1.05 | F22: 0.47 | G22: 0.17 | H22: 1.83 | I22: -1.22 | J22: 0.02
A23: 21 | B23: Titan Company Ltd. | C23: 88.78 | D23: 56797.36 | E23: 1.02 | F23: 0.89 | G23: 0.46 | H23: 1.86 | I23: 16.77 | J23: 0.03
A24: 22 | B24: UltraTech Cement Ltd. | C24: 288.63 | D24: 55439.3 | E24: 0.99 | F24: 0.93 | G24: 0.57 | H24: 1.27 | I24: 4.98 | J24: 0.02
A25: 23 | B25: Sun Pharmaceutical Industries Ltd. | C25: 239.93 | D25: 55242.89 | E25: 0.99 | F25: 0.63 | G25: 0.27 | H25: 1.86 | I25: 9.86 | J25: 0.03
A26: 24 | B26: Tech Mahindra Ltd. | C26: 483.2 | D26: 54232.98 | E26: 0.97 | F26: 0.86 | G26: 0.42 | H26: 2.03 | I26: 7.81 | J26: 0.03
A27: 25 | B27: Bajaj Finserv Ltd. | C27: 79.57 | D27: 52966.36 | E27: 0.95 | F27: 1.36 | G27: 0.6 | H27: 2.57 | I27: 57.15 | J27: 0.03
A28: 26 | B28: Wipro Ltd. | C28: 1142.9 | D28: 52076.15 | E28: 0.93 | F28: 0.67 | G28: 0.28 | H28: 1.37 | I28: 2.88 | J28: 0.02
A29: 27 | B29: HDFC Life Insurance Company Ltd. | C29: 2019.34 | D29: 50938.17 | E29: 0.91 | F29: 1.07 | G29: 0.53 | H29: 1.83 | I29: 9.67 | J29: 0.02
A30: 28 | B30: Power Grid Corporation of India Ltd. | C30: 5231.59 | D30: 49321.33 | E30: 0.88 | F30: 0.6 | G30: 0.29 | H30: 1.55 | I30: 12.51 | J30: 0.03
A31: 29 | B31: IndusInd Bank Ltd. | C31: 756.31 | D31: 48648.91 | E31: 0.87 | F31: 1.67 | G31: 0.35 | H31: 3.39 | I31: 46.43 | J31: 0.1
A32: 30 | B32: Divi's Laboratories Ltd. | C32: 53.09 | D32: 45937.96 | E32: 0.82 | F32: 0.55 | G32: 0.22 | H32: 2.22 | I32: 14.74 | J32: 0.03
A33: 31 | B33: NTPC Ltd. | C33: 9894.56 | D33: 45913.71 | E33: 0.82 | F33: 0.67 | G33: 0.32 | H33: 1.69 | I33: 8.11 | J33: 0.03
A34: 32 | B34: Tata Steel Ltd. | C34: 1126.49 | D34: 43575.37 | E34: 0.78 | F34: 1.12 | G34: 0.5 | H34: 2.46 | I34: 40.63 | J34: 0.02
A35: 33 | B35: Britannia Industries Ltd. | C35: 24.07 | D35: 42911.64 | E35: 0.77 | F35: 0.75 | G35: 0.41 | H35: 0.93 | I35: 4.74 | J35: 0.02
A36: 34 | B36: Bajaj Auto Ltd. | C36: 289.37 | D36: 41324.43 | E36: 0.74 | F36: 0.81 | G36: 0.45 | H36: 0.99 | I36: 9.93 | J36: 0.03
A37: 35 | B37: Hero MotoCorp Ltd. | C37: 39.95 | D37: 40364.43 | E37: 0.72 | F37: 0.88 | G37: 0.39 | H37: 1.64 | I37: 11.04 | J37: 0.02
A38: 36 | B38: Cipla Ltd. | C38: 161.27 | D38: 37875.74 | E38: 0.68 | F38: 0.45 | G38: 0.13 | H38: 2.01 | I38: -1.18 | J38: 0.03
A39: 37 | B39: Eicher Motors Ltd. | C39: 27.32 | D39: 35318.39 | E39: 0.63 | F39: 0.87 | G39: 0.38 | H39: 2.48 | I39: 21.53 | J39: 0.03
A40: 38 | B40: JSW Steel Ltd. | C40: 241.72 | D40: 34706.93 | E40: 0.62 | F40: 1.3 | G40: 0.63 | H40: 2 | I40: 13.33 | J40: 0.03
A41: 39 | B41: Grasim Industries Ltd. | C41: 131.59 | D41: 34570.84 | E41: 0.62 | F41: 1.14 | G41: 0.56 | H41: 1.51 | I41: 12.51 | J41: 0.02
A42: 40 | B42: Hindalco Industries Ltd. | C42: 224.63 | D42: 33049.02 | E42: 0.59 | F42: 1.41 | G42: 0.59 | H42: 2.54 | I42: 32.64 | J42: 0.03
A43: 41 | B43: SBI Life Insurance Company Ltd. | C43: 1000.05 | D43: 32997.48 | E43: 0.59 | F43: 0.91 | G43: 0.49 | H43: 1.29 | I43: 10 | J43: 0.03
A44: 42 | B44: Shree Cement Ltd. | C44: 36.08 | D44: 32448.68 | E44: 0.58 | F44: 0.85 | G44: 0.49 | H44: 1.43 | I44: 12.04 | J44: 0.03
A45: 43 | B45: Tata Motors Ltd. | C45: 617.79 | D45: 32311.59 | E45: 0.58 | F45: 1.28 | G45: 0.42 | H45: 2.8 | I45: 35.96 | J45: 0.03
A46: 44 | B46: Adani Ports and Special Economic Zone Ltd. | C46: 406.35 | D46: 30102.03 | E46: 0.54 | F46: 0.91 | G46: 0.44 | H46: 1.85 | I46: 14.37 | J46: 0.03
A47: 45 | B47: Bharat Petroleum Corporation Ltd. | C47: 2169.25 | D47: 29937.86 | E47: 0.54 | F47: 1.07 | G47: 0.41 | H47: 2.5 | I47: 5.23 | J47: 0.03
A48: 46 | B48: Oil & Natural Gas Corporation Ltd. | C48: 6290.14 | D48: 28639.01 | E48: 0.51 | F48: 1.01 | G48: 0.34 | H48: 2.24 | I48: 20.96 | J48: 0.04
A49: 47 | B49: Coal India Ltd. | C49: 6162.73 | D49: 26306.84 | E49: 0.47 | F49: 0.66 | G49: 0.26 | H49: 1.95 | I49: 9.94 | J49: 0.04
A50: 48 | B50: UPL Ltd. | C50: 152.81 | D50: 22978.21 | E50: 0.41 | F50: 1.08 | G50: 0.43 | H50: 2.18 | I50: -7.84 | J50: 0.03
A51: 49 | B51: Indian Oil Corporation Ltd. | C51: 9414.16 | D51: 21503.82 | E51: 0.38 | F51: 0.72 | G51: 0.41 | H51: 1.39 | I51: 6.35 | J51: 0.04
A52: 50 | B52: GAIL (India) Ltd. | C52: 4510.14 | D52: 18981.61 | E52: 0.34 | F52: 0.79 | G52: 0.28 | H52: 1.91 | I52: 21.12 | J52: 0.04
A53: Notes: 1. Beta & R2 are calculated for the the trailing 12 months. Beta measures the degree to which any portfolio of stocks is affected as compared to the effect on the market as a whole.
A54: 2. The coefficient of determination (R2) measures the strength of relationship between two variables the return on a security versus that of the market.
A55: 3. Volatility is the standard deviation of the daily returns for the the trailing 12 months.
A56: 4. Impact cost is calculated as the difference between actual buy price and ideal buy price, divided by ideal buy price, multiplied by 100. Hence ideal price is calculated as (best buy + best sell)/2.
A57: 5. Impact Cost for Nifty 50 is for a portfolio of Rs. 50 lakhs and is weightage average impact cost.
A58: Source: NSE.

Sheet 26
A1: Table 26: Component Stocks: SX40 Index
A2: S.No. | B2: Name of Security | C2: Issued Capital (₹ crore) | D2: Free Float Market Capitalisation (₹ crore) | E2: Weightage (per cent) | F2: Beta | G2: R2 | H2: Daily Volatility (per cent) | I2: Monthly Return (per cent) | J2: Impact Cost (per cent) *
A3: 1 | B3: HDFC Bank Limited | C3: 550.4132191 | D3: 625257.7734 | E3: 11.98983257 | F3: 1.09 | G3: 0.69 | H3: NA | I3: NA | J3: Na
A4: 2 | B4: Reliance Industries Limited | C4: 6339.44072 | D4: 582084.7517 | E4: 11.16195434 | F4: 1.13 | G4: 0.55 | H4: NA | I4: NA | J4: Na
A5: 3 | B5: Infosys Limited | C5: 2183.228155 | D5: 417755.9474 | E5: 8.01081423 | F5: 0.88 | G5: 0.48 | H5: NA | I5: NA | J5: Na
A6: 4 | B6: Housing Development Finance Corporation Limited | C6: 348.2987506 | D6: 392924.528 | E6: 7.53465132 | F6: 1.25 | G6: 0.66 | H6: NA | I6: NA | J6: Na
A7: 5 | B7: ICICI Bank Limited | C7: 1379.91706 | D7: 326584.1066 | E7: 6.26251912 | F7: 1.44 | G7: 0.71 | H7: NA | I7: NA | J7: Na
A8: 6 | B8: Tata Consultancy Services Limited | C8: 375.2384706 | D8: 281053.1357 | E8: 5.38942527 | F8: 0.74 | G8: 0.41 | H8: NA | I8: NA | J8: Na
A9: 7 | B9: Kotak Mahindra Bank Limited | C9: 989.892556 | D9: 272966.6268 | E9: 5.2343598 | F9: 1.1 | G9: 0.55 | H9: NA | I9: NA | J9: Na
A10: 8 | B10: Hindustan Unilever Limited | C10: 234.9556255 | D10: 191399.5611 | E10: 3.67024416 | F10: 0.63 | G10: 0.33 | H10: NA | I10: NA | J10: Na
A11: 9 | B11: ITC Limited | C11: 1230.301304 | D11: 168154.0195 | E11: 3.22449176 | F11: 0.66 | G11: 0.28 | H11: NA | I11: NA | J11: Na
A12: 10 | B12: Axis Bank Limited | C12: 611.9933168 | D12: 157445.0592 | E12: 3.01913863 | F12: 1.58 | G12: 0.61 | H12: NA | I12: NA | J12: Na
A13: 11 | B13: Larsen & Toubro Limited | C13: 280.7985744 | D13: 135971.4323 | E13: 2.60736416 | F13: 0.95 | G13: 0.53 | H13: NA | I13: NA | J13: Na
A14: 12 | B14: Bajaj Finance Limited | C14: 120.5099678 | D14: 128839.4672 | E14: 2.47060286 | F14: 1.47 | G14: 0.55 | H14: NA | I14: NA | J14: Na
A15: 13 | B15: Bharti Airtel Limited | C15: 2727.778677 | D15: 110552.1428 | E15: 2.11992835 | F15: 0.76 | G15: 0.3 | H15: NA | I15: NA | J15: Na
A16: 14 | B16: Asian Paints Limited | C16: 95.919779 | D16: 100311.694 | E16: 1.92355932 | F16: 0.7 | G16: 0.39 | H16: NA | I16: NA | J16: Na
A17: 15 | B17: State Bank of India | C17: 892.4611534 | D17: 93482.33191 | E17: 1.79260068 | F17: 1.17 | G17: 0.58 | H17: NA | I17: NA | J17: Na
A18: 16 | B18: Maruti Suzuki India Limited | C18: 151.04003 | D18: 92729.23935 | E18: 1.77815951 | F18: 1.13 | G18: 0.57 | H18: NA | I18: NA | J18: Na
A19: 17 | B19: HCL Technologies Limited | C19: 542.7330192 | D19: 88496.99512 | E19: 1.69700274 | F19: 0.78 | G19: 0.38 | H19: NA | I19: NA | J19: Na
A20: 18 | B20: Mahindra & Mahindra Limited | C20: 621.596272 | D20: 69146.55356 | E20: 1.32594209 | F20: 1.02 | G20: 0.41 | H20: NA | I20: NA | J20: Na
A21: 19 | B21: Nestle India Ltd | C21: 96.415716 | D21: 64222.47003 | E21: 1.23151874 | F21: 0.59 | G21: 0.3 | H21: NA | I21: NA | J21: Na
A22: 20 | B22: Dr. Reddy's Laboratories Limited | C22: 85.6765205 | D22: 61091.75099 | E22: 1.17148462 | F22: 0.47 | G22: 0.17 | H22: NA | I22: NA | J22: Na
A23: 21 | B23: Titan Company Limited | C23: 88.778616 | D23: 56923.23875 | E23: 1.09154997 | F23: 0.88 | G23: 0.45 | H23: NA | I23: NA | J23: Na
A24: 22 | B24: Tech Mahindra Limited | C24: 493.8028895 | D24: 56233.64632 | E24: 1.07832646 | F24: 0.87 | G24: 0.42 | H24: NA | I24: NA | J24: Na
A25: 23 | B25: Sun Pharmaceuticals Industries Limited | C25: 239.927533 | D25: 55623.55878 | E25: 1.06662753 | F25: 0.63 | G25: 0.27 | H25: NA | I25: NA | J25: Na
A26: 24 | B26: UltraTech Cement Limited | C26: 288.631366 | D26: 55469.28594 | E26: 1.06366923 | F26: 0.93 | G26: 0.56 | H26: NA | I26: NA | J26: Na
A27: 25 | B27: HDFC Life Insurance Company Limited | C27: 2019.930651 | D27: 51715.89324 | E27: 0.99169483 | F27: 0.69 | G27: 0.1 | H27: NA | I27: NA | J27: Na
A28: 26 | B28: Wipro Limited | C28: 1143.067618 | D28: 51295.2965 | E28: 0.98362954 | F28: 0.68 | G28: 0.29 | H28: NA | I28: NA | J28: Na
A29: 27 | B29: Power Grid Corporation of India Limited | C29: 5231.589648 | D29: 48979.5997 | E29: 0.93922415 | F29: 0.59 | G29: 0.29 | H29: NA | I29: NA | J29: Na
A30: 28 | B30: IndusInd Bank Limited | C30: 756.472993 | D30: 48653.54554 | E30: 0.93297179 | F30: 1.66 | G30: 0.34 | H30: NA | I30: NA | J30: Na
A31: 29 | B31: NTPC Limited | C31: 9894.55728 | D31: 45895.97404 | E31: 0.88009309 | F31: 0.66 | G31: 0.31 | H31: NA | I31: NA | J31: Na
A32: 30 | B32: Britannia Industries Limited | C32: 24.0868296 | D32: 43333.5884 | E32: 0.83095723 | F32: 0.74 | G32: 0.4 | H32: NA | I32: NA | J32: Na
A33: 31 | B33: Tata Steel Limited | C33: 1126.492374 | D33: 41115.04015 | E33: 0.78841474 | F33: 1.11 | G33: 0.49 | H33: NA | I33: NA | J33: Na
A34: 32 | B34: Hero MotoCorp Limited | C34: 39.953522 | D34: 40516.25208 | E34: 0.77693249 | F34: 0.87 | G34: 0.38 | H34: NA | I34: NA | J34: Na
A35: 33 | B35: Bajaj Auto Limited | C35: 289.36702 | D35: 38283.75229 | E35: 0.73412247 | F35: 0.8 | G35: 0.45 | H35: NA | I35: NA | J35: Na
A36: 34 | B36: Cipla Limited | C36: 161.2892202 | D36: 38097.21525 | E36: 0.73054547 | F36: 0.01 | G36: 0 | H36: NA | I36: NA | J36: Na
A37: 35 | B37: Grasim Industries Limited | C37: 131.5878458 | D37: 33925.60218 | E37: 0.65055135 | F37: 1.13 | G37: 0.55 | H37: NA | I37: NA | J37: Na
A38: 36 | B38: Hindalco Industries Limited | C38: 224.6478387 | D38: 33098.10159 | E38: 0.63468335 | F38: 1.4 | G38: 0.58 | H38: NA | I38: NA | J38: Na
A39: 37 | B39: Adani Ports And Special Economic Zone Limited | C39: 406.3503522 | D39: 30390.73455 | E39: 0.58276736 | F39: 0.91 | G39: 0.43 | H39: NA | I39: NA | J39: Na
A40: 38 | B40: Bharat Petroleum Corporation Limited | C40: 2169.214044 | D40: 29802.37788 | E40: 0.57148513 | F40: 1.06 | G40: 0.41 | H40: NA | I40: NA | J40: Na
A41: 39 | B41: Oil & Natural Gas Corporation Limited | C41: 6290.139603 | D41: 28930.26443 | E41: 0.55476164 | F41: 1.01 | G41: 0.34 | H41: NA | I41: NA | J41: Na
A42: 40 | B42: Coal India Limited | C42: 6162.728327 | D42: 26147.39984 | E42: 0.50139792 | F42: 0.65 | G42: 0.25 | H42: NA | I42: NA | J42: Na
A43: Notes:
A44: 1. Market Cap, Beta & R2 as on the last day of the month
A45: 2. Beta & R2 are calculated for the trailing 12 months
A46: 3. Volatility for the current month
A47: 4. *Since there is no trading in the SX40 constituents, the Impact Cost for the given stocks is NiL.
A48: Source: MSEI.

Sheet 27
A1: Table 27: Advances/Declines in Cash Segment
A2: Year/ Month | B2: BSE | E2: NSE | H2: MSEI
B3: Advances | C3: Declines | D3: Advance/Decline Ratio | E3: Advances | F3: Declines | G3: Advance/Decline Ratio | H3: Advances | I3: Declines | J3: Advance/Decline Ratio
A4: 2019-20 | B4: 793 | C4: 3134 | D4: 0.25303127 | E4: 440 | F4: 1530 | G4: 0.29 | H4: 6 | I4: 3 | J4: 2
A5: 2020-21$ | B5: 1229 | C5: 2531 | D5: 0.4855788226 | E5: 626 | F5: 1328 | G5: 0.47 | H5: 0 | I5: 2 | J5: 0
A6: Apr-20 | B6: 1291 | C6: 1932 | D6: 0.668219462 | E6: 825 | F6: 1094 | G6: 0.75 | H6: 0 | I6: 0 | J6: 0
A7: May-20 | B7: 1410 | C7: 1780 | D7: 0.792134831 | E7: 914 | F7: 977 | G7: 0.94 | H7: 0 | I7: 0 | J7: 0
A8: Jun-20 | B8: 2699 | C8: 585 | D8: 4.613675214 | E8: 1753 | F8: 147 | G8: 11.93 | H8: 0 | I8: 0 | J8: 0
A9: Jul-20 | B9: 2243 | C9: 1240 | D9: 1.808870968 | E9: 1387 | F9: 530 | G9: 2.62 | H9: 0 | I9: 0 | J9: 0
A10: Aug-20 | B10: 2322 | C10: 1232 | D10: 1.88474026 | E10: 1457 | F10: 496 | G10: 2.94 | H10: 0 | I10: 0 | J10: 0
A11: 2020-09-01 | B11: 1727 | C11: 1821 | D11: 0.948380011 | E11: 899 | F11: 1056 | G11: 0.85 | H11: 0 | I11: 0 | J11: 0
A12: Oct-20 | B12: 1419 | C12: 2095 | D12: 0.677326969 | E12: 777 | F12: 1189 | G12: 0.65 | H12: 0 | I12: 0 | J12: 0
A13: 2020-11-01 | B13: 2055 | C13: 1437 | D13: =B13/C13 -> 1.43006263 | E13: 1294 | F13: 674 | G13: 1.92 | H13: 0 | I13: 0 | J13: 0
A14: Notes: Advance/Decline is calculated based on the average price methodology.
A15: $ indicates as on November 30, 2020
A16: Source: BSE, NSE and MSEI.

Sheet 28
A1: Table 28: Trading Frequency in Cash Segment of Exchanges
A2: Month | B2: BSE | E2: NSE | H2: MSEI
B3: No. of Companies Listed | C3: No. of Companies Traded | D3: Traded to Listed (per cent) | E3: No. of Companies Listed | F3: No. of Companies Traded | G3: Traded to Listed (per cent) | H3: No. of Companies Listed | I3: No. of Companies Traded | J3: Traded to Listed (per cent)
A4: 2019-20 | B4: 5377 | C4: 4089 | D4: 76.04612237 | E4: 1949 | F4: 1989 | G4: 102.0523345 | H4: 295 | I4: 15 | J4: 5.084745763
A5: 2020-21$ | B5: 5442 | C5: 3857 | D5: 70.87467843 | E5: 1959 | F5: 1974 | G5: 100.7656968 | H5: 298 | I5: 5 | J5: 1.677852349
A6: Apr-20 | B6: 5380 | C6: 3352 | D6: 62.30483271 | E6: 1949 | F6: 1855 | G6: 95.17701385 | H6: 296 | I6: 3 | J6: 1.013513514
A7: May-20 | B7: 5369 | C7: 3303 | D7: 61.5198361 | E7: 1947 | F7: 1854 | G7: 95.22342065 | H7: 295 | I7: 0 | J7: 0
A8: Jun-20 | B8: 5377 | C8: 3481 | D8: 64.73870188 | E8: 1944 | F8: 1872 | G8: 96.2962963 | H8: 295 | I8: 3 | J8: 1.016949153
A9: Jul-20 | B9: 5399 | C9: 3624 | D9: 67.1235414 | E9: 1941 | F9: 1886 | G9: 97.16640907 | H9: 296 | I9: 1 | J9: 0.3378378378
A10: Aug-20 | B10: 5413 | C10: 3605 | D10: 66.59892851 | E10: 1943 | F10: 1886 | G10: 97.06639218 | H10: 297 | I10: 2 | J10: 0.6734006734
A11: 2020-09-01 | B11: 5428 | C11: 3587 | D11: 66.08327192 | E11: 1946 | F11: 1892 | G11: 97.22507708 | H11: 297 | I11: 4 | J11: 1.346801347
A12: Oct-20 | B12: 5437 | C12: 3543 | D12: 65.16461284 | E12: 1959 | F12: 1908 | G12: 97.39663093 | H12: 297 | I12: 1 | J12: 0.3367003367
A13: 2020-11-01 | B13: 5442 | C13: 3551 | D13: 65.25174568 | E13: 1959 | F13: 1899 | G13: =(F13/E13)*100 -> 96.93721286 | H13: 298 | I13: 2 | J13: 0.6711409396
A14: Notes -
A15: $ indicates as on November 30, 2020
A16: Source: BSE, NSE and MSEI.

Sheet 29
A1: Table 29: Daily Volatility of Major Indices
H2: (per cent)
A3: Year / Month | B3: BSE Sensex | C3: BSE 100 | D3: BSE 500 | E3: Nifty 50 | F3: Nifty Next 50 | G3: Nifty 500 | H3: SX40
A4: 2019-20 | B4: 1.77 | C4: 1.74 | D4: 1.7 | E4: 1.745669786 | F4: 1.619683409 | G4: 1.684795809 | H4: 1.71
A5: 2020-21$ | B5: 1.539643318 | C5: 1.448685118 | D5: 1.372083302 | E5: 1.494202707 | F5: 1.22650501 | G5: 1.364200313 | H5: 1.5
A6: Apr-20 | B6: 3.03 | C6: 2.81 | D6: 2.6 | E6: 2.843773037 | F6: 1.971064465 | G6: 2.508181996 | H6: 3.01
A7: May-20 | B7: 2.15 | C7: 2.04 | D7: 1.91 | E7: 2.048551588 | F7: 1.647650314 | G7: 1.852370831 | H7: 2.05
A8: Jun-20 | B8: 1.25 | C8: 1.18 | D8: 1.15 | E8: 1.217189201 | F8: 0.945600102 | G8: 1.131000379 | H8: 1.21
A9: Jul-20 | B9: 0.97 | C9: 0.88 | D9: 0.82 | E9: 0.925963895 | F9: 0.672553594 | G9: 0.805308517 | H9: 0.93
A10: Aug-20 | B10: 0.99 | C10: 0.94 | D10: 0.93 | E10: 0.925694462 | F10: 1.101700468 | G10: 0.919586861 | H10: 0.93
A11: 2020-09-01 | B11: 1.196369723 | C11: 1.229509802 | D11: 1.254328354 | E11: 1.169640237 | F11: 1.353955553 | G11: 1.223016451 | H11: 1.19
A12: Oct-20 | B12: 1.028212848 | C12: 0.933408 | D12: 0.858267417 | E12: 0.941724708 | F12: 0.737360953 | G12: 0.835326122 | H12: 0.98
A13: 2020-11-01 | B13: 0.9033380901 | C13: 0.8267834614 | D13: 0.748369683 | E13: 0.839959398 | F13: 0.73352754 | G13: 0.728872546 | H13: 0.87
A14: Notes: Volatility is calculated as the standard deviation of the natural log of daily returns in indices for the respective period.
A15: $ indicates as on November 30, 2020
A16: Source: BSE, MSEI and NSE.

Sheet 30
A1: Table 30: Percentage Share of Top ‘N’ Securities/Members in Turnover of Cash Segment of Exchanges (per cent)
A2: Year/ Month | B2: BSE | G2: NSE | L2: MSEI
A3: Top | B3: 5 | C3: 10 | D3: 25 | E3: 50 | F3: 100 | G3: 5 | H3: 10 | I3: 25 | J3: 50 | K3: 100 | L3: 5 | M3: 10 | N3: 25 | O3: 50 | P3: 100
A4: Securities
A5: 2019-20 | B5: 15.9616 | C5: 24.4329 | D5: 39.5174 | E5: 52.5185 | F5: 68.0829 | G5: 15.55 | H5: 26.32 | I5: 45.68 | J5: 60.58 | K5: 77.92 | L5: 97.15 | M5: 99.99 | N5: 100 | O5: 100 | P5: 100
A6: 2020-21$ | B6: 17.6102 | C6: 27.7091 | D6: 43.5665 | E6: 55.9555 | F6: 70.4822 | G6: 19.06 | H6: 29.21 | I6: 47.33 | J6: 63.19 | K6: 79.45 | L6: 100 | M6: 100 | N6: 100 | O6: 100 | P6: 100
A7: Apr-20 | B7: 18.8057 | C7: 29.1358 | D7: 45.2231 | E7: 60.2047 | F7: 76.2812 | G7: 21.74 | H7: 34.01 | I7: 53.29 | J7: 68.6 | K7: 84.6 | L7: 100 | M7: 100 | N7: 100 | O7: 100 | P7: 100
A8: May-20 | B8: 41.5822 | C8: 51.1386 | D8: 63.9668 | E8: 74.1095 | F8: 84.8373 | G8: 24.02 | H8: 36.8 | I8: 53.22 | J8: 69.14 | K8: 85.35 | L8: 0 | M8: 0 | N8: 0 | O8: 0 | P8: 0
A9: Jun-20 | B9: 33.7851 | C9: 44.3575 | D9: 58.0009 | E9: 68.318 | F9: 79.6923 | G9: 20.48 | H9: 31.24 | I9: 49.55 | J9: 64.86 | K9: 81.07 | L9: 100 | M9: 100 | N9: 100 | O9: 100 | P9: 100
A10: Jul-20 | B10: 18.9403 | C10: 27.9867 | D10: 43.0643 | E10: 56.3726 | F10: 70.9021 | G10: 24.22 | H10: 34.54 | I10: 50.06 | J10: 65.4 | K10: 80.58 | L10: 100 | M10: 100 | N10: 100 | O10: 100 | P10: 100
A11: Aug-20 | B11: 23.1592 | C11: 30.7546 | D11: 42.8767 | E11: 54.6288 | F11: 68.4645 | G11: 16.95 | H11: 26.42 | I11: 42.83 | J11: 58.74 | K11: 75.29 | L11: 100 | M11: 100 | N11: 100 | O11: 100 | P11: 100
A12: 2020-09-01 | B12: 15.7741 | C12: 23.5068 | D12: 38.4159 | E12: 52.5471 | F12: 69.1548 | G12: 18.53 | H12: 27.89 | I12: 46.55 | J12: 62.92 | K12: 78.82 | L12: 100 | M12: 100 | N12: 100 | O12: 100 | P12: 100
A13: Oct-20 | B13: 15.1569 | C13: 24.3018 | D13: 42.3229 | E13: 56.2869 | F13: 72.0041 | G13: 17.1 | H13: 27.87 | I13: 48.87 | J13: 64.83 | K13: 81.76 | L13: 100 | M13: 100 | N13: 100 | O13: 100 | P13: 100
A14: Nov-20 | B14: 16.3218 | C14: 25.5445 | D14: 42.4855 | E14: 55.7817 | F14: 70.8734 | G14: 19.34 | H14: 30.94 | I14: 47.95 | J14: 63.57 | K14: 80.61 | L14: 100 | M14: 100 | N14: 100 | O14: 100 | P14: 100
A15: Members
A16: 2019-20 | B16: 26.49 | C16: 40.16 | D16: 64.55 | E16: 76.04 | F16: 85.83 | G16: 25.48 | H16: 39.02 | I16: 59.55 | J16: 75.87 | K16: 87.66 | L16: 80.36 | M16: 100 | N16: 100 | O16: 100 | P16: 100
A17: 2020-21$ | B17: 34.51 | C17: 50.16 | D17: 70.13 | E17: 80.89 | F17: 89.16 | G17: 30.56 | H17: 43.39 | I17: 63.65 | J17: 78.72 | K17: 89.54 | L17: 100 | M17: 100 | N17: 100 | O17: 100 | P17: 0
A18: Apr-20 | B18: 32.94 | C18: 49.91 | D18: 71.44 | E18: 82.7 | F18: 91.2 | G18: 30.67 | H18: 44.88 | I18: 65.51 | J18: 80.71 | K18: 90.92 | L18: 100 | M18: 100 | N18: 100 | O18: 100 | P18: 0
A19: May-20 | B19: 42.92 | C19: 56.43 | D19: 76.25 | E19: 85.01 | F19: 91.92 | G19: 30.67 | H19: 44.2 | I19: 64.59 | J19: 80.21 | K19: 90.67 | L19: 0 | M19: 0 | N19: 0 | O19: 0 | P19: 0
A20: Jun-20 | B20: 45.78 | C20: 60.7 | D20: 77.42 | E20: 85.46 | F20: 92.1 | G20: 30.73 | H20: 45.25 | I20: 64.84 | J20: 78.89 | K20: 89.48 | L20: 100 | M20: 100 | N20: 100 | O20: 100 | P20: 0
A21: Jul-20 | B21: 40.35 | C21: 55.93 | D21: 71.57 | E21: 80.84 | F21: 88.93 | G21: 32.21 | H21: 45.3 | I21: 64.28 | J21: 77.55 | K21: 88.45 | L21: 100 | M21: 100 | N21: 100 | O21: 100 | P21: 0
A22: Aug-20 | B22: 32.85 | C22: 46.38 | D22: 68.19 | E22: 79.76 | F22: 88.9 | G22: 31.57 | H22: 44.29 | I22: 63.23 | J22: 77.44 | K22: 88.4 | L22: 100 | M22: 100 | N22: 100 | O22: 100 | P22: 0
A23: 2020-09-01 | B23: 35.65 | C23: 50.01 | D23: 70.85 | E23: 81.85 | F23: 90.23 | G23: 31.67 | H23: 45.84 | I23: 65.91 | J23: 79.74 | K23: 89.92 | L23: 100 | M23: 100 | N23: 100 | O23: 100 | P23: 0
A24: Oct-20 | B24: 39.7 | C24: 53.61 | D24: 71.06 | E24: 80.39 | F24: 88.93 | G24: 31.18 | H24: 45.15 | I24: 64.98 | J24: 79.85 | K24: 90.41 | L24: 100 | M24: 100 | N24: 100 | O24: 100 | P24: 0
A25: 2020-11-01 | B25: 39.72 | C25: 55.55 | D25: 72.06 | E25: 82.1 | F25: 89.91 | G25: 29.09 | H25: 41.81 | I25: 64.64 | J25: 80.41 | K25: 90.7 | L25: 100 | M25: 100 | N25: 100 | O25: 100 | P25: 0
A26: Notes: 1. Data for Top N scrips has been compiled for all markets except auction market & retail debt market and includes series EQ, BE,BT, BL and IL.
A27: $ indicates as on November 30, 2020
A28: Source: BSE, NSE and MSEI.

Sheet 31
A1: Table 31: Settlement Statistics for Cash Segment of ICCL
A2: Year / Month | B2: No. of Trades (lakh) | C2: Traded Quantity (lakh) | D2: Delivered Quantity (lakh) | E2: Delivered Quantity to Traded Quantity (per cent) | F2: Turnover (₹ crore) | G2: Delivered Value (₹ crore) | H2: Delivered Value to Total Turnover (per cent) | I2: Delivered Quantity in Demat Mode (lakh) | J2: Demat Delivered Quantity to Total Delivered Quantity (per cent) | K2: Delivered Value in Demat Mode (₹ crore) | L2: Demat Delivered Value to Total Delivered Value (per cent) | M2: Short Delivery (Auctioned quantity) (lakh) | N2: Short Delivery to Delivered Quantity (per cent) | O2: Funds Pay-in (₹ crore) | P2: Securities Pay-in (₹ crore) | Q2: Settlement Guarantee Fund (₹ crore)
A3: 2019-20 | B3: 3210.16076 | C3: 555304 | D3: 204312.5084 | E3: =D3/C3*100 -> 36.79291135 | F3: 672464.22 | G3: 193663.123 | H3: =G3/F3*100 -> 28.79902264 | I3: 171221.4999 | J3: =I3/D3*100 -> 83.80372853 | K3: 193243.4334 | L3: =K3/G3*100 -> 99.78328884 | M3: 369.1519 | N3: =M3/D3*100 -> 0.1806800293 | O3: 61952.69806 | P3: 193935.1729 | Q3: 223.1
A4: 2020-21$ | B4: =SUM(B5:B12) -> 3379.7 | C4: =SUM(C5:C12) -> 593940.6 | D4: =SUM(D5:D12) -> 170807.7049 | E4: =D4/C4*100 -> 28.75838171 | F4: =SUM(F5:F12) -> 588818 | G4: =SUM(G5:G12) -> 160072.3144 | H4: =G4/F4*100 -> 27.18536363 | I4: =SUM(I5:I12) -> 170807.7114 | J4: =I4/D4*100 -> 100.0000038 | K4: =SUM(K5:K12) -> 160072.3144 | L4: =K4/G4*100 -> 100 | M4: =SUM(M5:M12) -> 404.07033 | N4: =M4/D4*100 -> 0.2365644631 | O4: =SUM(O5:O12) -> 36171 | P4: =SUM(P5:P12) -> 160272 | Q4: =Q12 -> 233.9
A5: Apr-20 | B5: 339 | C5: 37309 | D5: 11926.5 | E5: 31.96681766 | F5: 44040 | G5: 13145 | H5: 29.84786558 | I5: 11926.5 | J5: 100 | K5: 13145 | L5: 100 | M5: 30.3 | N5: 0.2540560936 | O5: 3609 | P5: 13162 | Q5: 224.38
A6: May-20 | B6: 316.2 | C6: 46869 | D6: 14976.3 | E6: 31.95353005 | F6: 63127 | G6: 14218 | H6: 22.52285076 | I6: 14976.3 | J6: 100 | K6: 14218 | L6: 100 | M6: 30.3 | N6: 0.2023196651 | O6: 4598 | P6: 14230 | Q6: 225.71
A7: Jun-20 | B7: 543.2 | C7: 108007.6 | D7: 28084.9 | E7: 26.00270722 | F7: 109738 | G7: 22839 | H7: 20.81229838 | I7: 28084.9 | J7: 100 | K7: 22839 | L7: 100 | M7: 59.4 | N7: 0.2115015542 | O7: 5227 | P7: 22864 | Q7: 115.15
A8: Jul-20 | B8: 518.3 | C8: 100445 | D8: 30648.58 | E8: 30.51279805 | F8: 80053 | G8: 23567 | H8: 29.4392465 | I8: 30648.6 | J8: 100.0000653 | K8: 23567 | L8: 100 | M8: 134.4 | N8: 0.4385195007 | O8: 4656 | P8: 23596 | Q8: 228.38
A9: Aug-20 | B9: 471.9 | C9: 93649 | D9: 27994.7 | E9: 29.89321829 | F9: 90938 | G9: 25780 | H9: 28.34898502 | I9: 27994.7 | J9: 100 | K9: 25780 | L9: 100 | M9: 45.8 | N9: 0.1636023962 | O9: 4505 | P9: 25812 | Q9: 229.69
A10: 2020-09-01 | B10: 427.4 | C10: 87230 | D10: 20728.81138 | E10: 23.7633972 | F10: 73748 | G10: 21778.31442 | H10: 29.53071869 | I10: 20728.81138 | J10: 100 | K10: 21778.31442 | L10: 100 | M10: 31.47033 | N10: 0.1518192694 | O10: 4968 | P10: 21819 | Q10: 231.16
A11: Oct-20 | B11: 343.2 | C11: 52086 | D11: 14433.4 | E11: 27.71070921 | F11: 54904 | G11: 16803 | H11: 30.60432755 | I11: 14433.4 | J11: 100 | K11: 16803 | L11: 100 | M11: 43.9 | N11: 0.304155639 | O11: 3490 | P11: 16828 | Q11: 232.51
A12: Nov-20 | B12: 420.5 | C12: 68345 | D12: 22014.51348 | E12: 32.21086177 | F12: 72270 | G12: 21942 | H12: 30.3611457 | I12: 22014.5 | J12: 99.99993877 | K12: 21942 | L12: 100 | M12: 28.5 | N12: 0.1294600493 | O12: 5118 | P12: 21961 | Q12: 233.9
A13: Note:
A14: $ indicates as on November 30,2020
A15: Source: ICCL

Sheet 32
A1: Table 32: Settlement Statistics for Cash Segment of NCL
A2: Year / Month | B2: No. of Trades (lakh) | C2: Traded Quantity (lakh) | D2: Delivered Quantity (lakh) | E2: Delivered Quantity to Traded Quantity (per cent) | F2: Turnover (₹ crore) | G2: Delivered Value (₹ crore) | H2: Delivered Value to Total Turnover (per cent) | I2: Delivered Quantity in Demat Mode (lakh) | J2: Demat Delivered Quantity to Total Delivered Quantity (per cent) | K2: Delivered Value in Demat Mode (₹ crore) | L2: Demat Delivered Value to Total Delivered Value (per cent) | M2: Short Delivery (Auctioned quantity) (lakh) | N2: Short Delivery to Delivery Quantity (per cent) | O2: Funds Pay-in (₹ crore) | P2: Securities Pay-in (₹ crore) | Q2: Settlement Guarantee Fund (₹ crore)
A3: 2019-20 | B3: 35768.93571 | C3: 5361647.539 | D3: 1067585.125 | E3: 19.91151259 | F3: 9643316.767 | G3: 2077333.032 | H3: 21.54168615 | I3: 1065619.011 | J3: =I3/D3*100 -> 99.81583539 | K3: 2075912.925 | L3: =K3/G3*100 -> 99.93163797 | M3: 1966.104961 | N3: 0.184503555 | O3: 600587.1226 | P3: 2077333.032 | Q3: 302.11
A4: 2020-21$ | B4: =SUM(B5:B16) -> 35093.95705 | C4: =SUM(C5:C16) -> 5482614.744 | D4: =SUM(D5:D16) -> 935843.358 | E4: =D4/C4*100 -> 17.06928905 | F4: =SUM(F5:F16) -> 10118901.34 | G4: 1755169.678 | H4: =G4/F4*100 -> 17.34545698 | I4: 933899.3391 | J4: =I4/D4*100 -> 99.79227091 | K4: 1754052.362 | L4: =K4/G4*100 -> 99.93634143 | M4: 1944.02904 | N4: =M4/D4*100 -> 0.2077301744 | O4: 510519.41 | P4: 1755169.678 | Q4: =Q12 -> 332.28
A5: Apr-20 | B5: 4150.23343 | C5: 468098.4582 | D5: 86142.43144 | E5: 18.40263088 | F5: 926064.656 | G5: 169258.2064 | H5: 18.27714785 | I5: 85960.24117 | J5: 99.78850113 | K5: 169154.0744 | L5: 99.93847743 | M5: 182.19027 | N5: 0.211947137 | O5: 53768.75 | P5: 169258.2064 | Q5: 305.51
A6: May-20 | B6: 3967.31019 | C6: 519841.9523 | D6: 90797.83962 | E6: 17.46643171 | F6: 1049727.142 | G6: 201623.1638 | H6: 19.20719736 | I6: 90650.95584 | J6: 99.83822987 | K6: 201524.1333 | L6: 99.95088337 | M6: 146.88378 | N6: 0.161770126 | O6: 80224.74 | P6: 201623.1638 | Q6: 311.04
A7: Jun-20 | B7: 5341.76629 | C7: 1030660.011 | D7: 155158.8969 | E7: 15.05432395 | F7: 1520003.977 | G7: 249841.2941 | H7: 16.43688423 | I7: 154762.5999 | J7: 99.74458635 | K7: 249657.1294 | L7: 99.92628733 | M7: 396.29711 | N7: 0.256067752 | O7: 75290.96 | P7: 249841.2941 | Q7: 314.78
A8: Jul-20 | B8: 4814.26847 | C8: 805230.8079 | D8: 131916.6938 | E8: 16.38246978 | F8: 1414639.284 | G8: 229927.2805 | H8: 16.25342114 | I8: 131411.9875 | J8: 99.61740528 | K8: 229766.3759 | L8: 99.93001935 | M8: 504.70628 | N8: 0.382594739 | O8: 56586.18 | P8: 229927.2805 | Q8: 316.97
A9: Aug-20 | B9: 4483.88429 | C9: 756614.8117 | D9: 138718.4995 | E9: 18.3340978 | F9: 1339265.102 | G9: 229893.0102 | H9: 17.16560895 | I9: 138575.8913 | J9: 99.89719598 | K9: 229745.5386 | L9: 99.93585207 | M9: 142.60824 | N9: 0.102804053 | O9: 55195.16 | P9: 229893.0102 | Q9: 320.88
A10: Sep-20 | B10: 4506.40921 | C10: 781188.5871 | D10: 123886.2569 | E10: 15.85868751 | F10: 1386253.895 | G10: 235653.7203 | H10: 16.99931889 | I10: 123617.9508 | J10: 99.78342545 | K10: 235469.0494 | L10: 99.92163463 | M10: 268.30609 | N10: 0.217044603 | O10: 64749.96 | P10: 235653.7203 | Q10: 326.93
A11: Oct-20 | B11: 3602.69517 | C11: 487624.5057 | D11: 84937.62982 | E11: 17.41865489 | F11: 1110638.714 | G11: 188341.8331 | H11: 16.95797479 | I11: 84770.60255 | J11: 99.80335304 | K11: 188226.2214 | L11: 99.93861603 | M11: 167.02727 | N11: 0.196646964 | O11: 47858.76 | P11: 188341.8331 | Q11: 329.18
A12: Nov-20 | B12: 4227.39 | C12: 633355.61 | D12: 124285.11 | E12: 19.62 | F12: 1372308.566 | G12: 250631.17 | H12: 18.26347049 | I12: 124149.11 | J12: 99.89057418 | K12: 250509.84 | L12: 99.95159022 | M12: 136.01 | N12: 0.11 | O12: 76844.9 | P12: 250631.17 | Q12: 332.28
A13: Notes:
A14: 1. Settlement Statistics for settlement type N, excluding CM Series IL & BL
A15: $ indicates as on November 30,2020
A16: Source: NCL

Sheet 33
A1: Table 33: Settlement Statistics for Cash Segment of MCCIL
A2: Month Sorting | B2: No. of Trades (Lakh) | C2: Traded Quantity (Lakh) | D2: Delivered Quantity (Lakh) | E2: Delivered Quantity to Traded Quantity (per cent) | F2: Turnover (₹ crore) | G2: Delivered Value (₹ crore) | H2: Delivered Value to Total Turnover (per cent) | I2: Delivered Quantity in Demat Mode (Lakh) | J2: Demat Delivered Quantity to Total Delivered Quantity (per cent) | K2: Delivered Value in Demat Mode (₹ crore) | L2: Demat Delivered Value to Total Delivered Value (per cent) | M2: Funds Pay-in (₹ crore) | N2: Securities Pay-in (₹ crore) | O2: Settlement Guarantee Fund(₹ crore)
A3: 2019-20 | B3: 0.00564 | C3: 10.29321 | D3: 10.29117 | E3: 99.98 | F3: 20.30278834 | G3: 20.30197045 | H3: 100 | I3: 10.29117 | J3: 100 | K3: 20.30197045 | L3: 100 | M3: 20.30197045 | N3: 20.30197045 | O3: 0.35
A4: 2020-21$ | B4: 0 | C4: 0 | D4: 0 | E4: 0 | F4: 0 | G4: 0 | H4: 0 | I4: 0 | J4: 0 | K4: 0 | L4: 0 | M4: 0 | N4: 0 | O4: 0
A5: Apr-20 | B5: 0 | C5: 0 | D5: 0 | E5: 0 | F5: 0 | G5: 0 | H5: 0 | I5: 0 | J5: 0 | K5: 0 | L5: 0 | M5: 0 | N5: 0 | O5: 0
A6: May-20 | B6: 0 | C6: 0 | D6: 0 | E6: 0 | F6: 0 | G6: 0 | H6: 0 | I6: 0 | J6: 0 | K6: 0 | L6: 0 | M6: 0 | N6: 0 | O6: 0
A7: Jun-20 | B7: 0 | C7: 0 | D7: 0 | E7: 0 | F7: 0 | G7: 0 | H7: 0 | I7: 0 | J7: 0 | K7: 0 | L7: 0 | M7: 0 | N7: 0 | O7: 0
A8: Jul-20 | B8: 0 | C8: 0 | D8: 0 | E8: 0 | F8: 0 | G8: 0 | H8: 0 | I8: 0 | J8: 0 | K8: 0 | L8: 0 | M8: 0 | N8: 0 | O8: 0
A9: Aug-20 | B9: 0 | C9: 0 | D9: 0 | E9: 0 | F9: 0 | G9: 0 | H9: 0 | I9: 0 | J9: 0 | K9: 0 | L9: 0 | M9: 0 | N9: 0 | O9: 0
A10: Sep-20 | B10: 0 | C10: 0 | D10: 0 | E10: 0 | F10: 0 | G10: 0 | H10: 0 | I10: 0 | J10: 0 | K10: 0 | L10: 0 | M10: 0 | N10: 0 | O10: 0
A11: Oct-20 | B11: 0 | C11: 0 | D11: 0 | E11: 0 | F11: 0 | G11: 0 | H11: 0 | I11: 0 | J11: 0 | K11: 0 | L11: 0 | M11: 0 | N11: 0 | O11: 0
A12: Nov-20 | B12: 0 | C12: 0 | D12: 0 | E12: 0 | F12: 0 | G12: 0 | H12: 0 | I12: 0 | J12: 0 | K12: 0 | L12: 0 | M12: 0 | N12: 0 | O12: 0
A13: Note:
A14: $ indicates as on November 30,2020
A15: Source: MCCIL

Sheet 34
A1: Table 34: Trends in Equity Derivatives Segment at BSE (Turnover in Notional Value)
A2: Year/ Month | B2: No. of Trading Days | C2: Index Futures | E2: Stock Futures | G2: Index Options | K2: Stock Options | O2: Total | Q2: Open Interest at the end of Month
G3: Call | I3: Put | K3: Call | M3: Put
C4: No. of Contracts | D4: Turnover (₹ crore) | E4: No. of Contracts | F4: Turnover (₹ crore) | G4: No. of Contracts | H4: Turnover (₹ crore) | I4: No. of Contracts | J4: Turnover (₹ crore) | K4: No. of Contracts | L4: Turnover (₹ crore) | M4: No. of Contracts | N4: Turnover (₹ crore) | O4: No. of Contracts | P4: Turnover (₹ crore) | Q4: No. of contracts | R4: Turnover (₹ crore)
A5: 2019-20 | B5: 247 | C5: 150212 | D5: 14933.63793 | E5: 2983 | F5: 162.9625575 | G5: 2032161 | H5: 200440.0551 | I5: 480178 | J5: 45522.52057 | K5: 8473 | L5: 626.1080054 | M5: 7876 | N5: 583.2430748 | O5: 2681883 | P5: 262268.5172 | Q5: 515 | R5: 37.94
A6: 2020-21$ | B6: =SUM(B7:B18) -> 166 | C6: 42736 | D6: 3801.892884 | E6: 0 | F6: 0 | G6: 72985787 | H6: 7155706.52 | I6: 72470871 | J6: 6015748.906 | K6: 0 | L6: 0 | M6: 0 | N6: 0 | O6: 145499394 | P6: 13175257.31 | Q6: =Q14 -> 4575 | R6: =R14 -> 1393.761054
A7: Apr-20 | B7: 18 | C7: 962 | D7: 77.77 | E7: 0 | F7: 0 | G7: 995903 | H7: 87578.38 | I7: 309028 | J7: 21493.72 | K7: 0 | L7: 0 | M7: 0 | N7: 0 | O7: 1305893 | P7: 109149.87 | Q7: 2407 | R7: 202.9
A8: May-20 | B8: 19 | C8: 4144 | D8: 326.38 | E8: 0 | F8: 0 | G8: 1218595 | H8: 107799.6 | I8: 142492 | J8: 9623.57 | K8: 0 | L8: 0 | M8: 0 | N8: 0 | O8: 1365231 | P8: 117749.55 | Q8: 971 | R8: 78.71
A9: Jun-20 | B9: 22 | C9: 1747 | D9: 145.84 | E9: 0 | F9: 0 | G9: 106 | H9: 8.98 | I9: 0 | J9: 0 | K9: 0 | L9: 0 | M9: 0 | N9: 0 | O9: 1853 | P9: 154.82 | Q9: 81 | R9: 6.54
A10: Jul-20 | B10: 23 | C10: 7735 | D10: 663.89 | E10: 0 | F10: 0 | G10: 3256827 | H10: 297616.75 | I10: 3893948 | J10: 304232.15 | K10: 0 | L10: 0 | M10: 0 | N10: 0 | O10: 7158510 | P10: 602512.78 | Q10: 4045 | R10: 352.49
A11: Aug-20 | B11: 21 | C11: 6025 | D11: 536.5 | E11: 0 | F11: 0 | G11: 11023986 | H11: 1047508 | I11: 10361093 | J11: 800072.42 | K11: 0 | L11: 0 | M11: 0 | N11: 0 | O11: 21391104 | P11: 1848116.92 | Q11: 8217 | R11: 735.07
A12: 2020-09-01 | B12: 22 | C12: 8832 | D12: 786.6443497 | E12: 0 | F12: 0 | G12: 20820481 | H12: 1992957.129 | I12: 8975662 | J12: 732822.8756 | K12: 0 | L12: 0 | M12: 0 | N12: 0 | O12: 29804975 | P12: 2726566.649 | Q12: 3589 | R12: 318.1858456
A13: Oct-20 | B13: 21 | C13: 7543 | D13: 699.6108199 | E13: 0 | F13: 0 | G13: 17657324 | H13: 1740130.117 | I13: 20007431 | J13: 1651682.527 | K13: 0 | L13: 0 | M13: 0 | N13: 0 | O13: 37672298 | P13: 3392512.256 | Q13: 3842 | R13: 351.4300452
A14: Nov-20 | B14: 20 | C14: 5748 | D14: 565.2577147 | E14: 0 | F14: 0 | G14: 18012565 | H14: 1882107.564 | I14: 28781217 | J14: 2495821.643 | K14: 0 | L14: 0 | M14: 0 | N14: 0 | O14: 46799530 | P14: 4378494.464 | Q14: 4575 | R14: 1393.761054
A15: Notes:
A16: 1. Notional Turnover = (Strike Price + Premium) * Quantity.
A17: $ indicates as on November 30,2020
A18: Source: BSE.

Sheet 35
A1: Table 35: Trends in Equity Derivatives Segment at NSE (Turnover in Notional Value)
A2: Year/ Month | B2: No. of Trading Days | C2: Index Futures | E2: Stock Futures | G2: Index Options | K2: Stock Options | O2: Total | Q2: Open Interest at the end of Month
G3: Call | I3: Put | K3: Call | M3: Put
C4: No. of Contracts | D4: Turnover (₹ crore) | E4: No. of Contracts | F4: Turnover (₹ crore) | G4: No. of Contracts | H4: Turnover (₹ crore) | I4: No. of Contracts | J4: Turnover (₹ crore) | K4: No. of Contracts | L4: Turnover (₹ crore) | M4: No. of Contracts | N4: Turnover (₹ crore) | O4: No. of Contracts | P4: Turnover (₹ crore) | Q4: No. of Contracts | R4: Turnover (₹ crore)
A5: 2019-20 | B5: 247 | C5: 94472538 | D5: 6677312.049 | E5: 256643910 | F5: 14874729.23 | G5: 2480471005 | H5: 169696653.7 | I5: 2095899292 | J5: 140995315.6 | K5: 125587962 | L5: 8003236.696 | M5: 72247170 | N5: 4285644.518 | O5: 5125321877 | P5: 344532891.8 | Q5: 3162958 | R5: 163121.89
A6: 2020-21$ | B6: =SUM(B7:B19) -> 166 | C6: =SUM(C7:C19) -> 92955101 | D6: 5799564.484 | E6: 172377584 | F6: 11106430.1 | G6: 2446385348 | H6: 157515456.9 | I6: 2181951050 | J6: 136899998.3 | K6: 128578955 | L6: 9634234.999 | M6: 63315514 | N6: 4260190.906 | O6: 5085563552 | P6: 325215875.8 | Q6: =Q14 -> 4595869 | R6: =R14 -> 384434.03
A7: Apr-20 | B7: 18 | C7: 11339332 | D7: 594715.5188 | E7: 19476580 | F7: 954968.9956 | G7: 194547845 | H7: 10077297.86 | I7: 170934639 | J7: 8385702.654 | K7: 8039630 | L7: 446624.8999 | M7: 4593986 | N7: 224068.5075 | O7: 408932012 | P7: 20683378.43 | Q7: 2874264 | R7: 170257.67
A8: May-20 | B8: 19 | C8: 12843909 | D8: 640625.0185 | E8: 22573353 | F8: 1118023.583 | G8: 247931778 | H8: 12205317.18 | I8: 211059297 | J8: 9947263.235 | K8: 10850597 | L8: 613231.5285 | M8: 6115405 | N8: 307470.4877 | O8: 511374339 | P8: 24831931.03 | Q8: 3707494 | R8: 207782.64
A9: Jun-20 | B9: 22 | C9: 15478384 | D9: 859740.7973 | E9: 26276560 | F9: 1455365.732 | G9: 315751153 | H9: 17914117.94 | I9: 274665301 | J9: 14986695.93 | K9: 16288049 | L9: 1004821.518 | M9: 8934064 | N9: 489038.4222 | O9: 657393511 | P9: 36709780.34 | Q9: 4366903 | R9: 287861.11
A10: Jul-20 | B10: 23 | C10: 11772248 | D10: 777191.3336 | E10: 22710216 | F10: 1574937.356 | G10: 352353120 | H10: 21236714.83 | I10: 306566670 | J10: 18239374.29 | K10: 18843923 | L10: 1466518.213 | M10: 8956614 | N10: 640972.4566 | O10: 721202791 | P10: 43935708.49 | Q10: 4086465 | R10: 295273.53
A11: Aug-20 | B11: 21 | C11: 9211071 | D11: 621182.5908 | E11: 20582172 | F11: 1478175.953 | G11: 272955256 | H11: 18650461.92 | I11: 248776124 | J11: 16724302.85 | K11: 17535138 | L11: 1370741.004 | M11: 8110037 | N11: 584505.1762 | O11: 577169798 | P11: 39429369.49 | Q11: 4589201 | R11: 340564.43
A12: Sep-20 | B12: 22 | C12: 11161701 | D12: 740669.2842 | E12: 20622408 | F12: 1535447.634 | G12: 335641868 | H12: 22765319.58 | I12: 306427676 | J12: 20183965.61 | K12: 18581654 | L12: 1577042.183 | M12: 8457379 | N12: 652074.085 | O12: 700892686 | P12: 47454518.38 | Q12: 5135777 | R12: 370433.46
A13: Oct-20 | B13: 21 | C13: 10631893 | D13: 739099.3359 | E13: 19384435 | F13: 1446063.754 | G13: 382280696 | H13: 27046687.93 | I13: 346958115 | J13: 23856847.19 | K13: 18552773 | L13: 1545489.776 | M13: 8585986 | N13: 647436.2852 | O13: 786393898 | P13: 55281624.27 | Q13: 4190150 | R13: 306997.98
A14: Nov-20 | B14: 20 | C14: 10516563 | D14: 826340.6053 | E14: 20751860 | F14: 1543447.097 | G14: 344923632 | H14: 27619539.7 | I14: 316563228 | J14: 24575846.58 | K14: 19887191 | L14: 1609765.877 | M14: 9562043 | N14: 714625.4854 | O14: 722204517 | P14: 56889565.34 | Q14: 4595869 | R14: 384434.03
A15: Notes:
A16: 1. Notional Turnover = (Strike Price + Premium) * Quantity.
A17: $ indicates as on November 30,2020
A18: Source: NSE.

Sheet 36
A1: Table 36: Settlement Statistics in Equity Derivatives Segment
M2: (₹ crore)
A3: Year/ Month | B3: BSE | H3: NSE
B4: Index/Stock Futures | D4: Index/Stock Options | F4: Total | G4: Settlement Gurantee Fund | H4: Index/Stock Futures | J4: Index/Stock Options | L4: Total | M4: Settlement Gurantee Fund
B5: MTM Settlement | C5: Final Settlement | D5: Premium Settlement | E5: Exercise Settlement | H5: MTM Settlement | I5: Final Settlement | J5: Premium Settlement | K5: Exercise Settlement
A6: 2019-20 | B6: 1778.49 | C6: 95.27 | D6: 1165.6 | E6: 10.91 | F6: =SUM(B6:E6) -> 3050.27 | G6: 21.81 | H6: 13384.32667 | I6: 188.74 | J6: 2131.820833 | K6: 532.0716667 | L6: =SUM(H6:K6) -> 16236.95917 | M6: 2211.84
A7: 2020-21$ | B7: =SUM(B8:B18) -> 3286.78 | C7: =SUM(C8:C18) -> 88.39 | D7: =SUM(D8:D18) -> 17182.4 | E7: =SUM(E8:E18) -> 35.12 | F7: =SUM(B7:E7) -> 20592.69 | G7: =G15 -> 23.52 | H7: =SUM(H8:H18) -> 93172.14 | I7: =SUM(I8:I18) -> 1348.82 | J7: =SUM(J8:J18) -> 18160.68 | K7: =SUM(K8:K18) -> 3682.7 | L7: =SUM(H7:K7) -> 116364.34 | M7: =M15 -> 2405.56
A8: Apr-20 | B8: 135.52 | C8: 5.79 | D8: 173.72 | E8: 1.8 | F8: =SUM(B8:E8) -> 316.83 | G8: 21.93 | H8: 15832.02 | I8: 370.66 | J8: 1809.08 | K8: 431.1 | L8: 18442.86 | M8: 2231.74
A9: May-20 | B9: 123.84 | C9: 4.07 | D9: 197.23 | E9: 0.84 | F9: 325.98 | G9: 22.07 | H9: 12028.16 | I9: 187.57 | J9: 1889.56 | K9: 261.09 | L9: 14366.38 | M9: 2244.09
A10: Jun-20 | B10: 179.15 | C10: 2.75 | D10: 299.07 | E10: 2.62 | F10: 483.59 | G10: 22.3 | H10: 12911.59 | I10: 74.19 | J10: 2510.98 | K10: 494.02 | L10: 15990.78 | M10: 2268.39
A11: Jul-20 | B11: 399.43 | C11: 13.89 | D11: 2411.55 | E11: 7.16 | F11: 2832.03 | G11: 22.56 | H11: 12046.91 | I11: 117.66 | J11: 2450.49 | K11: 478.65 | L11: 15093.71 | M11: 2283.26
A12: Aug-20 | B12: 538.19 | C12: 9.34 | D12: 2814.84 | E12: 3.41 | F12: 3365.78 | G12: 22.84 | H12: 8945.99 | I12: 71.53 | J12: 2028.28 | K12: 367.69 | L12: 11413.49 | M12: 2309.02
A13: Sep-20 | B13: 730.73 | C13: 25.69 | D13: 3422.68 | E13: 3.88 | F13: 4182.98 | G13: 23.05 | H13: 11829.12 | I13: 368.53 | J13: 2499.11 | K13: 373.22 | L13: 15069.98 | M13: 2341.41
A14: Oct-20 | B14: 472.78 | C14: 5.3 | D14: 3723.07 | E14: 6.92 | F14: 4208.07 | G14: 23.27 | H14: 8658.34 | I14: 76.18 | J14: 2445.66 | K14: 531.69 | L14: 11711.87 | M14: 2374.6
A15: Nov-20 | B15: 707.14 | C15: 21.56 | D15: 4140.24 | E15: 8.49 | F15: 4877.43 | G15: 23.52 | H15: 10920.01 | I15: 82.5 | J15: 2527.52 | K15: 745.24 | L15: 14275.27 | M15: 2405.56
A16: Note:
A17: $ indicates as on November 30, 2020
A18: Source: ICCL and NCL

Sheet 37
A1: Table 37: Category-wise Share of Turnover & Open Interest in Equity Derivative Segment of BSE
A2: Year/Month | B2: Percentage Share in Turnover | G2: Percentage Share in Open Interest
B3: Pro | C3: FPI | D3: Mutual Funds | E3: Banks | F3: Others | G3: Pro | H3: FPI | I3: Mutual Funds | J3: Banks | K3: Others
A4: 2019-20 | B4: 85.56766144 | C4: 0.05581012085 | D4: 0 | E4: 0 | F4: 14.37652843 | G4: 52.91 | H4: 0 | I4: 0 | J4: 0 | K4: 47.09
A5: 2020-21$ | B5: 92.92647389 | C5: 2.323716049e-05 | D5: 0 | E5: 0 | F5: 7.073502877 | G5: 94.99453552 | H5: 0 | I5: 0 | J5: 0 | K5: 5.005464481
A6: Apr-20 | B6: 99.97996137 | C6: 0 | D6: 0 | E6: 0 | F6: 0.02003863431 | G6: 49.89 | H6: 0 | I6: 0 | J6: 0 | K6: 50.11
A7: May-20 | B7: 99.91851531 | C7: 0 | D7: 0 | E7: 0 | F7: 0.08148469162 | G7: 74.46 | H7: 0 | I7: 0 | J7: 0 | K7: 25.54
A8: Jun-20 | B8: 68.20506565 | C8: 0.1045633988 | D8: 0 | E8: 0 | F8: 31.69037095 | G8: 50 | H8: 0 | I8: 0 | J8: 0 | K8: 50
A9: Jul-20 | B9: 93.08709533 | C9: 0 | D9: 0 | E9: 0 | F9: 6.912904673 | G9: 84.4 | H9: 0 | I9: 0 | J9: 0 | K9: 15.6
A10: Aug-20 | B10: 92.33086116 | C10: 3.168263434e-05 | D10: 0 | E10: 0 | F10: 7.669107161 | G10: 72.78 | H10: 0.01 | I10: 0 | J10: 0 | K10: 27.21
A11: Sep-20 | B11: 86.75312298 | C11: 4.155011213e-05 | D11: 0 | E11: 0 | F11: 13.24683547 | G11: 97.54806353 | H11: 0 | I11: 0 | J11: 0 | K11: 2.451936473
A12: Oct-20 | B12: 94.54867332 | C12: 2.748919693e-06 | D12: 0 | E12: 0 | F12: 5.451323934 | G12: 94.23477356 | H12: 0 | I12: 0 | J12: 0 | K12: 5.765226445
A13: Nov-20 | B13: 95.38013398 | C13: 2.484842984e-05 | D13: 0 | E13: 0 | F13: 4.619841167 | G13: 94.99453552 | H13: 0 | I13: 0 | J13: 0 | K13: 5.005464481
A14: Note:
A15: $ indicates as on November 30,2020
A16: Source: BSE.

Sheet 38
A1: Table 38: Category-wise Share of Turnover & Open Interest in Equity Derivative Segment of NSE
A2: Year/Month | B2: Percentage Share in Turnover | G2: Percentage Share in Open Interest
B3: Pro | C3: FPIs | D3: Mutual Funds | E3: Banks | F3: Others | G3: Pro | H3: FPIs | I3: Mutual Funds | J3: Banks | K3: Others
A4: 2019-20 | B4: 33.19 | C4: 19.25 | D4: 0.29 | E4: 0 | F4: 47.27 | G4: 11.46 | H4: 30.9 | I4: 15.99 | J4: 0 | K4: 41.65
A5: 2020-21$ | B5: 38.87 | C5: 14.17 | D5: 0.18 | E5: 0 | F5: 46.78 | G5: 17.06 | H5: 24.26 | I5: 9.35 | J5: 0 | K5: 49.33
A6: Apr-20 | B6: 32.37 | C6: 17.2 | D6: 0.29 | E6: 0 | F6: 50.14 | G6: 11.99 | H6: 33.98 | I6: 15.95 | J6: 0 | K6: 38.08
A7: May-20 | B7: 34.69 | C7: 17.84 | D7: 0.29 | E7: 0 | F7: 47.18 | G7: 14.18 | H7: 29.9 | I7: 15.22 | J7: 0 | K7: 40.7
A8: Jun-20 | B8: 35.22 | C8: 18.45 | D8: 0.22 | E8: 0 | F8: 46.11 | G8: 17.14 | H8: 24.27 | I8: 10.68 | J8: 0 | K8: 47.91
A9: Jul-20 | B9: 36.39 | C9: 15.77 | D9: 0.17 | E9: 0 | F9: 47.67 | G9: 16.76 | H9: 24.26 | I9: 10.94 | J9: 0 | K9: 48.04
A10: Aug-20 | B10: 40.1 | C10: 12.72 | D10: 0.18 | E10: 0 | F10: 46.99 | G10: 18.71 | H10: 23.37 | I10: 9.22 | J10: 0 | K10: 48.7
A11: Sep-20 | B11: 41.45 | C11: 12.18 | D11: 0.15 | E11: 0 | F11: 46.22 | G11: 17.78 | H11: 20.68 | I11: 8.31 | J11: 0 | K11: 53.23
A12: Oct-20 | B12: 41.52 | C12: 11.74 | D12: 0.12 | E12: 0 | F12: 46.61 | G12: 16.46 | H12: 24.24 | I12: 10.47 | J12: 0 | K12: 48.83
A13: Nov-20 | B13: 41.76 | C13: 12.5 | D13: 0.14 | E13: 0 | F13: 45.6 | G13: 17.06 | H13: 24.26 | I13: 9.35 | J13: 0 | K13: 49.33
A14: Note:
A15: $ indicates as on November 30,2020
A16: Source: NSE.

Sheet 39
A1: Table 39: Instrument-wise Turnover in Index Derivatives at BSE
A2: (per cent)
A3: Year/Month | B3: BSE 30 SENSEX | C3: BSE SENSEX 50 | D3: BSE BANKEX
A4: 2019-20 | B4: 100 | C4: 0 | D4: 0
A5: 2020-21$ | B5: 2.815649762 | C5: 97.18435024 | D5: 0
A6: Apr-20 | B6: 100 | C6: 0 | D6: 0
A7: May-20 | B7: 100 | C7: 0 | D7: 0
A8: Jun-20 | B8: 16.84 | C8: 83.16 | D8: 0
A9: Jul-20 | B9: 0 | C9: 100 | D9: 0
A10: Aug-20 | B10: 0 | C10: 100 | D10: 0
A11: 2020-09-01 | B11: 0 | C11: 100 | D11: 0
A12: Oct-20 | B12: 0 | C12: 100 | D12: 0
A13: Nov-20 | B13: 0 | C13: 100 | D13: 0
A14: Note:
A15: $ indicates as on November 30,2020
A16: Source: BSE.

Sheet 40
A1: Table 40: Instrument-wise Turnover in Index Derivatives at NSE
A2: (per cent)
A3: Year/Month | B3: NIFTY | C3: NIFTYIT | D3: BANKNIFTY
A4: 2019-20 | B4: 39.00682103 | C4: 0.000950863 | D4: 60.99222811
A5: 2020-21$ | B5: 47.2827 | C5: 0.0001 | D5: 52.7172
A6: Apr-20 | B6: 49.58862541 | C6: 0.000317859 | D6: 50.41105673
A7: May-20 | B7: 46.98981117 | C7: 0.000217366 | D7: 53.00997146
A8: Jun-20 | B8: 54.36552644 | C8: 0.000127041 | D8: 45.63434652
A9: Jul-20 | B9: 49.9388868 | C9: 0 | D9: 50.0611132
A10: Aug-20 | B10: 49.84197013 | C10: 0 | D10: 50.15802987
A11: Sep-20 | B11: 47.36399509 | C11: 0 | D11: 52.63600491
A12: Oct-20 | B12: 45.15246348 | C12: 0 | D12: 54.84753652
A13: Nov-20 | B13: 40.324 | C13: 0 | D13: 59.676
A14: Note:
A15: $ indicates as on November 30, 2020
A16: Source: NSE.

Sheet 41
A1: Table 41: Trends in Currency Derivatives Segment at BSE
A2: Year/ Month | B2: No. of Trading Days | C2: Currency Futures | E2: Currency Options | I2: Total | K2: Open Interest at the end of the Month**
E3: Call | G3: Put
C4: No. of Contracts | D4: Turnover (₹ crore) | E4: No. of Contracts | F4: Turnover (₹ crore) | G4: No. of Contracts | H4: Turnover (₹ crore) | I4: No. of Contracts | J4: Turnover * (₹ crore) | K4: No. of Contracts | L4: Value (₹ crore)
A5: 2019-20 | B5: 243 | C5: 400927037 | D5: 2852910.86 | E5: 214693422 | F5: 1538428.304 | G5: 328897100 | H5: 2291934.592 | I5: 944517559 | J5: 6683273.756 | K5: 2288248 | L5: 17251.47
A6: 2020-21$ | B6: =SUM(B7:B19) -> 163 | C6: 176960089 | D6: 1325744.017 | E6: 96955496 | F6: 739257.8167 | G6: 150875399 | H6: 1109104.268 | I6: 424790984 | J6: 3174106.112 | K6: =K14 -> 950779 | L6: =L14 -> 7083.378475
A7: Apr-20 | B7: 17 | C7: 18156395 | D7: 138820.29 | E7: 6476787 | F7: 50460.69 | G7: 10892155 | H7: 81863.4 | I7: 35525337 | J7: 271144.38 | K7: 1273915 | L7: 9570.37
A8: May-20 | B8: 18 | C8: 17436081 | D8: 132222.55 | E8: 9017175 | F8: 69915.06 | G8: 14011006 | H8: 104007.3 | I8: 40464262 | J8: 306144.9 | K8: 678398 | L8: 5151.87
A9: Jun-20 | B9: 22 | C9: 23756034 | D9: 180393.67 | E9: 15910793 | F9: 123085.45 | G9: 21994582 | H9: 163766.07 | I9: 61661409 | J9: 467245.2 | K9: 712652 | L9: 5394.75
A10: Jul-20 | B10: 23 | C10: 25338836 | D10: 190382.76 | E10: 10697892 | F10: 81976.56 | G10: 22387440 | H10: 164807.01 | I10: 58424168 | J10: 437166.34 | K10: 639219 | L10: 4839.72
A11: Aug-20 | B11: 21 | C11: 22489598 | D11: 168111.03 | E11: 17886515 | F11: 136249.15 | G11: 20029214 | H11: 147430.08 | I11: 60405327 | J11: 451790.26 | K11: 806498 | L11: 5966.81
A12: Sep-20 | B12: 22 | C12: 25789498 | D12: 189948.5215 | E12: 14614903 | F12: 109555.8563 | G12: 17967576 | H12: 129973.0131 | I12: 58371977 | J12: 429477.3909 | K12: 1051011 | L12: 7777.820635
A13: Oct-20 | B13: 20 | C13: 21085186 | D13: 155309.5278 | E13: 11320525 | F13: 84755.8858 | G13: 23298862 | H13: 168825.3352 | I13: 55704573 | J13: 408890.7488 | K13: 789087 | L13: 5854.094708
A14: Nov-20 | B14: 20 | C14: 22908461 | D14: 170555.6681 | E14: 11030906 | F14: 83259.1646 | G14: 20294564 | H14: 148432.0594 | I14: 54233931 | J14: 402246.8921 | K14: 950779 | L14: 7083.378475
A15: Note:
A16: 1. * Notional Turnover
A17: 2. ** OI data is at BSE level.
A18: $ indicates as on November 30,2020
A19: Source: BSE

Sheet 42
A1: Table 42: Trends in Currency Derivatives Segment at NSE
A2: Year/ Month | B2: No. of Trading Days | C2: Currency Futures | E2: Currency Options | I2: Total | K2: Open Interest at the end of Month*
C3: No. of Contracts | D3: Turnover (₹ crore) | E3: Call | G3: Put | I3: No. of Contracts | J3: Turnover (₹ crore) | K3: No. of Contracts | L3: Value (₹ crore)
E4: No. of Contracts | F4: Turnover (₹ crore) | G4: No. of Contracts | H4: Turnover (₹ crore)
A5: 2019-20 | B5: 243 | C5: 660128849 | D5: 4806639.44 | E5: 352374185 | F5: 2520679.83 | G5: 327759150 | H5: 2327074.499 | I5: 1340262184 | J5: 9654393.768 | K5: 6826565 | L5: 51810.07977
A6: 2020-21$ | B6: =SUM(B7:B19) -> 163 | C6: 462612921 | D6: 3594184.113 | E6: 265513920 | F6: 1996030.375 | G6: 244899945 | H6: 1826879.159 | I6: 973026786 | J6: 7417093.648 | K6: =K14 -> 5694357 | L6: =L14 -> 43011.45558
A7: Apr-20 | B7: 17 | C7: 48012637 | D7: 372205.4691 | E7: 22067309 | F7: 169628.2971 | G7: 20327816 | H7: 154448.6911 | I7: 90407762 | J7: 696282.4572 | K7: 4263641 | L7: 32203.75428
A8: May-20 | B8: 18 | C8: 47443900 | D8: 367808.5477 | E8: 26027374 | F8: 198497.3371 | G8: 21602048 | H8: 163221.3511 | I8: 95073322 | J8: 729527.2358 | K8: 3650637 | L8: 27865.66065
A9: Jun-20 | B9: 22 | C9: 58286091 | D9: 456224.9641 | E9: 34559311 | F9: 263411.8262 | G9: 30334567 | H9: 229533.2793 | I9: 123179969 | J9: 949170.0696 | K9: 4593310 | L9: 35033.71025
A10: Jul-20 | B10: 23 | C10: 55160793 | D10: 429355.0447 | E10: 35967687 | F10: 271284.1032 | G10: 32389301 | H10: 242756.524 | I10: 123517781 | J10: 943395.6719 | K10: 4149989 | L10: 31789.24291
A11: Aug-20 | B11: 21 | C11: 57090417 | D11: 447196.3822 | E11: 36908748 | F11: 276899.2195 | G11: 33912469 | H11: 252768.7278 | I11: 127911634 | J11: 976864.3295 | K11: 5261518 | L11: 39274.37002
A12: Sep-20 | B12: 22 | C12: 70415755 | D12: 543128.3976 | E12: 40102425 | F12: 296868.9543 | G12: 38109897 | H12: 280076.2378 | I12: 148628077 | J12: 1120073.59 | K12: 5393259 | L12: 40182.18915
A13: Oct-20 | B13: 20 | C13: 60003856 | D13: 463941.2597 | E13: 36269425 | F13: 268329.9646 | G13: 33365914 | H13: 245397.0578 | I13: 129639195 | J13: 977668.2821 | K13: 4976914 | L13: 37495.17169
A14: Nov-20 | B14: 20 | C14: 66199472 | D14: 514324.0483 | E14: 33611641 | F14: 251110.6733 | G14: 34857933 | H14: 258677.29 | I14: 134669046 | J14: 1024112.012 | K14: 5694357 | L14: 43011.45558
A15: Notes:
A16: 1. Trading Value :- For Futures, Value of contract = Traded Qty*Traded Price. 2. For Options, Value of contract = Traded Qty*(Strike Price+Traded Premium)
A17: 2. *Open Interest provided in Table No. 42 is at NSE Clearing Limited level, while in Table 46 it is at NSE Level. Hence, the difference in number/value between the two tables.
A18: $ indicates as on November 30,2020
A19: Source: NSE.

Sheet 43
A1: Table 43: Trends in Currency Derivatives Segment at MSEI
A2: Year/ Month | B2: No. of Trading Days | C2: Currency Futures | E2: Currency Options | I2: Total | K2: Open Interest at the end of Month
C3: No. of Contracts | D3: Turnover (₹ crore) | E3: Call | G3: Put | I3: No. of Contracts | J3: Turnover (₹ crore) | K3: No. of Contracts | L3: Value (₹ crore)
E4: No. of Contracts | F4: Turnover (₹ crore) | G4: No. of Contracts | H4: Turnover (₹ crore)
A5: 2019-20 | B5: 243 | C5: 5783785 | D5: 41521.07034 | E5: 234838 | F5: 1757.805652 | G5: 273575 | H5: 2045.642963 | I5: 6292198 | J5: 45324.51895 | K5: 6073 | L5: 45.977366
A6: 2020-21$ | B6: =SUM(B7:B17) -> 163 | C6: 5901826 | D6: 43959.14263 | E6: 2461 | F6: 18.75042925 | G6: 3918 | H6: 28.41435425 | I6: 5908205 | J6: 44006.30742 | K6: =K14 -> 42379 | L6: =L14 -> 320.4132215
A7: Apr-20 | B7: 17 | C7: 233754 | D7: 1785.281421 | E7: 0 | F7: 0 | G7: 0 | H7: 0 | I7: 233754 | J7: 1785.281421 | K7: 22075 | L7: 166.2475233
A8: May-20 | B8: 18 | C8: 224568 | D8: 1702.423434 | E8: 0 | F8: 0 | G8: 0 | H8: 0 | I8: 224568 | J8: 1702.423434 | K8: 9679 | L8: 73.87971375
A9: Jun-20 | B9: 22 | C9: 375979 | D9: 2854.251227 | E9: 0 | F9: 0 | G9: 0 | H9: 0 | I9: 375979 | J9: 2854.251227 | K9: 15683 | L9: 119.1682203
A10: Jul-20 | B10: 23 | C10: 537915 | D10: 4042.220182 | E10: 565 | F10: 4.20091625 | G10: 2500 | H10: 18.001125 | I10: 540980 | J10: 4064.422224 | K10: 13180 | L10: 99.83725175
A11: Aug-20 | B11: 21 | C11: 706873 | D11: 5291.398713 | E11: 0 | F11: 0 | G11: 0 | H11: 0 | I11: 706873 | J11: 5291.398713 | K11: 14445 | L11: 106.699082
A12: Sep-20 | B12: 22 | C12: 934628 | D12: 6884.906372 | E12: 500 | F12: 3.709925 | G12: 0 | H12: 0 | I12: 935128 | J12: 6888.616297 | K12: 18028 | L12: 134.462391
A13: Oct-20 | B13: 20 | C13: 1232325 | D13: 9067.622706 | E13: 530 | F13: 4.40069 | G13: 429 | H13: 3.17786975 | I13: 1233284 | J13: 9075.201266 | K13: 12722 | L13: 95.381642
A14: Nov-20 | B14: 20 | C14: 1655784 | D14: 12331.03858 | E14: 866 | F14: 6.438898 | G14: 989 | H14: 7.2353595 | I14: 1657639 | J14: 12344.71283 | K14: 42379 | L14: 320.4132215
A15: Note:
A16: $ indicates as on November 30, 2020
A17: Source: MSEI

Sheet 44
A1: Table 44: Settlement Statistics of Currency Derivatives Segment
P2: (₹ crore)
A3: Year/ Month | B3: BSE | F3: Total | G3: NSE | K3: Total | L3: MSEI | P3: Total
B4: Currency Futures | D4: Currency Options | G4: Currency Futures | I4: Currency Options | L4: Currency Futures | N4: Currency Options
B5: MTM Settlement | C5: Final Settlement | D5: Premium Settlement | E5: Exercise Settlement | G5: MTM Settlement | H5: Final Settlement | I5: Premium Settlement | J5: Exercise Settlement | L5: MTM Settlement | M5: Final Settlement | N5: Premium Settlement | O5: Exercise Settlement
A6: 2019-20 | B6: 7222.5 | C6: 246.08 | D6: 5002.79 | E6: 76.14 | F6: 12547.51 | G6: 9038.768458 | H6: 266.0063539 | I6: 1351.724861 | J6: 553.3603328 | K6: 11209.86001 | L6: 95.838627 | M6: 6.3884943 | N6: 0.03864 | O6: 0.001099 | P6: 102.2668603
A7: 2020-21$ | B7: =SUM(B8:B18) -> 3879.88 | C7: =SUM(C8:C18) -> 71.18 | D7: 3269.65 | E7: 70.39 | F7: 7291.1 | G7: 4765.143508 | H7: 83.09496656 | I7: 813.6445884 | J7: 263.8986164 | K7: 5925.781679 | L7: 64.5156555 | M7: 3.52964 | N7: 0 | O7: 0 | P7: 68.0452955
A8: Apr-20 | B8: 1122.19 | C8: 12.14 | D8: 322.03 | E8: 8.34 | F8: 1464.7 | G8: 1732.109531 | H8: 17.21189787 | I8: 118.462208 | J8: 30.03236269 | K8: 1897.816 | L8: 7.94 | M8: 0.317 | N8: 0 | O8: 0 | P8: 8.257
A9: May-20 | B9: 457.51 | C9: 4 | D9: 312.09 | E9: 3.94 | F9: 777.54 | G9: 555.4863765 | H9: 4.48651009 | I9: 79.32699225 | J9: 16.69789311 | K9: 655.9977719 | L9: 12.65 | M9: 0.08 | N9: 0 | O9: 0 | P9: 12.73
A10: Jun-20 | B10: 288.4 | C10: 4.17 | D10: 334.02 | E10: 4.12 | F10: 630.71 | G10: 360.420067 | H10: 6.89482765 | I10: 89.0823845 | J10: 23.39430685 | K10: 479.791586 | L10: 6.38675425 | M10: 0.759 | N10: 0 | O10: 0 | P10: 7.14575425
A11: Jul-20 | B11: 371.52 | C11: 5.94 | D11: 417.16 | E11: 12.75 | F11: 807.37 | G11: 459.9738062 | H11: 9.04366264 | I11: 95.1821375 | J11: 52.27005394 | K11: 616.4696603 | L11: 4.2533475 | M11: 0.35235 | N11: 0 | O11: 0 | P11: 4.6056975
A12: Aug-20 | B12: 475.56 | C12: 6.14 | D12: 387.25 | E12: 6.53 | F12: 875.48 | G12: 461.1963631 | H12: 6.28521737 | I12: 97.78292362 | J12: 27.03628371 | K12: 592.3007878 | L12: 16.86103975 | M12: 0.43605 | N12: 0 | O12: 0 | P12: 17.29708975
A13: Sep-20 | B13: 394.99 | C13: 6.53 | D13: 520.28 | E13: 9.37 | F13: 931.17 | G13: 359.4922178 | H13: 8.21595396 | I13: 119.6771298 | J13: 34.74313207 | K13: 522.1284336 | L13: 5.99906175 | M13: 0.2984 | N13: 0 | O13: 0 | P13: 6.29746175
A14: Oct-20 | B14: 418.49 | C14: 23.89 | D14: 448.51 | E14: 12.54 | F14: 903.43 | G14: 422.6009371 | H14: 23.10388582 | I14: 100.0689888 | J14: 38.28261217 | K14: 584.0564239 | L14: 2.11479825 | M14: 0.7914 | N14: 0 | O14: 0 | P14: 2.90619825
A15: Nov-20 | B15: 351.22 | C15: 8.37 | D15: 528.31 | E15: 12.8 | F15: 900.7 | G15: 413.8642087 | H15: 7.85301116 | I15: 114.061824 | J15: 41.44197189 | K15: 577.2210157 | L15: 8.310654 | M15: 0.49544 | N15: 0 | O15: 0 | P15: 8.806094
A16: Note:
A17: $ indicates as on November 30, 2020
A18: Source: ICCL, NCL and MCCIL.

Sheet 45
A1: Table 45: Instrument-wise Turnover in Currency Derivatives Segment of BSE
A2: Year/Month | B2: Turnover* (₹ crore) | I2: Open Interest as on last day of the month **
B3: USDINR | C3: EURINR | D3: GBPINR | E3: JPYINR | F3: EURUSD | G3: GBPUSD | H3: USDJPY | I3: USDINR | J3: EURINR | K3: GBPINR | L3: JPYINR | M3: EURUSD | N3: GBPUSD | O3: USDJPY
A4: 2019-2020 | B4: 6677486.456 | C4: 1792.544728 | D4: 2170.681467 | E4: 1823.752505 | F4: 0.09385881738 | G4: 0.03707260866 | H4: 0.16362096 | I4: 2270484 | J4: 7992 | K4: 338 | L4: 9434 | M4: 0 | N4: 0 | O4: 0
A5: 2020-21$ | B5: 3167237.758 | C5: 2967.311373 | D5: 3252.991537 | E5: 648.0342372 | F5: 0 | G5: 0 | H5: 0 | I5: 912871 | J5: 14157 | K5: 19243 | L5: 4508 | M5: 0 | N5: 0 | O5: 0
A6: 2020-04-13 | B6: 270845.7007 | C6: 96.07372275 | D6: 126.9456955 | E6: 75.655299 | F6: 0 | G6: 0 | H6: 0 | I6: 1271120 | J6: 1045 | K6: 646 | L6: 1104 | M6: 0 | N6: 0 | O6: 0
A7: 2020-05-14 | B7: 305507.9269 | C7: 318.0956475 | D7: 229.198891 | E7: 89.6796575 | F7: 0 | G7: 0 | H7: 0 | I7: 652421 | J7: 20386 | K7: 2921 | L7: 2670 | M7: 0 | N7: 0 | O7: 0
A8: 2020-06-14 | B8: 466201.489 | C8: 434.81994 | D8: 512.0720665 | E8: 96.81211475 | F8: 0 | G8: 0 | H8: 0 | I8: 700596 | J8: 9437 | K8: 2256 | L8: 363 | M8: 0 | N8: 0 | O8: 0
A9: 2020-07-15 | B9: 436223.8181 | C9: 642.5056798 | D9: 266.2187085 | E9: 33.7947355 | F9: 0 | G9: 0 | H9: 0 | I9: 598516 | J9: 34047 | K9: 5358 | L9: 1298 | M9: 0 | N9: 0 | O9: 0
A10: 2020-08-15 | B10: 450746.0694 | C10: 614.1893595 | D10: 384.9251065 | E10: 45.07681275 | F10: 0 | G10: 0 | H10: 0 | I10: 785958 | J10: 16288 | K10: 3611 | L10: 641 | M10: 0 | N10: 0 | O10: 0
A11: 2020-09-15 | B11: 428787.3311 | C11: 157.9545552 | D11: 480.0326615 | E11: 52.0707015 | F11: 0 | G11: 0 | H11: 0 | I11: 1034804 | J11: 14144 | K11: 1744 | L11: 319 | M11: 0 | N11: 0 | O11: 0
A12: 2020-10-16 | B12: 408051.6083 | C12: 363.2663253 | D12: 402.7680375 | E12: 73.10424525 | F12: 0 | G12: 0 | H12: 0 | I12: 774835 | J12: 1847 | K12: 7234 | L12: 5171 | M12: 0 | N12: 0 | O12: 0
A13: 2020-11-16 | B13: 400873.814 | C13: 340.4061433 | D13: 850.8303698 | E13: 181.840671 | F13: 0 | G13: 0 | H13: 0 | I13: 912871 | J13: 14157 | K13: 19243 | L13: 4508 | M13: 0 | N13: 0 | O13: 0
A14: Note:
A15: 1. * Notional Turnover
A16: 2. ** OI data is at BSE level.
A17: $ indicates as on November 30,2020
A18: Source: BSE

Sheet 46
A1: Table 46: Instrument-wise Turnover in Currency Derivatives Segment of NSE
A2: Year/Month | B2: Turnover (₹ crore) | I2: Open Interest as on last day of the month ( in lots)*
B3: USDINR | C3: EURINR | D3: GBPINR | E3: JPYINR | F3: EURUSD | G3: GBPUSD | H3: USDJPY | I3: USDINR | J3: EURINR | K3: GBPINR | L3: JPYINR | M3: EURUSD | N3: GBPUSD | O3: USDJPY
A4: 2019-20 | B4: 9009927.993 | C4: 170324.3795 | D4: 374339.8015 | E4: 75589.00404 | F4: 11480.41764 | G4: 12513.16936 | H4: 219.0037257 | I4: 6680611 | J4: 81513 | K4: 32141 | L4: 30965 | M4: 650 | N4: 643 | O4: 24
A5: 2020-21$ | B5: =SUM(B6:B19) -> 6620342.128 | C5: =SUM(C6:C19) -> 276359.0178 | D5: 439667.4084 | E5: 71843.87473 | F5: 3759.142295 | G5: 5068.477039 | H5: 53.59910708 | I5: =I13 -> 6642033 | J5: =J13 -> 239353 | K5: 194845 | L5: 40530 | M5: 4105 | N5: 1873 | O5: 42
A6: Apr-20 | B6: 655054.7567 | C6: 11949.74469 | D6: 23656.50869 | E6: 5267.949637 | F6: 129.5959632 | G6: 221.4217347 | H6: 2.479853718 | I6: 4875455 | J6: 67920 | K6: 42712 | L6: 36164 | M6: 1128 | N6: 1805 | O6: 47
A7: May-20 | B7: 663982.926 | C7: 20144.29029 | D7: 37101.38659 | E7: 7695.096937 | F7: 230.8586977 | G7: 367.3858751 | H7: 5.291468558 | I7: 4204478 | J7: 165613 | K7: 42731 | L7: 32939 | M7: 3028 | N7: 2283 | O7: 18
A8: Jun-20 | B8: 853857.839 | C8: 28614.87936 | D8: 55969.38432 | E8: 9383.407927 | F8: 546.5940643 | G8: 790.4800815 | H8: 7.484807812 | I8: 4288347 | J8: 154408 | K8: 72300 | L8: 31324 | M8: 2564 | N8: 2375 | O8: 25
A9: Jul-20 | B9: 844302.7369 | C9: 41198.97358 | D9: 47785.2426 | E9: 8475.847945 | F9: 849.5651702 | G9: 779.0527744 | H9: 4.252958869 | I9: 4778747 | J9: 273940 | K9: 124436 | L9: 32991 | M9: 6381 | N9: 1897 | O9: 77
A10: Aug-20 | B10: 857995.1227 | C10: 50143.45804 | D10: 56740.37298 | E10: 10440.61926 | F10: 745.8270656 | G10: 789.4129775 | H10: 9.516474124 | I10: 4831227 | J10: 210451 | K10: 99422 | L10: 32832 | M10: 7162 | N10: 3024 | O10: 12
A11: Sep-20 | B11: 981988.9951 | C11: 45279.9877 | D11: 79550.14944 | E11: 11919.14837 | F11: 562.6200652 | G11: 761.3442432 | H11: 11.34469526 | I11: 5125997 | J11: 155352 | K11: 59034 | L11: 28800 | M11: 3348 | N11: 1655 | O11: 23
A12: Oct-20 | B12: 857549.2187 | C12: 38069.02283 | D12: 72533.40381 | E12: 8522.383427 | F12: 336.5758078 | G12: 654.9238821 | H12: 2.753618339 | I12: 5607942 | J12: 192303 | K12: 111715 | L12: 62198 | M12: 2767 | N12: 1770 | O12: 114
A13: Nov-20 | B13: 905610.533 | C13: 40958.6613 | D13: 66330.95997 | E13: 10139.42123 | F13: 357.505461 | G13: 704.4554701 | H13: 10.4752304 | I13: 6642033 | J13: 239353 | K13: 194845 | L13: 40530 | M13: 4105 | N13: 1873 | O13: 42
A14: Notes:
A15: 1. Cross Currency was introduced wef Feb 27, 2018
A16: 2. Options contracts on EURINR,GBPINR,JPYINR were introduced wef Feb 27, 2018
A17: 3. *Open Interest provided in Table No. 42 is at NSE Clearing Limited level, while in Table 46 it is at NSE Level. Hence, the difference in number/value between the two tables.
A18: $ indicates as on November 30,2020
A19: Source: NSE.

Sheet 47
A1: Table 47: Instrument-wise Turnover in Currency Derivatives Segment of MSEI
A2: Year/Month | B2: Turnover (₹ crore) | F2: Open Interest as on last day of the month (in lots)
B3: USDINR | C3: EURINR | D3: GBPINR | E3: JPYINR | F3: USDINR | G3: EURINR | H3: GBPINR | I3: JPYINR
A4: 2019-20 | B4: 43153.86884 | C4: 941.3291125 | D4: 1223.809899 | E4: 5.51110175 | F4: 6062 | G4: 11 | H4: 0 | I4: 0
A5: 2020-21$ | B5: =SUM(B6:B17) -> 43810 | C5: =SUM(C6:C17) -> 129.3434055 | D5: =SUM(D6:D17) -> 65.89572825 | E5: =SUM(E6:E17) -> 1.0682815 | F5: =F13 -> 38915 | G5: =G13 -> 2396 | H5: =H13 -> 1008 | I5: =I13 -> 60
A6: Apr-20 | B6: 1782.77349 | C6: 1.07487325 | D6: 1.43305725 | E6: 0 | F6: 21998 | G6: 52 | H6: 25 | I6: 0
A7: May-20 | B7: 1694.269398 | C7: 5.61881075 | D7: 2.53522525 | E7: 0 | F7: 9148 | G7: 506 | H7: 25 | I7: 0
A8: Jun-20 | B8: 2830.312813 | C8: 18.98632025 | D8: 4.952093 | E8: 0 | F8: 15405 | G8: 201 | H8: 77 | I8: 0
A9: Jul-20 | B9: 4050.153183 | C9: 11.57521225 | D9: 2.693828 | E9: 0 | F9: 12489 | G9: 691 | H9: 0 | I9: 0
A10: Aug-20 | B10: 5267.139139 | C10: 21.45385425 | D10: 2.7702545 | E10: 0.035465 | F10: 14061 | G10: 332 | H10: 52 | I10: 0
A11: Sep-20 | B11: 6855.9463 | C11: 19.5110395 | D11: 13.0047035 | E11: 0.15425475 | F11: 17122 | G11: 818 | H11: 80 | I11: 8
A12: Oct-20 | B12: 9052.796982 | C12: 11.5355455 | D12: 10.84089025 | E12: 0.027848 | F12: 12488 | G12: 9 | H12: 225 | I12: 0
A13: Nov-20 | B13: 12276.60869 | C13: 39.58774975 | D13: 27.6656765 | E13: 0.85071375 | F13: 38915 | G13: 2396 | H13: 1008 | I13: 60
A14: Notes -
A15: Data includes Notional Value for Options
A16: Excludes data of Interest Rate Futures
A17: $ indicates as on November 30,2020
A18: Source: MSEI

Sheet 48
A1: Table 48: Maturitywise Turnover in Currency Derivative Segment of BSE
K2: (₹ crore)
B3: Currency Future | G3: Currency Options
B4: Weekly | C4: 1 Month | D4: 2 Month | E4: 3 Month | F4: > 3 months | G4: Weekly | H4: 1 Month | I4: 2 Month | J4: 3 Month | K4: > 3 months
A5: 2019-20 | B5: 67678.5734 | C5: 2427178.934 | D5: 346918.8152 | E5: 10602.6005 | F5: 531.9735 | G5: 455671.5774 | H5: 3139015.629 | I5: 235548.3352 | J5: 127.5505 | K5: 0
A6: 2020-21 | B6: 124841.5943 | C6: 962567.2871 | D6: 232449.7924 | E6: 5311.2662 | F6: 573.9224 | G6: 538818.5376 | H6: 1055957.362 | I6: 253566.4516 | J6: 19.6477 | K6: 0
A7: 2020-04-04 | B7: 7960.0966 | C7: 99902.3427 | D7: 30270.1973 | E7: 684.3755 | F7: 3.2729 | G7: 60556.6403 | H7: 43953.9199 | I7: 27813.5313 | J7: 0 | K7: 0
A8: 2020-05-04 | B8: 8918.1 | C8: 98146.42 | D8: 24875.23 | E8: 274.55 | F8: 8.24 | G8: 50195.75 | H8: 89806.55 | I8: 33912.23 | J8: 7.81 | K8: 0
A9: 2020-06-04 | B9: 13295.71 | C9: 129794.97 | D9: 36969.9 | E9: 331.2 | F9: 1.74 | G9: 49830.09 | H9: 199656.84 | I9: 37358.5 | J9: 6.09 | K9: 0
A10: 2020-07-04 | B10: 19106.9 | C10: 136887.07 | D10: 33567.66 | E10: 815.07 | F10: 6.06 | G10: 42237.66 | H10: 171323.64 | I10: 33216.53 | J10: 5.74 | K10: 0
A11: 2020-08-04 | B11: 14000.68 | C11: 124186.34 | D11: 29186.13 | E11: 706.36 | F11: 31.53 | G11: 76576.68 | H11: 183546.54 | I11: 23556.01 | J11: 0 | K11: 0
A12: 2020-09-04 | B12: 17283.4128 | C12: 152283.5731 | D12: 20091.9013 | E12: 284.2632 | F12: 5.3711 | G12: 96113.6983 | H12: 103470.1843 | I12: 39944.9868 | J12: 0 | K12: 0
A13: 2020-10-04 | B13: 22833.8593 | C13: 104438.3431 | D13: 26737.3373 | E13: 1103.5839 | F13: 196.4042 | G13: 93290.6047 | H13: 130976.307 | I13: 29314.2425 | J13: 0.0077 | K13: 0
A14: 2020-11-04 | B14: 21442.8356 | C14: 116928.2282 | D14: 30751.4365 | E14: 1111.8636 | F14: 321.3042 | G14: 70017.4143 | H14: 133223.3811 | I14: 28450.421 | J14: 0 | K14: 0
A15: Notes:
A16: 1. Weekly maturity data is added to the table, hence the data may not be strictly comparable with the earlier published data.
A17: $ indicates as on November 30,2020
A18: Source: BSE

Sheet 49
A1: Table 49: Maturity-wise Turnover in Currency Derivatives Segment of NSE
J2: (₹ crore)
A3: Month/Year | B3: Currency Future | F3: Currency Options
B4: 1 Month | C4: 2 Month | D4: 3 Month | E4: > 3 months | F4: Weekly | G4: 1 Month | H4: 2 Month | I4: 3 Month | J4: > 3 months
A5: 2020-21$ | B5: =SUM(B6:B13) -> 2899419.868 | C5: =SUM(C6:C13) -> 620165.0599 | D5: 52402.09587 | E5: 22197.0899 | F5: 2099843.396 | G5: 1526082.751 | H5: 196402.1846 | I5: 562.865773 | J5: 18.33741475
A6: 2020-04-16 | B6: 282105.4049 | C6: 81657.16157 | D6: 6045.598669 | E6: 2397.303889 | F6: 146154.513 | G6: 159705.5234 | H6: 18209.84985 | I6: 5.86590075 | J6: 1.236035
A7: 2020-05-16 | B7: 289073.9629 | C7: 71291.09703 | D7: 6200.175761 | E7: 1243.311936 | F7: 197766.1678 | G7: 147472.2147 | H7: 16461.79449 | I7: 3.10463175 | J7: 15.406516
A8: 2020-06-16 | B8: 368055.194 | C8: 79812.84486 | D8: 5741.681591 | E8: 2615.243633 | F8: 253763.432 | G8: 217173.0051 | H8: 21957.78987 | I8: 50.323695 | J8: 0.554788
A9: 2020-07-16 | B9: 343621.2274 | C9: 75715.7246 | D9: 6821.706721 | E9: 3196.385975 | F9: 298499.0172 | G9: 194065.2679 | H9: 21469.90005 | I9: 6.21144025 | J9: 0.23060825
A10: 2020-08-16 | B10: 353349.6855 | C10: 82858.69825 | D10: 7197.469908 | E10: 3790.528565 | F10: 270486.1542 | G10: 223262.5332 | H10: 35785.98225 | I10: 132.7696098 | J10: 0.50807125
A11: 2020-09-16 | B11: 452948.2786 | C11: 80381.21888 | D11: 6470.944182 | E11: 3327.955995 | F11: 351656.583 | G11: 198197.7631 | H11: 27090.6857 | I11: 0 | J11: 0.16022425
A12: 2020-10-16 | B12: 384692.9418 | C12: 69615.26036 | D12: 7198.727377 | E12: 2434.330163 | F12: 299691.9483 | G12: 187425.2971 | H12: 26416.71157 | I12: 193.0653725 | J12: 0
A13: 2020-11-16 | B13: 425573.1726 | C13: 78833.05429 | D13: 6725.791658 | E13: 3192.029747 | F13: 281825.5802 | G13: 198781.146 | H13: 29009.47082 | I13: 171.525123 | J13: 0.241172
A14: Note:
A15: 1. Weekly maturity data is added to the table, hence the data may not be strictly comparable with the earlier published data.
A16: $ indicates as on November 30,2020
A17: Source: NSE.

Sheet 50
A1: Table 50: Maturity-wise Turnover in Currency Derivatives Segment of MSEI
J2: (₹ Crore)
A3: Month/Year | B3: Currency Future | F3: Currency Options
B4: 1 Month | C4: 2 Month | D4: 3 Month | E4: > 3 months | F4: Weekly | G4: 1 Month | H4: 2 Month | I4: 3 Month | J4: > 3 months
A5: 2019-20 | B5: 39121.48617 | C5: 2373.368321 | D5: 25.85964625 | E5: 0.3562 | F5: 448.0840887 | G5: 3290.301154 | H5: 65.06337225 | I5: 0 | J5: 0
A6: 2020-21$ | B6: =SUM(B7:B14) -> 41234.76193 | C6: 2715.656051 | D6: 8.46746225 | E6: 0.25721 | F6: 10.865915 | G6: 33.51484375 | H6: 2.784025 | I6: 0 | J6: 0
A7: 2020-04-01 | B7: 1556.707123 | C7: 227.8068992 | D7: 0.76739875 | E7: 0 | F7: 0 | G7: 0 | H7: 0 | I7: 0 | J7: 0
A8: 2020-05-31 | B8: 1483.997727 | C8: 211.9568248 | D8: 6.46888225 | E8: 0 | F8: 0 | G8: 0 | H8: 0 | I8: 0 | J8: 0
A9: 2020-06-01 | B9: 2632.516294 | C9: 220.5927765 | D9: 1.14215625 | E9: 0 | F9: 0 | G9: 0 | H9: 0 | I9: 0 | J9: 0
A10: 2020-07-01 | B10: 3514.566502 | C10: 527.6536798 | D10: 0 | E10: 0 | F10: 0 | G10: 22.20204125 | H10: 0 | I10: 0 | J10: 0
A11: 2020-08-01 | B11: 5026.983084 | C11: 264.2871095 | D11: 0 | E11: 0.12852 | F11: 0 | G11: 0 | H11: 0 | I11: 0 | J11: 0
A12: 2020-09-01 | B12: 6583.395395 | C12: 301.367408 | D12: 0.01489 | E12: 0.12869 | F12: 0 | G12: 2.965575 | H12: 0.74435 | I12: 0 | J12: 0
A13: 2020-10-01 | B13: 8861.402602 | C13: 206.145978 | D13: 0.074135 | E13: 0 | F13: 6.83841 | G13: 0.74015 | H13: 0 | I13: 0 | J13: 0
A14: 2020-11-01 | B14: 11575.1932 | C14: 755.8453755 | D14: 0 | E14: 0 | F14: 4.027505 | G14: 7.6070775 | H14: 2.039675 | I14: 0 | J14: 0
A15: Note:
A16: 1. Weekly maturity data is added to the table, hence the data may not be strictly comparable with the earlier published data.
A17: $ indicates as on November 30,2020
A18: Source: MSEI

Sheet 51
A1: Table 51: Trading Statistics in Interest Rate Derivatives Segment
A2: Year/ Month | B2: No. of Trading Days | C2: BSE* | G2: NSE | M2: MSEI
C3: Interest Rate Futures | E3: Open Interest at the end of | G3: Interest Rate Futures | I3: Interest Rate Option | K3: Open Interest at the end of** | M3: Interest RateFutures | O3: Open Interest at the end of
C4: No. of Contracts | D4: Traded Value (₹ crore) | E4: No. of Contracts | F4: Value (₹ crore) | G4: No. of Contracts | H4: Traded Value (₹ crore) | I4: No. of Contracts | J4: Traded Value (₹ crore) | K4: No. of Contracts | L4: Value (₹ crore) | M4: No. of Contracts | N4: Traded Value (₹ crore) | O4: No. of Contracts | P4: Value (₹ crore)
A5: 2019-20 | B5: 243 | C5: 4917740 | D5: 100045.4315 | E5: 32362 | F5: 682.81 | G5: 17217124 | H5: 351817.7583 | I5: 444761 | J5: 8993.38081 | K5: 77036 | L5: 1592.848595 | M5: 0 | N5: 0 | O5: 0 | P5: 0
A6: 2020-21$ | B6: =SUM(B7:B16) -> 163 | C6: =SUM(C7:C16) -> 962675 | D6: =SUM(D7:D16) -> 19875.4925 | E6: =E14 -> 3595 | F6: =F14 -> 76.39923182 | G6: =SUM(G7:G16) -> 3703289 | H6: =SUM(H7:H16) -> 75853.85524 | I6: =SUM(I7:I16) -> 41368 | J6: =SUM(J7:J16) -> 854.3618295 | K6: =K14 -> 57654 | L6: =L14 -> 1185.809375 | M6: =SUM(M7:M16) -> 0 | N6: =SUM(N7:N16) -> 0 | O6: =O14 -> 0 | P6: =P14 -> 0
A7: Apr-20 | B7: 17 | C7: 117135 | D7: 2394.6294 | E7: 22389 | F7: 486.62 | G7: 462985 | H7: 9422.582544 | I7: 15183 | J7: 311.164205 | K7: 51482 | L7: 1075.917142 | M7: 0 | N7: 0 | O7: 0 | P7: 0
A8: May-20 | B8: 18 | C8: 92350 | D8: 1898.7685 | E8: 32071 | F8: 695.75 | G8: 578495 | H8: 11886.51504 | I8: 15039 | J8: 311.332955 | K8: 66972 | L8: 1409.258315 | M8: 0 | N8: 0 | O8: 0 | P8: 0
A9: Jun-20 | B9: 22 | C9: 207052 | D9: 4307.7403 | E9: 25260 | F9: 525.02 | G9: 803319 | H9: 16565.86198 | I9: 10776 | J9: 224.1784285 | K9: 102803 | L9: 2140.647929 | M9: 0 | N9: 0 | O9: 0 | P9: 0
A10: Jul-20 | B10: 23 | C10: 193802 | D10: 4082.3089 | E10: 19100 | F10: 399.24 | G10: 554091 | H10: 11472.24032 | I10: 266 | J10: 5.539441 | K10: 59617 | L10: 1260.509381 | M10: 0 | N10: 0 | O10: 0 | P10: 0
A11: Aug-20 | B11: 21 | C11: 65635 | D11: 1339.4258 | E11: 5447 | F11: 112.12 | G11: 434184 | H11: 8835.961081 | I11: 3 | J11: 0.0612545 | K11: 65722 | L11: 1365.007214 | M11: 0 | N11: 0 | O11: 0 | P11: 0
A12: Sep-20 | B12: 22 | C12: 30352 | D12: 618.837 | E12: 1750 | F12: 37.548735 | G12: 389067 | H12: 7966.11501 | I12: 101 | J12: 2.0855455 | K12: 45801 | L12: 953.331487 | M12: 0 | N12: 0 | O12: 0 | P12: 0
A13: Oct-20 | B13: 20 | C13: 94839 | D13: 1949.4366 | E13: 1252 | F13: 27.85801132 | G13: 294052 | H13: 5969.361613 | I13: 0 | J13: 0 | K13: 58345 | L13: 1205.073115 | M13: 0 | N13: 0 | O13: 0 | P13: 0
A14: Nov-20 | B14: 20 | C14: 161510 | D14: 3284.346 | E14: 3595 | F14: 76.39923182 | G14: 187096 | H14: 3735.217659 | I14: 0 | J14: 0 | K14: 57654 | L14: 1185.809375 | M14: 0 | N14: 0 | O14: 0 | P14: 0
A15: Notes:
A16: 1. IR Options were launched at NSE during Dec 2019, the data has been revised accordingly
A17: 2. Open interest is valued at daily settlement prices
A18: 3. The Open interest pertains to NSE Clearing and Includes the data of multiple exchnages)
A19: 4. IR Options were launched at BSE during Aug 2019. However, there is no trading activity since launch.
A20: $ indicates as on November 30,2020
A21: Source: BSE, NSE and MSEI

Sheet 52
A1: Table 52: Settlement Statistics in Interest Rate Derivatives Segment
I2: (₹ crore)
A3: Year/ Month | B3: BSE | D3: NSE | H3: MSEI
B4: Interest Rate Futures | D4: Interest Rate futures | F4: Interest Rate options | H4: Interest Rate Futures
B5: MTM Settlement | C5: Final Settlement | D5: MTM Settlement | E5: Final Settlement | F5: Premium Settlement | G5: Exercise Settlement | H5: MTM Settlement | I5: Final Settlement
A6: 2019-20 | B6: 1417.022224 | C6: 23.05213 | D6: 1400.2491 | E6: 20.05797746 | F6: 16.88 | G6: 2.54653774 | H6: 0 | I6: 0
A7: 2020-21$ | B7: =SUM(B8:B21) -> 295.403959 | C7: 2.625856 | D7: 335.7879355 | E7: 3.04277544 | F7: 2.83 | G7: 2.36985976 | H7: 0 | I7: 0
A8: Apr-20 | B8: 100.356579 | C8: 0.313188 | D8: 78.21515 | E8: 0.38330288 | F8: 1.1 | G8: 1.85396948 | H8: 0 | I8: 0
A9: May-20 | B9: 50.891994 | C9: 0.04784 | D9: 51.9933625 | E9: 0.2641428 | F9: 1.14 | G9: 0.50847504 | H9: 0 | I9: 0
A10: Jun-20 | B10: 40.929543 | C10: 0.736421 | D10: 48.6230535 | E10: 0.3382731 | F10: 0.56 | G10: 0 | H10: 0 | I10: 0
A11: Jul-20 | B11: 25.355761 | C11: 0.033484 | D11: 42.119494 | E11: 0.17433314 | F11: 0.02 | G11: 0.0073916 | H11: 0 | I11: 0
A12: Aug-20 | B12: 25.204655 | C12: 1.098963 | D12: 38.96488702 | E12: 0.5995524 | F12: 0 | G12: 0 | H12: 0 | I12: 0
A13: Sep-20 | B13: 23.77108 | C13: 0.08475 | D13: 31.6645335 | E13: 0.0956566 | F13: 0.01 | G13: 2.364e-05 | H13: 0 | I13: 0
A14: Oct-20 | B14: 16.550517 | C14: 0.2172 | D14: 22.6854735 | E14: 0.61006404 | F14: 0 | G14: 0 | H14: 0 | I14: 0
A15: Nov-20 | B15: 12.34383 | C15: 0.09401 | D15: 21.5219815 | E15: 0.57745048 | F15: 0 | G15: 0 | H15: 0 | I15: 0
A16: Note:
A17: 1. NSE - IRF includes 6 Year, 10 Year, 13 Year GSecs and 91 DTB
A18: 2. IR Options were launched at NSE during Dec 2019, the data has been revised accordingly
A19: 3. IR Options were launched at BSE during Aug 2019. However, there is no trading activity since launch.
A20: $ indicates as on November 30, 2020
A21: Source: ICCL, NCL and MCCIL

Sheet 53
A1: Table 53: Trends in Foreign Portfolio Investment
A2: Year/Month | B2: Gross Purchase (₹ crore) | C2: Gross Sales (₹ crore) | D2: Net Investment (₹ crore) | E2: Net Investment (USD million) | F2: Cumulative Net Investment (USD million)
A3: 2019-20 | B3: 1905516.99 | C3: 1933046.16 | D3: -27529.17 | E3: -3041.55 | F3: 245112.63
A4: 2020-21$ | B4: =SUM(B5:B15) -> 1368815.48 | C4: =SUM(C5:C15) -> 1232827.53 | D4: =SUM(D5:D15) -> 135987.95 | E4: =SUM(E5:E15) -> 18303.77 | F4: =F12 -> 263416.4
A5: Apr-20 | B5: 144753.65 | C5: 159612.19 | D5: -14858.54 | E5: -1961.18 | F5: =F3+E5 -> 243151.45
A6: May-20 | B6: 150169.19 | C6: 157525.04 | D6: -7355.85 | E6: -972.51 | F6: =F5+E6 -> 242178.94
A7: Jun-20 | B7: 202141.05 | C7: 176131.62 | D7: 26009.43 | E7: 3440.94 | F7: =F6+E7 -> 245619.88
A8: Jul-20 | B8: 151569.69 | C8: 148268.25 | D8: 3301.44 | E8: 450.99 | F8: 246070.87
A9: Aug-20 | B9: 177960.26 | C9: 128081.31 | D9: 49878.95 | E9: 6661.85 | F9: 252732.72
A10: Sep-20 | B10: 168469.44 | C10: 169665.82 | D10: -1196.38 | E10: -156.61 | F10: 252576.11
A11: Oct-20 | B11: 157460.03 | C11: 135633.9 | D11: 21826.13 | E11: 2974.36 | F11: 255550.47
A12: Nov-20 | B12: 216292.17 | C12: 157909.4 | D12: 58382.77 | E12: 7865.93 | F12: 263416.4
A13: Notes:
A14: $ indicates up to November 30,2020
A15: Source: NSDL, CDSL

Sheet 54
A1: Table 54: Notional Value of Offshore Derivative Instruments (ODIs) compared to Assets Under Custody (AUC) of FPIs/Deemed FPIs
A2: Year/ Month | B2: Notional value of ODIs on Equity, Debt & Derivatives (₹ crore) | C2: Notional value of ODIs on Equity & Debt excluding Derivatives (₹ crore) | D2: Assets Under Custody of FPIs/Deemed FPIs (₹ crore) # | E2: Notional value of ODIs on Equity, Debt & Derivatives as % of Assets Under Custody of FPIs/Deemed FPIs | F2: Notional value of ODIs on Equity & Debt excluding Derivatives as % of Assets Under Custody of FPIs/Deemed FPIs
A3: 2019-20 | B3: 48006.39827 | C3: 47852 | D3: 2490223 | E3: =(B3/D3)*100 -> 1.927795152 | F3: =(C3/D3)*100 -> 1.921594974
A4: 2012-21$ | B4: =B12 -> 83114 | C4: =C12 -> 83114 | D4: =D12 -> 3850843 | E4: =(B4/D4)*100 -> 2.158332604 | F4: 2.158332604
A5: Apr-20 | B5: 57100 | C5: 56923 | D5: 2819841 | E5: 2.024936867 | F5: 2.018659917
A6: May-20 | B6: 60027 | C6: 59869 | D6: 2743734 | E6: 2.187784967 | F6: 2.182026392
A7: Jun-20 | B7: 62137.93179 | C7: 61974.28209 | D7: 2979826 | E7: 2.085287255 | F7: 2.079795333
A8: Jul-20 | B8: 63228 | C8: 63035 | D8: 3167785 | E8: 1.995968792 | F8: 1.989876207
A9: Aug-20 | B9: 74027.29705 | C9: 73826 | D9: 3317805 | E9: 2.231213017 | F9: 2.225145842
A10: Sep-20 | B10: 69820.57275 | C10: 69820.57275 | D10: 3322393 | E10: 2.101514563 | F10: 2.101514563
A11: Oct-20 | B11: 78686.40327 | C11: 78686.40327 | D11: 3436258 | E11: 2.289886361 | F11: 2.289886361
A12: Nov-20 | B12: 83114 | C12: 83114 | D12: 3850843 | E12: 2.158332604 | F12: 2.158332604
A13: Notes:
A14: 1. Column B & C Figures are compiled based on reports submitted by FPIs/deemed FPIs issuing ODIs.
A15: 2. Column C is being provided which depicts the Total Value of ODI issued -with underlying as Equity ,Debt & Hybrid Securities but excluding derivatives
A16: 3. Column D Figures are compiled on the basis of reports submitted by custodians & does not includes positions taken by FPIs/deemed FPIs in derivatives.
A17: 4. The total value of ODIs excludes the unhedged positions & portfolio hedging positions taken by the FPIs/deemed FPIs issuing ODIs.
A18: $ indicates as on November 30, 2020
A19: Source: SEBI.

Sheet 55
A1: Table 55: Assets under the Custody of Custodians
A2: Type of Client | B2: FPIs | D2: Foreign Depositories | F2: FDI Investments | H2: Foreign Venture Capital Investments | J2: OCBs | L2: NRIs | N2: Mutual Funds | P2: Corporates | R2: Banks | T2: Insurance Companies | V2: Local Pension Funds | X2: Financial Institutions | Z2: Others | AB2: Total
B3: No. | C3: Amount (₹ crore) | D3: No. | E3: Amount (₹ crore) | F3: No. | G3: Amount (₹ crore) | H3: No. | I3: Amount (₹ crore) | J3: No. | K3: Amount (₹ crore) | L3: No. | M3: Amount (₹ crore) | N3: No. | O3: Amount (₹ crore) | P3: No. | Q3: Amount (₹ crore) | R3: No. | S3: Amount (₹ crore) | T3: No. | U3: Amount (₹ crore) | V3: No. | W3: Amount (₹ crore) | X3: No. | Y3: Amount (₹ crore) | Z3: No. | AA3: Amount (₹ crore) | AB3: No. | AC3: Amount (₹ crore)
A4: 2019-20 | B4: 9825 | C4: 2490223.13 | D4: 66 | E4: 227791.97 | F4: 2079 | G4: 832863.69 | H4: 208 | I4: 38124.84 | J4: 25 | K4: 1582.04 | L4: 693 | M4: 2098.92 | N4: 1624 | O4: 1891137.87 | P4: 598 | Q4: 88517.75 | R4: 121 | S4: 412044.02 | T4: 788 | U4: 1547943.43 | V4: 124 | W4: 477968.29 | X4: 25 | Y4: 40702.49 | Z4: 25595 | AA4: 967716.71 | AB4: 41771 | AC4: 9018715.15
A5: 2020-21$ | B5: =B13 -> 10017 | C5: =C13 -> 3850842.89 | D5: 66 | E5: 431561.42 | F5: 2253 | G5: 1194938.61 | H5: 214 | I5: 40479.72 | J5: 24 | K5: 2166.94 | L5: 794 | M5: 2928.46 | N5: 1630 | O5: 2295811.28 | P5: 639 | Q5: 104591.18 | R5: 123 | S5: 532753.11 | T5: 792 | U5: 1959835.58 | V5: 113 | W5: 552864.79 | X5: 26 | Y5: 40181.52 | Z5: 28643 | AA5: 1151076.66 | AB5: 45334 | AC5: 12160032.16
A6: Apr-20 | B6: 9916 | C6: 2819840.63 | D6: 66 | E6: 264852.96 | F6: 2088 | G6: 891652.54 | H6: 208 | I6: 38313.55 | J6: 25 | K6: 1678.47 | L6: 693 | M6: 2287.03 | N6: 1621 | O6: 2031625.42 | P6: 600 | Q6: 92221.83 | R6: 121 | S6: 484474.78 | T6: 790 | U6: 1656179.49 | V6: 124 | W6: 486918.55 | X6: 26 | Y6: 42889.59 | Z6: 25629 | AA6: 1000395.04 | AB6: 41907 | AC6: 9813329.88
A7: May-20 | B7: 9912 | C7: 2743734.07 | D7: 66 | E7: 251650.89 | F7: 2098 | G7: 869794.25 | H7: 210 | I7: 38512.69 | J7: 25 | K7: 1564.8 | L7: 698 | M7: 2438.62 | N7: 1622 | O7: 2001267.16 | P7: 600 | Q7: 96705.97 | R7: 121 | S7: 496496.67 | T7: 790 | U7: 1650619.6 | V7: 112 | W7: 493260.74 | X7: 26 | Y7: 44232.99 | Z7: 25655 | AA7: 986317.56 | AB7: 41935 | AC7: 9676596.01
A8: Jun-20 | B8: 9911 | C8: 2979825.58 | D8: 66 | E8: 310240.29 | F8: 2106 | G8: 927607.89 | H8: 211 | I8: 38925.86 | J8: 25 | K8: 1721.14 | L8: 703 | M8: 2639.04 | N8: 1625 | O8: 2032087.29 | P8: 598 | Q8: 98195.29 | R8: 124 | S8: 494660.29 | T8: 793 | U8: 1731728.51 | V8: 112 | W8: 503181.73 | X8: 26 | Y8: 44802.16 | Z8: 25829 | AA8: 1016537.42 | AB8: 42129 | AC8: 10182152.49
A9: Jul-20 | B9: 10059 | C9: 3167785.41 | D9: 66 | E9: 342150.79 | F9: 2145 | G9: 981263.97 | H9: 212 | I9: 39105.11 | J9: 25 | K9: 1769.78 | L9: 740 | M9: 2753.77 | N9: 1630 | O9: 2101536.28 | P9: 615 | Q9: 99802.42 | R9: 124 | S9: 509473.4 | T9: 793 | U9: 1790710.93 | V9: 119 | W9: 513076.48 | X9: 26 | Y9: 45490 | Z9: 26655 | AA9: 1040909.16 | AB9: 43209 | AC9: 10635827.5
A10: Aug-20 | B10: 10071 | C10: 3317805.32 | D10: 66 | E10: 361713.46 | F10: 2155 | G10: 1016525.73 | H10: 212 | I10: 39604.96 | J10: 25 | K10: 1760.36 | L10: 746 | M10: 2879.08 | N10: 1636 | O10: 2158248.83 | P10: 624 | Q10: 101890.3 | R10: 123 | S10: 520463.14 | T10: 792 | U10: 1834368.24 | V10: 119 | W10: 524306.98 | X10: 26 | Y10: 46103.4 | Z10: 27256 | AA10: 1065804.43 | AB10: 43851 | AC10: 10991474.23
A11: Sep-20 | B11: 9972 | C11: 3322393 | D11: 66 | E11: 368260.05 | F11: 2177 | G11: 1050353.81 | H11: 212 | I11: 40359.68 | J11: 25 | K11: 1604.49 | L11: 765 | M11: 2742.21 | N11: 1630 | O11: 2098922.56 | P11: 635 | Q11: 102139.5 | R11: 124 | S11: 513385.09 | T11: 794 | U11: 1823503.44 | V11: 115 | W11: 533973.8 | X11: 26 | Y11: 42735.5 | Z11: 27814 | AA11: 1062131.21 | AB11: 44355 | AC11: 10962504.34
A12: Oct-20 | B12: 9984 | C12: 3436257.51 | D12: 66 | E12: 382987.29 | F12: 2229 | G12: 1082379.38 | H12: 211 | I12: 40576.45 | J12: 25 | K12: 1828.28 | L12: 785 | M12: 2732.66 | N12: 1632 | O12: 2166199.39 | P12: 640 | Q12: 103530 | R12: 123 | S12: 527990.7 | T12: 793 | U12: 1854228.43 | V12: 115 | W12: 544212.66 | X12: 26 | Y12: 36541.14 | Z12: 28257 | AA12: 1091199.3 | AB12: 44886 | AC12: 11270663.19
A13: Nov-20 | B13: 10017 | C13: 3850842.89 | D13: 66 | E13: 431561.42 | F13: 2253 | G13: 1194938.61 | H13: 214 | I13: 40479.72 | J13: 24 | K13: 2166.94 | L13: 794 | M13: 2928.46 | N13: 1630 | O13: 2295811.28 | P13: 639 | Q13: 104591.18 | R13: 123 | S13: 532753.11 | T13: 792 | U13: 1959835.58 | V13: 113 | W13: 552864.79 | X13: 26 | Y13: 40181.52 | Z13: 28643 | AA13: 1151076.66 | AB13: 45334 | AC13: 12160032.16
A14: Notes:
A15: 1. With the commencement of FPI Regime from June 1, 2014, the erstwhile FIIs, Sub Accounts and QFIs are merged into a new investor class termed as .Foreign Portfolio Investors (FPIs).
A16: 2. "Others" include Portfolio manager, partnership firm, trusts, depository receipts, AIFs, FCCB, HUFs, Brokers etc.
A17: $ indicates as on November 30,2020
A18: Source: Custodians.

Sheet 56
A1: Table 56: Trends in Resource Mobilization by Mutual Funds
K2: (₹ crore)
A3: Year / Month | B3: Gross Mobilisation | E3: Redemption | H3: Net Inflow/ Outflow | K3: Assets at the End of Period
B4: Pvt. Sector | C4: Public Sector | D4: Total | E4: Pvt. Sector | F4: Public Sector | G4: Total | H4: Pvt. Sector | I4: Public Sector | J4: Total
A5: 2019-20 | B5: 14989990.49 | C5: 3823467.281 | D5: 18813457.77 | E5: 14965931.06 | F5: 3760225.891 | G5: 18726156.95 | H5: 24059.43541 | I5: 63241.39057 | J5: 87300.82598 | K5: 2226202.865
A6: 2020-21$ | B6: =SUM(B7:B17) -> 4716876.046 | C6: 1073955.093 | D6: 5790831.139 | E6: 4504090.493 | F6: 1013723.341 | G6: 5517813.834 | H6: 212785.5622 | I6: 60231.75246 | J6: 273017.3146 | K6: =K14 -> 3000904.44
A7: Apr-20 | B7: 614258.1871 | C7: 206442.2309 | D7: 820700.4179 | E7: 593456.6231 | F7: 181244.3076 | G7: 774700.9307 | H7: 20801.56393 | I7: 25197.9233 | J7: 45999.48723 | K7: 2393485.543
A8: May-20 | B8: 619156.4729 | C8: 246977.1491 | D8: 866133.6221 | E8: 562437.9669 | F8: 232882.1424 | G8: 795320.1093 | H8: 56718.50607 | I8: 14095.0067 | J8: 70813.51277 | K8: 2454757.53
A9: Jun-20 | B9: 711244.241 | C9: 249561.2634 | D9: 960805.505 | E9: 701503.31 | F9: 252036.224 | G9: 953539.534 | H9: 9740.93206 | I9: -2474.96056 | J9: 7265.9715 | K9: 2548848.434
A10: Jul-20 | B10: 518550.881 | C10: 192070.1494 | D10: 710621.029 | E10: 462909.77 | F10: 157898.9715 | G10: 620808.741 | H10: 55641.10914 | I10: 34171.1778 | J10: 89812.287 | K10: 2711894.15
A11: Aug-20 | B11: 404939.098 | C11: 151656.2072 | D11: 556595.306 | E11: 414119.41 | F11: 157028.7545 | G11: 571148.165 | H11: -9180.3112 | I11: -5372.53724 | J11: -14552.8485 | K11: 2749388.53
A12: Sep-20 | B12: 496584.971 | C12: 169773.8626 | D12: 666358.833 | E12: 534398.207 | F12: 184051.8357 | G12: 718450.043 | H12: -37813.23503 | I12: -14277.98311 | J12: -52091.2181 | K12: 2685981.915
A13: Oct-20 | B13: 470512.672 | C13: 172724.8222 | D13: 643237.495 | E13: 391937.762 | F13: 152723.7332 | G13: 544661.495 | H13: 78574.90863 | I13: 20001.08903 | J13: 98575.9976 | K13: 2822940.874
A14: Nov-20 | B14: 881629.523 | C14: -315250.5918 | D14: 566378.931 | E14: 843327.444 | F14: -304142.6279 | G14: 539184.816 | H14: 38302.0886 | I14: -11107.96346 | J14: 27194.1251 | K14: 3000904.44
A15: Note:
A16: $ indicates as on November 30, 2020
A17: Source: SEBI.

Sheet 57
A1: Table 57: Status of Mutual Funds Industry in India
A2: Sr. No. | B2: Scheme Category | C2: 2019-20 | I2: 2020-21$
C3: No. of schemes | D3: No. of Folios | E3: Funds mobilized (₹ crore) | F3: Repurchase/ Redemptio (₹ crore) | G3: Net Inflow (+ve)/ Outflow (-ve) (₹ crore) | H3: Net Assets Under Management as on (₹ crore) | I3: No. of schemes | J3: No. of Folios | K3: Funds mobilized (₹ crore) | L3: Repurchase/ Redemptio (₹ crore) | M3: Net Inflow (+ve)/ Outflow (-ve) (₹ crore) | N3: Net Assets Under Management as on (₹ crore)
A4: A | B4: Open ended Schemes
A5: I | B5: Income/Debt Oriented Schemes
A6: 1 | B6: Overnight Fund | C6: 30 | D6: 86255 | E6: 3104154.067 | F6: 3036499.778 | G6: 67654.28882 | H6: 80174.19229 | I6: 30 | J6: 116364 | K6: 2104639.352 | L6: 2128913.018 | M6: -24273.66662 | N6: 57514.59946
A7: 2 | B7: Liquid Fund | C7: 39 | D7: 1815547 | E7: 14430056.33 | F7: 14505186.05 | G7: -75129.72518 | H7: 334725.3213 | I7: 38 | J7: 2164701 | K7: 2519811.65 | L7: 2489861.983 | M7: 29949.66745 | N7: 375646.6252
A8: 3 | B8: Ultra Short Duration Fund | C8: 29 | D8: 650202 | E8: 185685.0949 | F8: 195237.9458 | G8: -9552.850961 | H8: 72226.36457 | I8: 29 | J8: 733257 | K8: 126788.7111 | L8: 98375.84519 | M8: 28412.86587 | N8: 104930.9617
A9: 4 | B9: Low Duration Fund | C9: 26 | D9: 963640 | E9: 127452.3304 | F9: 136233.1755 | G9: -8780.845038 | H9: 81371.18714 | I9: 26 | J9: 1134891 | K9: 189117.049 | L9: 125051.8384 | M9: 64065.21055 | N9: 150945.4384
A10: 5 | B10: Money Market Fund | C10: 20 | D10: 350429 | E10: 193476.6395 | F10: 193561.7144 | G10: -85.07481983 | H10: 57016.64385 | I10: 20 | J10: 458938 | K10: 173602.9566 | L10: 134561.8693 | M10: 39041.08731 | N10: 99003.21637
A11: 6 | B11: Short Duration Fund | C11: 28 | D11: 359856 | E11: 60309.59378 | F11: 51733.48436 | G11: 8576.109422 | H11: 93444.33944 | I11: 26 | J11: 612061 | K11: 114421.6367 | L11: 62556.04451 | M11: 51865.58216 | N11: 153019.419
A12: 7 | B12: Medium Duration Fund | C12: 18 | D12: 221149 | E12: 7325.883468 | F12: 17778.47486 | G12: -10452.5914 | H12: 28290.28985 | I12: 19 | J12: 291821 | K12: 9610.926757 | L12: 11708.32212 | M12: -2097.395358 | N12: 27375.56496
A13: 8 | B13: Medium to Long Duration Fund | C13: 14 | D13: 108506 | E13: 2086.645906 | F13: 3147.57475 | G13: -1060.928844 | H13: 9804.790811 | I13: 14 | J13: 121753 | K13: 4094.731589 | L13: 2706.897426 | M13: 1387.834163 | N13: 11980.94777
A14: 9 | B14: Long Duration Fund | C14: 2 | D14: 27215 | E14: 628.5458479 | F14: 278.3205613 | G14: 350.2252866 | H14: 1669.574946 | I14: 2 | J14: 30569 | K14: 1235.475437 | L14: 536.388948 | M14: 699.0864891 | N14: 2516.950053
A15: 10 | B15: Dynamic Bond Fund | C15: 29 | D15: 215543 | E15: 5571.706001 | F15: 8309.800866 | G15: -2738.094865 | H15: 18115.97412 | I15: 27 | J15: 286866 | K15: 11946.2329 | L15: 6232.40338 | M15: 5713.82952 | N15: 25061.80772
A16: 11 | B16: Corporate Bond Fund | C16: 20 | D16: 391721 | E16: 49845.54274 | F16: 31577.58018 | G16: 18267.96256 | H16: 81729.79882 | I16: 20 | J16: 639905 | K16: 96923.38949 | L16: 37458.68775 | M16: 59464.70173 | N16: 149604.3098
A17: 12 | B17: Credit Risk Fund | C17: 23 | D17: 461927 | E17: 9276.414286 | F17: 37303.94986 | G17: -28027.53558 | H17: 55380.52419 | I17: 22 | J17: 372020 | K17: 1902.053727 | L17: 30001.44681 | M17: -28099.40309 | N17: 28545.0831
A18: 13 | B18: Banking and PSU Fund | C18: 19 | D18: 170392 | E18: 59782.85583 | F18: 25271.31264 | G18: 34511.5432 | H18: 72475.85666 | I18: 21 | J18: 358114 | K18: 96709.36156 | L18: 52928.79713 | M18: 43780.57443 | N18: 123449.3737
A19: 14 | B19: Gilt Fund | C19: 21 | D19: 116938 | E19: 5879.977593 | F19: 5170.981117 | G19: 708.9964755 | H19: 9284.975983 | I19: 21 | J19: 217987 | K19: 19583.62395 | L19: 9544.282289 | M19: 10039.34166 | N19: 20301.89026
A20: 15 | B20: Gilt Fund with 10 year constant duration | C20: 4 | D20: 34206 | E20: 789.0591681 | F20: 446.7771239 | G20: 342.2820442 | H20: 941.412194 | I20: 4 | J20: 57593 | K20: 937.3076473 | L20: 443.1683173 | M20: 494.13933 | N20: 1525.164276
A21: 16 | B21: Floater Fund | C21: 7 | D21: 162058 | E21: 36316.73779 | F21: 35678.48512 | G21: 638.2526652 | H21: 32490.43113 | I21: 8 | J21: 204728 | K21: 47687.30355 | L21: 27199.59457 | M21: 20487.70898 | N21: 55707.6157
B22: Sub total - I (1+2+3+4+5+6+7+8+9+10+11+12+13+14+15+16) | C22: 329 | D22: 6135584 | E22: 18278637.42 | F22: 18283415.41 | G22: -4777.986203 | H22: 1029141.677 | I22: 327 | J22: 7801568 | K22: 5519011.762 | L22: 5218080.587 | M22: 300931.1646 | N22: 1387128.967
A24: II | B24: Growth/Equity Oriented Schemes
A25: 17 | B25: Multi Cap Fund | C25: 34 | D25: 9264215 | E25: 45594.02575 | F25: 30033.96117 | G25: 15560.06458 | H25: 113908.4853 | I25: 35 | J25: 9495460 | K25: 20950.79183 | L25: 27808.76387 | M25: -6857.962039 | N25: 160052.7278
A26: 18 | B26: Large Cap Fund | C26: 29 | D26: 10028315 | E26: 49942.58972 | F26: 33939.25394 | G26: 16003.33578 | H26: 113541.2534 | I26: 31 | J26: 10316712 | K26: 24380.64962 | L26: 27681.11023 | M26: -3300.460614 | N26: 163104.4713
A27: 19 | B27: Large & Mid Cap Fund | C27: 27 | D27: 4735650 | E27: 17834.19661 | F27: 12541.8788 | G27: 5292.317805 | H27: 42971.99542 | I27: 28 | J27: 4834111 | K27: 10630.37721 | L27: 9862.805174 | M27: 767.5720369 | N27: 66391.80347
A28: 20 | B28: Mid Cap Fund | C28: 27 | D28: 6498964 | E28: 30246.46963 | F28: 16729.01499 | G28: 13517.45464 | H28: 65804.84893 | I28: 26 | J28: 6441713 | K28: 12727.49484 | L28: 15036.3256 | M28: -2308.83076 | N28: 100696.9512
A29: 21 | B29: Small Cap Fund | C29: 23 | D29: 5128434 | E29: 21544.74567 | F29: 11113.77449 | G29: 10430.97118 | H29: 35832.03129 | I29: 23 | J29: 4959637 | K29: 8915.367227 | L29: 9566.423119 | M29: -651.0558919 | N29: 59209.50164
A30: 22 | B30: Dividend Yield Fund | C30: 6 | D30: 470525 | E30: 365.8621987 | F30: 743.5486267 | G30: -377.686428 | H30: 3282.008448 | I30: 6 | J30: 448580 | K30: 165.1382342 | L30: 404.1862537 | M30: -239.0480195 | N30: 4409.671937
A31: 23 | B31: Value Fund/Contra Fund | C31: 17 | D31: 4131763 | E31: 12840.08476 | F31: 14770.54767 | G31: -1930.462912 | H31: 39459.52367 | I31: 17 | J31: 3886059 | K31: 5189.95606 | L31: 9434.156574 | M31: -4244.200514 | N31: 56573.11993
A32: 24 | B32: Focused Fund | C32: 22 | D32: 3570651 | E32: 23485.73362 | F32: 10650.82171 | G32: 12834.91191 | H32: 39071.92244 | I32: 25 | J32: 3753444 | K32: 11693.74088 | L32: 9407.458999 | M32: 2286.281884 | N32: 60524.7037
A33: 25 | B33: Sectoral/Thematic Funds | C33: 96 | D33: 6528979 | E33: 20900.56014 | F33: 16631.59769 | G33: 4268.962444 | H33: 49844.16051 | I33: 98 | J33: 7029274 | K33: 15757.81672 | L33: 13598.88399 | M33: 2158.932728 | N33: 75594.14869
A34: 26 | B34: ELSS | C34: 43 | D34: 12335172 | E34: 17429.36016 | F34: 9242.279732 | G34: 8187.080433 | H34: 74791.49875 | I34: 42 | J34: 12385407 | K34: 8176.640145 | L34: 6934.568131 | M34: 1242.082014 | N34: 110953.3408
B35: Sub total - II (17+18+19+20+21+22+23+24+25+26) | C35: 324 | D35: 62692668 | E35: 240183.6283 | F35: 156396.6788 | G35: 83786.94944 | H35: 578507.7282 | I35: 331 | J35: 63550397 | K35: 118587.9728 | L35: 129734.6819 | M35: -11146.68918 | N35: 857510.4405
A37: III | B37: Hybrid Schemes
A38: 27 | B38: Conservative Hybrid Fund | C38: 22 | D38: 386103 | E38: 1165.589726 | F38: 4894.824068 | G38: -3729.234342 | H38: 11189.68048 | I38: 22 | J38: 377917 | K38: 1727.372951 | L38: 2670.79054 | M38: -943.4175885 | N38: 11826.37978
A39: 28 | B39: Balanced Hybrid Fund/Aggressive Hybrid Fund | C39: 33 | D39: 5272614 | E39: 27229.24323 | F39: 48781.12924 | G39: -21551.88601 | H39: 100990.179 | I39: 33 | J39: 4918476 | K39: 7984.851052 | L39: 24197.65694 | M39: -16212.80589 | N39: 118310.2874
A40: 29 | B40: Dynamic Asset Allocation/Balanced Advantage | C40: 23 | D40: 2657247 | E40: 29572.94699 | F40: 23497.1742 | G40: 6075.772794 | H40: 77091.38953 | I40: 23 | J40: 2674916 | K40: 11275.47715 | L40: 15685.78916 | M40: -4410.312016 | N40: 94088.5727
A41: 30 | B41: Multi Asset Allocation | C41: 8 | D41: 631330 | E41: 4243.5341 | F41: 3490.069057 | G41: 753.4650428 | H41: 9439.405017 | I41: 10 | J41: 721631 | K41: 2564.925405 | L41: 2271.396796 | M41: 293.5286089 | N41: 13533.37906
A42: 31 | B42: Arbitrage Fund | C42: 25 | D42: 296071 | E42: 86320.86078 | F42: 84637.86443 | G42: 1682.99635 | H42: 52210.302 | I42: 27 | J42: 397903 | K42: 49915.58476 | L42: 35593.60654 | M42: 14321.97822 | N42: 62781.38928
A43: 32 | B43: Equity Savings Fund | C43: 23 | D43: 329350 | E43: 2447.915611 | F43: 9445.474456 | G43: -6997.558845 | H43: 11228.91221 | I43: 23 | J43: 298466 | K43: 759.536923 | L43: 3866.673964 | M43: -3107.137041 | N43: 10032.17461
B44: Sub total - III (27+28+29+30+31+32) | C44: 134 | D44: 9572715 | E44: 150980.0904 | F44: 174746.5355 | G44: -23766.44501 | H44: 262149.8683 | I44: 138 | J44: 9389309 | K44: 74227.74824 | L44: 84285.91395 | M44: -10058.16571 | N44: 310572.1829
A46: IV | B46: Solution Oriented Schemes
A47: 33 | B47: Retirement Fund | C47: 24 | D47: 2544753 | E47: 3155.475985 | F47: 1113.092589 | G47: 2042.383395 | H47: 8507.065204 | I47: 24 | J47: 2546069 | K47: 1173.853364 | L47: 923.8241178 | M47: 250.0292459 | N47: 11407.8956
A48: 34 | B48: Childrens' Fund | C48: 9 | D48: 2892087 | E48: 851.9479745 | F48: 440.1860009 | G48: 411.7619736 | H48: 7192.179142 | I48: 10 | J48: 2890935 | K48: 473.3393526 | L48: 220.2721387 | M48: 253.0672139 | N48: 9866.12077
B49: Sub total - IV (33+34) | C49: 33 | D49: 5436840 | E49: 4007.423959 | F49: 1553.27859 | G49: 2454.145369 | H49: 15699.24435 | I49: 34 | J49: 5437004 | K49: 1647.192716 | L49: 1144.096256 | M49: 503.0964597 | N49: 21274.01637
A51: V | B51: Other Schemes
A52: 35 | B52: Index Funds | C52: 32 | D52: 544075 | E52: 8221.72781 | F52: 3205.086812 | G52: 5016.640998 | H52: 8088.996682 | I52: 37 | J52: 775616 | K52: 6388.365482 | L52: 4785.860789 | M52: 1602.504693 | N52: 14301.14307
A53: 36 | B53: GOLD ETFs | C53: 11 | D53: 526671 | E53: 2514.787198 | F53: 901.1952245 | G53: 1613.591974 | H53: 7949.062874 | I53: 11 | J53: 838149 | K53: 5871.128554 | L53: 1161.521866 | M53: 4709.606688 | N53: 13239.88254
A54: 37 | B54: Other ETFs | C54: 76 | D54: 1899781 | E54: 123007.7381 | F54: 63198.32631 | G54: 59809.41176 | H54: 146462.6748 | I54: 88 | J54: 3248481 | K54: 60521.20578 | L54: 39247.70165 | M54: 21273.50414 | N54: 233668.6987
A55: 38 | B55: Fund of funds investing overseas | C55: 28 | D55: 189784 | E55: 1392.902934 | F55: 522.3633558 | G55: 870.5395778 | H55: 2734.355115 | I55: 29 | J55: 464020 | K55: 4495.712958 | L55: 1123.342206 | M55: 3372.370751 | N55: 7641.973644
B56: Sub total - V (35+36+37+38) | C56: 147 | D56: 3160311 | E56: 135137.156 | F56: 67826.9717 | G56: 67310.18431 | H56: 165235.0895 | I56: 165 | J56: 5326266 | K56: 77276.41278 | L56: 46318.42651 | M56: 30957.98627 | N56: 268851.6979
B58: Total A-Open ended Schemes | C58: 967 | D58: 86998118 | E58: 18808945.72 | F58: 18683938.87 | G58: 125006.8479 | H58: 2050733.608 | I58: 995 | J58: 91504544 | K58: 5790751.088 | L58: 5479563.706 | M58: 311187.3924 | N58: 2845337.305
A60: B | B60: Close Ended Schemes
A61: I | B61: Income/Debt Oriented Schemes
A62: i | B62: Fixed Term Plan | C62: 742 | D62: 851658 | E62: 4013.985541 | F62: 32726.7692 | G62: -28712.78365 | H62: 140594.5246 | I62: 582 | J62: 521582 | K62: 76.44179051 | L62: 30110.07163 | M62: -30033.62983 | N62: 118458.7673
A63: ii | B63: Capital Protection Oriented Schemes | C63: 31 | D63: 107535 | E63: 489.0186014 | F63: 2665.472813 | G63: -2176.454212 | H63: 4209.976861 | I63: 22 | J63: 59827 | K63: 0 | L63: 1867.837476 | M63: -1867.837476 | N63: 2628.948478
A64: iii | B64: Infrastructure Debt Fund | C64: 9 | D64: 89 | E64: 0 | F64: 314.7224281 | G64: -314.7224281 | H64: 2391.370602 | I64: 9 | J64: 89 | K64: 0 | L64: 0 | M64: 0 | N64: 2328.014899
A65: iv | B65: Other Debt | C65: 33 | D65: 83390 | E65: 0 | F65: 2605.930937 | G65: -2605.930937 | H65: 3426.887343 | I65: 9 | J65: 18947 | K65: 0 | L65: 2875.938467 | M65: -2875.938467 | N65: 779.42699
B66: Sub total (i+ii+iii+iv) | C66: 815 | D66: 1042672 | E66: 4503.004143 | F66: 38312.89537 | G66: -33809.89123 | H66: 150622.7594 | I66: 622 | J66: 600445 | K66: 76.44179051 | L66: 34853.84757 | M66: -34777.40578 | N66: 124195.1577
A68: II | B68: Growth/Equity Oriented Schemes
A69: i | B69: ELSS | C69: 25 | D69: 470566 | E69: 0 | F69: 322.0982075 | G69: -322.0982075 | H69: 3044.947024 | I69: 25 | J69: 457228 | K69: 0 | L69: 150.4933871 | M69: -150.4933871 | N69: 4438.920265
A70: ii | B70: Others | C70: 86 | D70: 1230807 | E70: 4e-05 | F70: 1868.324854 | G70: -1868.324814 | H70: 21408.90239 | I70: 73 | J70: 1113484 | K70: -1e-05 | L70: 3202.034424 | M70: -3202.034434 | N70: 26547.91566
B71: Sub total (i+ii) | C71: 111 | D71: 1701373 | E71: 4e-05 | F71: 2190.423062 | G71: -2190.423022 | H71: 24453.84941 | I71: 98 | J71: 1570712 | K71: -1e-05 | L71: 3352.527812 | M71: -3352.527822 | N71: 30986.83593
A73: III | B73: Other Schemes | C73: 0 | D73: 0 | E73: 0 | F73: 0 | G73: 0 | H73: 0 | I73: 0 | J73: 0 | K73: 0 | L73: 0 | M73: 0 | N73: 0
B75: Total B -Close ended Schemes | C75: 926 | D75: 2744045 | E75: 4503.004183 | F75: 40503.31844 | G75: -36000.31425 | H75: 175076.6088 | I75: 720 | J75: 2171157 | K75: 76.4417805 | L75: 38206.37538 | M75: -38129.9336 | N75: 155181.9936
A77: C | B77: Interval Schemes
A78: I | B78: Income/Debt Oriented Schemes | C78: 23 | D78: 3888 | E78: 9.047738238 | F78: 1714.755415 | G78: -1705.707676 | H78: 392.6487291 | I78: 23 | J78: 3632 | K78: 3.6088693 | L78: 43.75305817 | M78: -40.14418887 | N78: 385.1411911
A80: II | B80: Growth/Equity Oriented Schemes | C80: 0 | D80: 0 | E80: 0 | F80: 0 | G80: 0 | H80: 0 | I80: 0 | J80: 0 | K80: 0 | L80: 0 | M80: 0 | N80: 0
A82: III | B82: Other Schemes | C82: 0 | D82: 0 | E82: 0 | F82: 0 | G82: 0 | H82: 0 | I82: 0 | J82: 0 | K82: 0 | L82: 0 | M82: 0 | N82: 0
B84: Total C -Interval Schemes | C84: 23 | D84: 3888 | E84: 9.047738238 | F84: 1714.755415 | G84: -1705.707676 | H84: 392.6487291 | I84: 23 | J84: 3632 | K84: 3.6088693 | L84: 43.75305817 | M84: -40.14418887 | N84: 385.1411911
A86: Grand Total (A+B+C) | B86: Grand Total (A+B+C) | C86: 1916 | D86: 89746051 | E86: 18813457.77 | F86: 18726156.95 | G86: 87300.82598 | H86: 2226202.865 | I86: 1738 | J86: 93679333 | K86: 5790831.139 | L86: 5517813.834 | M86: 273017.3146 | N86: 3000904.44
B88: Fund of Funds Scheme (Domestic) | C88: 46 | D88: 637072 | E88: 10813.35155 | F88: 1930.132025 | G88: 8883.21952 | H88: 12257.11305 | I88: 50 | J88: 1015460 | K88: 10253.7587 | L88: 3697.603385 | M88: 6556.155316 | N88: 21934.62236
A89: Notes:
A90: 1. No.of schemes also includes serial plans.
A91: 2. Inter scheme investments are excluded from the above data
A92: $ indicates as on November 30, 2020
A93: Source: SEBI.

Sheet 58
A1: Table 58: Trends in Transactions on Stock Exchanges by Mutual Funds
J2: (₹ crore)
A3: Year/ Month | B3: Equity | E3: Debt | H3: Total
B4: Gross Purchases | C4: Gross Sales | D4: Net Purchases /Sales | E4: Gross Purchases | F4: Gross Sales | G4: Net Purchases /Sales | H4: Gross Purchases | I4: Gross Sales | J4: Net purchases /Sale
A5: 2019-20 | B5: 807672.21 | C5: 715713.18 | D5: 91959.03 | E5: 2263634.98 | F5: 1846883.03 | G5: 416751.95 | H5: 3071307.19 | I5: 2562596.21 | J5: 508710.98
A6: 2020-21$ | B6: =SUM(B7:B17) -> 477931.48 | C6: 547670.74 | D6: -69739.26 | E6: 1158890.28 | F6: 989613.18 | G6: 169277.1 | H6: 1636821.76 | I6: 1537283.92 | J6: 99537.84
A7: Apr-20 | B7: 54525.1 | C7: 62490.6 | D7: -7965.5 | E7: 121444.56 | F7: 131239.1 | G7: -9794.54 | H7: 175969.66 | I7: 193729.7 | J7: -17760.04
A8: May-20 | B8: 70794.76 | C8: 64272.31 | D8: 6522.45 | E8: 139959.84 | F8: 129260.47 | G8: 10699.37 | H8: 210754.6 | I8: 193532.78 | J8: 17221.82
A9: Jun-20 | B9: 73265.58 | C9: 73767.08 | D9: -501.5 | E9: 179002.03 | F9: 137637.32 | G9: 41364.71 | H9: 252267.61 | I9: 211404.4 | J9: 40863.21
A10: Jul-20 | B10: 61103.69 | C10: 70298.73 | D10: -9195.04 | E10: 171073.17 | F10: 139175.32 | G10: 31897.85 | H10: 232176.86 | I10: 209474.05 | J10: 22702.81
A11: Aug-20 | B11: 56271.3 | C11: 65484.74 | D11: -9213.44 | E11: 142115.71 | F11: 116335.43 | G11: 25780.28 | H11: 198387.01 | I11: 181820.17 | J11: 16566.84
A12: Sep-20 | B12: 63901.29 | C12: 68035.66 | D12: -4134.37 | E12: 151055.36 | F12: 134050.39 | G12: 17004.97 | H12: 214956.65 | I12: 202086.05 | J12: 12870.6
A13: Oct-20 | B13: 48961.53 | C13: 63453.32 | D13: -14491.79 | E13: 144610.72 | F13: 112635.61 | G13: 31975.11 | H13: 193572.25 | I13: 176088.93 | J13: 17483.32
A14: Nov-20 | B14: 49108.23 | C14: 79868.3 | D14: -30760.07 | E14: 109628.89 | F14: 89279.54 | G14: 20349.35 | H14: 158737.12 | I14: 169147.84 | J14: -10410.72
A15: Note:
A16: $ indicates up to November 30,2020
A17: Source: SEBI

Sheet 59
A1: Table 59: Assets Managed by Portfolio Managers
A2: Year / Month | B2: 2019-20 | F2: 2020-21$
A3: Particulars | B3: Discretionary | C3: Non-Discretionary | D3: Advisory | E3: Total | F3: Discretionary# | G3: Non-Discretionary | H3: Advisory** | I3: Total
A4: No. of Clients | B4: 138829 | C4: 6853 | D4: 4038 | E4: 149720 | F4: 145404 | G4: 8409 | H4: 1983 | I4: =F4+G4+H4 -> 155796
A5: AUM (₹ crore)
A6: Listed Equity | B6: 111995.61 | C6: 18477.08 | D6: 0 | E6: 130472.69 | F6: 130527.0191 | G6: 20992.521 | H6: 0 | I6: =SUM(F6:H6) -> 151519.5401
A7: Unlisted Equity | B7: 458.85 | C7: 74.69 | D7: 0 | E7: 533.54 | F7: 398.436 | G7: 143.484 | H7: 0 | I7: =SUM(F7:H7) -> 541.92
A8: Plain Debt | B8: 1160856.72 | C8: 74701.85 | D8: 0 | E8: 1235558.57 | F8: 1469555.22 | G8: 83816.852 | H8: 0 | I8: 1553372.072
A9: Structured Debt | B9: 752.86 | C9: 530.57 | D9: 0 | E9: 1283.43 | F9: 1975.087 | G9: 1404.783 | H9: 0 | I9: 3379.87
A10: Equity Derivatives | B10: 466.12 | C10: -1.24 | D10: 0 | E10: 464.88 | F10: 547.434 | G10: 0.007 | H10: 0 | I10: 547.441
A11: Mutual Funds | B11: 14112.76 | C11: 13856.15 | D11: 0 | E11: 27968.91 | F11: 14948.274 | G11: 12145.105 | H11: 0 | I11: 27093.379
A12: Others | B12: 14498.29 | C12: 1392.08 | D12: 0 | E12: 15890.37 | F12: 7527.558 | G12: 2476.41 | H12: 0 | I12: 10003.968
A13: Total* | B13: 1303141.21 | C13: 109031.18 | D13: 193620 | E13: 1605792.39 | F13: 1625479.028 | G13: 120979.162 | H13: 175452.641 | I13: =SUM(F13:H13) -> 1921910.831
A14: Notes:
A15: 1. **Value of Assets for which Advisory Services are being given.
A16: 2. #of the above AUM Rs. 14,61,772.645/- Crores are contributed by funds from EPFO/PFs.
A17: 3. The above data is based on the monthly report received from Portfolio Managers.
A18: $ indicates up to November 30, 2020
A19: Source: SEBI.

Sheet 60
A1: Table 60: Progress Report of NSDL & CDSL as on end of November 2020 (Listed Companies)
A2: Parameter | B2: Unit | C2: NSDL | H2: CDSL
C3: Nov-20 | D3: Oct-20 | E3: Nov-19 | F3: % Change during the year | G3: % Change during the month | H3: Nov-20 | I3: Oct-20 | J3: Nov-19 | K3: % Change during the year | L3: % Change during the month
A4: Number of companies signed up to make their shares available for dematerialization | B4: Number | C4: 5656 | D4: 5651 | E4: 5599 | F4: 1.018038936 | G4: 0.088479915 | H4: 5737 | I4: 5734 | J4: 5630 | K4: 1.9 | L4: 0.05
A5: Number of Depository Participants (registered) | B5: Number | C5: 278 | D5: 278 | E5: 278 | F5: 0 | G5: 0 | H5: 589 | I5: 591 | J5: 599 | K5: -1.67 | L5: -0.34
A6: Number of Clearing Corporations (connected) | B6: Number | C6: 4 | D6: 4 | E6: 3 | F6: 33.33333333 | G6: 0 | H6: 3 | I6: 3 | J6: 3 | K6: 0 | L6: 0
A7: Number of Investors Accounts | B7: Lakh | C7: 207.23 | D7: 205.85 | E7: 204.83379 | F7: 1.169831403 | G7: 0.670391061 | H7: 278.72 | I7: 270.41 | J7: 194.87 | K7: 43.03 | L7: 3.07
A8: Quantity of Shares dematerialized | B8: Crore | C8: 56127.82701 | D8: 55719.58456 | E8: 53647.01773 | F8: 4.624319079 | G8: 0.73267318 | H8: 23339.52 | I8: 23608.87 | J8: 21801.56 | K8: 7.05 | L8: -1.14
A9: Value of Shares dematerialized | B9: Crore | C9: 15328401.31 | D9: 13848796.73 | E9: 13444353.95 | F9: 14.01366972 | G9: 10.68399373 | H9: 1926202.15 | I9: 1711021.11 | J9: 1808048.19 | K9: 6.53 | L9: 12.58
A10: Quantity of Securities dematerialized # | B10: Crore | C10: 60564.87066 | D10: 60119.09599 | E10: 57796.51159 | F10: 4.789837659 | G10: 0.741485995 | H10: 25774.23 | I10: 25988.91 | J10: 23616.74 | K10: 9.14 | L10: -0.83
A11: Value of Securities dematerialized # | B11: Crore | C11: 18774769.69 | D11: 17252274.01 | E11: 16344157.96 | F11: 14.87144059 | G11: 8.824898564 | H11: 2111062.45 | I11: 1886366.74 | J11: 1949032.96 | K11: 8.31 | L11: 11.91
A12: Quantity of shares settled during the month | B12: Crore | C12: 1288.793541 | D12: 926.98 | E12: 1352.168906 | F12: -4.686941483 | G12: 39.03142905 | H12: 1748.82 | I12: 1167.29 | J12: 766.9 | K12: 128.04 | L12: 49.82
A13: Average Quantity of shares settled daily (quantity of shares settled during the month) | B13: Crore | C13: 67.83 | D13: 46.35 | E13: 67.60844532 | F13: 0.327702669 | G13: 46.34304207 | H13: 58.29 | I13: 37.65 | J13: 25.56 | K13: 128.04 | L13: 54.81
A14: Value of shares settled during the month in dematerialized form | B14: Crore | C14: 348425.8533 | D14: 232311.96 | E14: 302573.3743 | F14: 15.15416853 | G14: 49.98188356 | H14: 172500.32 | I14: 117420.57 | J14: 68864.23 | K14: 150.49 | L14: 46.91
A15: Average Value of shares settled daily (value of shares settled during the month) | B15: Crore | C15: 18338.20281 | D15: 11615.6 | E15: 15128.66871 | F15: 21.21491424 | G15: 57.87563972 | H15: 5750.01 | I15: 3787.76 | J15: 2295.47 | K15: 150.49 | L15: 51.81
A16: Training Programmes conducted for representatives of Corporates, DPs and Brokers | B16: Number | C16: 1 | D16: 2 | E16: 10 | F16: -90 | G16: -50 | H16: 0 | I16: 0 | J16: 57 | K16: -100 | L16: Na
A17: The ratio of dematerialized equity shares to the total outstanding shares market value | B17: Per cent | C17: 87.88 | D17: 88.05 | E17: 86.8983095 | F17: 1.129700339 | G17: -0.193072118 | H17: 11.13 | I17: 10.96 | J17: 11.7 | K17: -4.87 | L17: 1.56
A18: Notes:
A19: 1. Shares includes only equity shares.
A20: 2. Securities include common equity shares, preference shares, debenture, MF units, etc.
A21: 3. No. of days taken for calculating Daily Average is 30 days instead of Actual settlement days.
A22: 4. Quantity and value of shares mentioned are single sided.
A23: 5. #Source for listed securities information: Issuer/ NSE/BSE.
A24: $ indicates as on November 30, 2020
A25: Source: NSDL and CDSL.

Sheet 61
A1: Table 61: Progress of Dematerialisation at NSDL and CDSL (Listed and Unlisted Companies)
A2: Year/ Month | B2: NSDL | G2: CDSL
B3: Companies Live | C3: DPs Live | D3: DPs Locations | E3: Demat Quantity (million securities) | F3: Demat Value (₹ crore) | G3: Companies Live | H3: DPs Live | I3: DPs Locations | J3: Demat Quantity (million securities) | K3: Demat Value (₹ crore)
A4: 2019-20 | B4: 30335 | C4: 279 | D4: 30874 | E4: 2351602.99 | F4: 16032791.79 | G4: 14762 | H4: 599 | I4: 20352 | J4: 455726.55 | K4: 1671972.37
A5: 2020-21$ | B5: =B13 -> 32620 | C5: =C13 -> 278 | D5: 31268 | E5: 2376087.14 | F5: 21505640.53 | G5: 15788 | H5: 589 | I5: 20660 | J5: 458572.33 | K5: 2318158.59
A6: Apr-20 | B6: 30366 | C6: 280 | D6: 30948 | E6: 2354838.66 | F6: 18960841.86 | G6: 38546 | H6: 595 | I6: 20519 | J6: 438715.09 | K6: 1844619.85
A7: May-20 | B7: 30425 | C7: 280 | D7: 30971 | E7: 2175115.25 | F7: 17045667.54 | G7: 14818 | H7: 596 | I7: 20548 | J7: 437804.87 | K7: 1844324.8
A8: Jun-20 | B8: 30594 | C8: 278 | D8: 30989 | E8: 2183559.3 | F8: 18075718.44 | G8: 14891 | H8: 597 | I8: 20589 | J8: 439758.12 | K8: 2042069.83
A9: Jul-20 | B9: 30802 | C9: 278 | D9: 31024 | E9: 2283349.31 | F9: 19011716.52 | G9: 15011 | H9: 597 | I9: 20672 | J9: 445417.07 | K9: 2068009.11
A10: Aug-20 | B10: 31125 | C10: 277 | D10: 31065 | E10: 2301443.69 | F10: 19610998.64 | G10: 15144 | H10: 594 | I10: 20689 | J10: 448038.24 | K10: 2147565.27
A11: Sep-20 | B11: 31800 | C11: 277 | D11: 31221 | E11: 2330889.28 | F11: 19770287.74 | G11: 15455 | H11: 593 | I11: 20694 | J11: 454306 | K11: 2077006.853
A12: Oct-20 | B12: 32285 | C12: 278 | D12: 31241 | E12: 2371425.25 | F12: 19989147.9 | G12: 15662 | H12: 591 | I12: 20706 | J12: 457347.94 | K12: 2092306.68
A13: Nov-20 | B13: 32620 | C13: 278 | D13: 31268 | E13: 2376087.14 | F13: 21505640.53 | G13: 15788 | H13: 589 | I13: 20660 | J13: 458572.33 | K13: 2318158.59
A14: Notes :
A15: 1. For CDSL, the current and historical data of Companies Live has been revised to exclude MF schemes count.
A16: 2. The Companies Live figure includes only the number of mutual fund companies and not the mutual fund schemes.
A17: 3. DPs Locations represents the total live (main DPs and branch DPs as well as non-live (back office connected collection centres).
A18: $ indicates as on November 30, 2020
A19: Source: NSDL and CDSL.

Sheet 62
A1: Table 62: Depository Statistics
A2: Particulars | B2: Unit | C2: Debt | E2: Equity | G2: Others | I2: Total
C3: Listed | D3: Unlisted | E3: Listed | F3: Unlisted | G3: Listed | H3: Unlisted | I3: Listed | J3: Unlisted
A4: NSDL
A5: No.of issuers debt/Companies(equity) | B5: (numbers) | C5: 844 | D5: 2200 | E5: 5656 | F5: 23418 | G5: 239 | H5: 5028 | I5: 6739 | J5: 30646
A6: No.of Active Instruments | B6: (numbers) | C6: 9019 | D6: 8530 | E6: 11466 | F6: 25106 | G6: 4883 | H6: 26757 | I6: 25368 | J6: 60393
A7: Demat Quantity | B7: (lakhs) | C7: 114460.9438 | D7: 901692.8041 | E7: 5612782.701 | F7: 11266175.53 | G7: 329243.4216 | H7: 5536516.146 | I7: 6056487.066 | J7: 17704384.48
A8: Demat Value | B8: (Rs.crore) | C8: 2896176.614 | D8: 618891.9067 | E8: 15328401.31 | F8: 1070211.133 | G8: 550191.7726 | H8: 1041767.797 | I8: 18774769.69 | J8: 2730870.837
A9: Quantity settled during the month* | B9: (Lakh) | C9: 758.08353 | D9: 2978.70888 | E9: 128879.3541 | F9: 201.20707 | G9: 1915.579093 | H9: 158.15443 | I9: 131553.0167 | J9: 3338.07038
A10: Value Settled during the month* | B10: (Rs.crore) | C10: 103286.6637 | D10: 9783.014422 | E10: 348425.8533 | F10: 67.82206077 | G10: 2459.111369 | H10: 453.7553656 | I10: 454171.6284 | J10: 10304.59185
A11: CDSL
A12: No. of Issuers (Debt) / Companies (Equity) | B12: (numbers) | C12: 603 | D12: 466 | E12: 5737 | F12: 8792 | G12: 2484 | H12: 708 | I12: 8824 | J12: 9966
A13: No. of Active Instruments | B13: (numbers) | C13: 7277 | D13: 4012 | E13: 5872 | F13: 9096 | G13: 20453 | H13: 2256 | I13: 33602 | J13: 15364
A14: Demat Quantity | B14: (lakh) | C14: 3513.8 | D14: 119547.52 | E14: 2333951.52 | F14: 1744928.64 | G14: 239957.58 | H14: 143824.19 | I14: 2577422.89 | J14: 2008300.36
A15: Demat Value | B15: (Rs.crore) | C15: 73274.85 | D15: 44334.04 | E15: 1926202.15 | F15: 135623 | G15: 111585.45 | H15: 27139.1 | I15: 2111062.45 | J15: 207096.13
A16: Quantity settled during the month | B16: (lakh) | C16: 36.59 | D16: 0 | E16: 174881.86 | F16: 0 | G16: 21081.09 | H16: 0 | I16: 195999.54 | J16: 0
A17: Value Settled during the month | B17: (Rs.crore) | C17: 433.93 | D17: 0 | E17: 172500.32 | F17: 0 | G17: 13091.74 | H17: 0 | I17: 186025.99 | J17: 0
A18: Notes:
A19: 1. The categories included in Others are Preference Shares, Mutual Fund Units, Warrants, PTCs, Treasury Bills, CPs, CDs and Government Securities.
A20: 2. * Does not include settlement details for Warehouse reciepts/Commodities.
A21: $ indicates as on November 30, 2020
A22: Source: NSDL and CDSL.

Sheet 63
A1: Table 63: Number of commodities permitted and traded at exchanges
A2: Exchanges | B2: Particulars | C2: Futures | I2: Options
C3: Agriculture | D3: Metals other than bullion | E3: Bullion | F3: Energy | G3: Gems and Stones | H3: Indices | I3: Agriculture | J3: Metals other than bullion | K3: Bullion | L3: Energy
A4: NCDEX | B4: Permitted for trading | C4: 22 | D4: 1 | E4: 0 | F4: 0 | G4: 0 | H4: 1 | I4: 7 | J4: 0 | K4: 0 | L4: 0
B5: Contracts floated | C5: 21 | D5: 0 | E5: 0 | F5: 0 | G5: 0 | H5: 5 | I5: 7 | J5: 0 | K5: 0 | L5: 0
B6: Traded | C6: 15 | D6: 0 | E6: 0 | F6: 0 | G6: 0 | H6: 2 | I6: 3 | J6: 0 | K6: 0 | L6: 0
A7: MCX | B7: Permitted for trading | C7: 8 | D7: 5 | E7: 2 | F7: 2 | G7: 0 | H7: 2 | I7: 0 | J7: 2 | K7: 2 | L7: 1
B8: Contracts floated | C8: 7 | D8: 5 | E8: 2 | F8: 2 | G8: 0 | H8: 2 | I8: 0 | J8: 2 | K8: 2 | L8: 1
B9: Traded | C9: 5 | D9: 5 | E9: 2 | F9: 2 | G9: 0 | H9: 2 | I9: 0 | J9: 2 | K9: 2 | L9: 1
A10: ICEX | B10: Permitted for trading | C10: 10 | D10: 1 | E10: 0 | F10: 0 | G10: 1 | H10: 0 | I10: 0 | J10: 0 | K10: 0 | L10: 0
B11: Contracts floated | C11: 10 | D11: 1 | E11: 0 | F11: 0 | G11: 1 | H11: 0 | I11: 0 | J11: 0 | K11: 0 | L11: 0
B12: Traded | C12: 0 | D12: 0 | E12: 0 | F12: 0 | G12: 1 | H12: 0 | I12: 0 | J12: 0 | K12: 0 | L12: 0
A13: BSE | B13: Permitted for trading | C13: 8 | D13: 3 | E13: 2 | F13: 2 | G13: 0 | H13: 0 | I13: 0 | J13: 0 | K13: 2 | L13: 0
B14: Contracts floated | C14: 8 | D14: 3 | E14: 2 | F14: 2 | G14: 0 | H14: 0 | I14: 0 | J14: 0 | K14: 2 | L14: 0
B15: Traded | C15: 2 | D15: 0 | E15: 1 | F15: 0 | G15: 0 | H15: 0 | I15: 0 | J15: 0 | K15: 2 | L15: 0
A16: NSE | B16: Permitted for trading | C16: 1 | D16: 1 | E16: 2 | F16: 1 | G16: 0 | H16: 0 | I16: 0 | J16: 1 | K16: 2 | L16: 0
B17: Contracts floated | C17: 0 | D17: 0 | E17: 2 | F17: 1 | G17: 0 | H17: 0 | I17: 0 | J17: 0 | K17: 2 | L17: 0
B18: Traded | C18: 0 | D18: 0 | E18: 1 | F18: 0 | G18: 0 | H18: 0 | I18: 0 | J18: 0 | K18: 1 | L18: 0
A19: Note: Data is for the month of November 2020.
A20: Source: NCDEX, MCX, ICEX, BSE and NSE

Sheet 64
A1: Table 64: Trends in commodity indices
A2: Year/ Month | B2: MCX iCOMDEX | F2: NCDEX Nkrishi
B3: Open | C3: High | D3: Low | E3: Close | F3: Open | G3: High | H3: Low | I3: Close
A4: 2019-20 | B4: 10576 | C4: 10951 | D4: 7662.5 | E4: 8255.52 | F4: 3450.3 | G4: 3674 | H4: 2841.01 | I4: 3179.85
A5: 2020-21$ | B5: 8252.44 | C5: 10649.58 | D5: 7866.92 | E5: =E13 -> 10149.03 | F5: 3176.19 | G5: 3879.42 | H5: 3027.91 | I5: =I13 -> 3771.47
A6: 2020-04-01 | B6: 8252.44 | C6: 8848.23 | D6: 7866.92 | E6: 8007.17 | F6: 3176.19 | G6: 3266.84 | H6: 3027.91 | I6: 3173.55
A7: 2020-05-02 | B7: 8008.34 | C7: 8720.91 | D7: 7994.73 | E7: 8705.89 | F7: 3173.55 | G7: 3233.2 | H7: 3121.31 | I7: 3188.11
A8: 2020-06-03 | B8: 8707.21 | C8: 9102.58 | D8: 8664.18 | E8: 9089.06 | F8: 3188.11 | G8: 3343.94 | H8: 3187.68 | I8: 3238.66
A9: 2020-07-04 | B9: 9090.04 | C9: 10047.24 | D9: 8971.64 | E9: 10001.06 | F9: 3238.66 | G9: 3300.47 | H9: 3219.8 | I9: 3265.1
A10: 2020-08-05 | B10: 10001.56 | C10: 10649.58 | D10: 9773.19 | E10: 10227.33 | F10: 3265.1 | G10: 3586.59 | H10: 3262.37 | I10: 3582.76
A11: 2020-09-06 | B11: 10232.2 | C11: 10320.48 | D11: 9540 | E11: 9714.1 | F11: 3582.76 | G11: 3627.98 | H11: 3427.34 | I11: 3614.93
A12: 2020-10-07 | B12: 9716 | C12: 10117.29 | D12: 9545.29 | E12: 9873.66 | F12: 3614.93 | G12: 3775.65 | H12: 3606.34 | I12: 3757.53
A13: 2020-11-08 | B13: 9874.46 | C13: 10348.87 | D13: 9836.45 | E13: 10149.03 | F13: 3757.53 | G13: 3879.42 | H13: 3697.93 | I13: 3771.47
A14: ='[1]1'!A8 -> $ indicates as on Nov. 30, 2020
A15: Source: MCX and NCDEX

Sheet 65
A1: Table 65: Trends in commodity derivatives at MCX
A2: Futures
A3: Year/ Month | B3: No.of Trading days | C3: Agriculture | F3: Metals | I3: Bullion | L3: Energy | O3: BULLDEX Index | R3: METALDEX Index | U3: Total | W3: Open interest at the end of the period
C4: Volume ('000 tonnes) | D4: No. of contracts traded | E4: Turnover (₹ crore) | F4: Volume ('000 tonnes) | G4: No. of contracts traded | H4: Turnover (₹ crore) | I4: Volume ('000 tonnes) | J4: No. of contracts traded | K4: Turnover (₹ crore) | L4: Volume ('000 tonnes)* | M4: No. of contracts traded | N4: Turnover (₹ crore) | O4: Volume ('000 lots)** | P4: No. of contracts traded | Q4: Turnover (₹ crore) | R4: Volume ('000 lots)** | S4: No. of contracts traded | T4: Turnover (₹ crore) | U4: No. of contracts traded | V4: Turnover (₹ crore) | W4: No. of contracts traded | X4: Value (₹ crore)
A5: 2019-20 | B5: 259 | C5: 11353.45303 | D5: 1789350 | E5: 100919.4925 | F5: 54812.69815 | G5: 37596650 | H5: 1568294.471 | I5: 267.940539 | J5: 50829084 | K5: 2915533.563 | L5: 1188816.195 | M5: 205480778 | N5: 3813027.43 | U5: 295695862 | V5: 8397774.957 | W5: 148505 | X5: 11002.5758
A6: 2020-21$ | B6: =SUM(B7:B14) -> 170 | C6: =SUM(C7:C14) -> 6582.1112 | D6: 752117 | E6: 51320.51999 | F6: 24780.2105 | G6: 9484869 | H6: 972088.6683 | I6: 286.5566576 | J6: 76790651 | K6: 3147986.088 | L6: 261977.0434 | M6: 51173496 | N6: =SUM(N7:N14) -> 1169191.964 | O6: =SUM(O7:O14) -> 228.11 | P6: 228110 | Q6: 17854.53696 | R6: 26.574 | S6: =SUM(S7:S14) -> 26574 | T6: =SUM(T7:T14) -> 1674.919715 | U6: =SUM(U7:U14) -> 138455817 | V6: =SUM(V7:V14) -> 5360116.696 | W6: =W14 -> 195315 | X6: =X14 -> 13359.13617
A7: 2020-04-01 | B7: 18 | C7: 517.98456 | D7: 66294 | E7: 3671.85573 | F7: 1396.8565 | G7: 1107524 | H7: 43536.21015 | I7: 12.25099258 | J7: 3589671 | K7: 143017.3043 | L7: 54865.71703 | M7: 5858278 | N7: 91621.07468 | U7: 10621767 | V7: 281846.4448 | W7: 122686 | X7: 11614.03736
A8: 2020-05-02 | B8: 21 | C8: 617.4138 | D8: 76863 | E8: 4106.318418 | F8: 2275.9255 | G8: 1497418 | H8: 79117.77099 | I8: 27.946811 | J8: 7175006 | K8: 296836.6268 | L8: 37857.34025 | M8: 6228088 | N8: 118996.5638 | U8: 14977375 | V8: 499057.28 | W8: 135281 | X8: 14295.76039
A9: 2020-06-03 | B9: 22 | C9: 877.94938 | D9: 104714 | E9: 6367.65819 | F9: 3261.3175 | G9: 1057395 | H9: 115127.8132 | I9: 37.02126068 | J9: 9153415 | K9: 364906.4095 | L9: 39902.86552 | M9: 6570596 | N9: 143533.8421 | U9: 16886120 | V9: 629935.7229 | W9: 152305 | X9: 14749.86986
A10: 2020-07-04 | B10: 23 | C10: 989.4659 | D10: 114651 | E10: 7277.396251 | F10: 3745.43 | G10: 1253701 | H10: 149118.7076 | I10: 57.35769892 | J10: 13030913 | K10: 559967.5982 | L10: 30250.28693 | M10: 6432779 | N10: 137758.0235 | U10: 20832044 | V10: 854121.7255 | W10: 144727 | X10: 15233.68247
A11: 2020-08-05 | B11: 21 | C11: 742.65033 | D11: 82203 | E11: 5824.450484 | F11: 3733.9475 | G11: 1216867 | H11: 152687.2922 | I11: 53.48041365 | J11: 14921463 | K11: 626980.1061 | L11: 21521.77385 | M11: 4927161 | N11: 123009.1633 | O11: 26.304 | P11: 26304 | Q11: 2119.63451 | U11: 21173998 | V11: 910620.6467 | W11: 164840 | X11: 17478.61964
A12: 2020-09-06 | B12: 22 | C12: 858.71835 | D12: 90864 | E12: 6838.53186 | F12: 3672.4005 | G12: 1176532 | H12: 146911.1652 | I12: 34.4748199 | J12: 10281771 | K12: 422378.6342 | L12: 24137.62654 | M12: 7268301 | N12: 171492.347 | O12: 65.662 | P12: 65662 | Q12: 5182.900995 | U12: 18883130 | V12: 752803.5792 | W12: 158034 | X12: 13881.93136
A13: 2020-10-07 | B13: 21 | C13: 866.81293 | D13: 94222 | E13: 7096.090125 | F13: 3524.6615 | G13: 1144077 | H13: 146202.4981 | I13: 32.13081844 | J13: 9234948 | K13: 352878.6897 | L13: 24606.35779 | M13: 6904446 | N13: 187020.7353 | O13: 63.268 | P13: 63268 | Q13: 4908.71764 | R13: 10.742 | S13: 10742 | T13: 658.51667 | U13: 17451703 | V13: 698765.2476 | W13: 168203 | X13: 14247.26959
A14: 2020-11-08 | B14: 22 | C14: 1111.11595 | D14: 122306 | E14: 10138.21893 | F14: 3169.6715 | G14: 1031355 | H14: 139387.2109 | I14: 31.89384238 | J14: 9403464 | K14: 381020.7188 | L14: 28835.07545 | M14: 6983847 | N14: 195760.2141 | O14: 72.876 | P14: 72876 | Q14: 5643.283815 | R14: 15.832 | S14: 15832 | T14: 1016.403045 | U14: 17629680 | V14: 732966.0496 | W14: 195315 | X14: 13359.13617
A16: Options
A17: Year / Month | B17: No.of Trading days | C17: Metals | G17: Bullion | K17: Energy | O17: Total | Q17: Open interest at the end of the period
C18: Call Options | E18: Put Options | G18: Call Options | I18: Put Options | K18: Call Options | M18: Put Options | O18: No. of contracts traded | P18: Turnover (₹ crore) | Q18: No. of contracts traded | R18: Notional Value (₹ crore)
C19: No. of contracts traded | D19: Turnover (₹ crore) | E19: No. of contracts traded | F19: Turnover (₹ crore) | G19: No. of contracts traded | H19: Turnover (₹ crore) | I19: No. of contracts traded | J19: Turnover (₹ crore) | K19: No. of contracts traded | L19: Turnover (₹ crore) | M19: No. of contracts traded | N19: Turnover (₹ crore)
A20: 2019-20 | B20: 259 | C20: 18146 | D20: 1293.233604 | E20: 12977 | F20: 969.928682 | G20: 251533 | H20: 74410.13889 | I20: 278935 | J20: 90244.62965 | K20: 1729784 | L20: 69961.98724 | M20: 1393470 | N20: 54862.74249 | O20: 3684845 | P20: 291742.6706 | Q20: 11844 | R20: 698.0797015
A21: 2020-21$ | B21: =SUM(B22:B29) -> 170 | C21: =SUM(C22:C29) -> 191 | D21: 23.794452 | E21: 314 | F21: 32.5810495 | G21: 165451 | H21: 56687.59705 | I21: 210802 | J21: 72599.14324 | K21: 458541 | L21: 12944.65356 | M21: 378945 | N21: =SUM(N22:N29) -> 9967.430131 | O21: =SUM(O22:O29) -> 1214244 | P21: 152255.1995 | Q21: =Q29 -> 4646 | R21: =R29 -> 630.1213455
A22: 2020-04-01 | B22: 18 | C22: 3 | D22: 0.32998 | E22: 9 | F22: 0.8910125 | G22: 6999 | H22: 1968.677466 | I22: 10944 | J22: 3679.823701 | K22: 90838 | L22: 1914.003608 | M22: 55438 | N22: 933.480838 | O22: 164231 | P22: 8497.206606 | Q22: 11690 | R22: 1651.020659
A23: 2020-05-02 | B23: 21 | C23: 31 | D23: 3.22686 | E23: 120 | F23: 11.252795 | G23: 11114 | H23: 4286.829843 | I23: 22893 | J23: 8974.658731 | K23: 62769 | L23: 1473.608562 | M23: 65421 | N23: 1300.13799 | O23: 162348 | P23: 16049.71478 | Q23: 7927 | R23: 816.2200095
A24: 2020-06-03 | B24: 22 | C24: 11 | D24: 1.238222 | E24: 15 | F24: 1.609997 | G24: 14448 | H24: 4216.118058 | I24: 19882 | J24: 6425.076092 | K24: 77698 | L24: 2375.349789 | M24: 74545 | N24: 2119.272538 | O24: 186599 | P24: 15138.6647 | Q24: 7860 | R24: 1559.11
A25: 2020-07-04 | B25: 23 | C25: 52 | D25: 6.482054 | E25: 114 | F25: 13.358576 | G25: 16126 | H25: 5916.559862 | I25: 33590 | J25: 11775.03414 | K25: 54977 | L25: 1749.687927 | M25: 52671 | N25: 1603.409256 | O25: 157530 | P25: 21064.53181 | Q25: 7882 | R25: 1184.07
A26: 2020-08-05 | B26: 21 | C26: 51 | D26: 6.733683 | E26: 43 | F26: 3.76247 | G26: 31320 | H26: 11674.08134 | I26: 45055 | J26: 14320.37471 | K26: 51453 | L26: 1688.743729 | M26: 41167 | N26: 1304.544019 | O26: 169089 | P26: 28998.23995 | Q26: 9062 | R26: 3026.305357
A27: 2020-09-06 | B27: 22 | C27: 22 | D27: 2.912236 | E27: 7 | F27: 0.903681 | G27: 31513 | H27: 12055.35163 | I27: 27693 | J27: 11639.88184 | K27: 46984 | L27: 1450.507405 | M27: 29288 | N27: 877.655851 | O27: 135507 | P27: 26027.21264 | Q27: 7154 | R27: 1279.010783
A28: 2020-10-07 | B28: 21 | C28: 13 | D28: 1.781925 | E28: 5 | F28: 0.663698 | G28: 14957 | H28: 4110.955478 | I28: 13901 | J28: 3827.172771 | K28: 37132 | L28: 1134.695143 | M28: 28066 | N28: 840.256526 | O28: 94074 | P28: 9915.525541 | Q28: 9650 | R28: 2388.153993
A29: 2020-11-08 | B29: 22 | C29: 8 | D29: 1.089492 | E29: 1 | F29: 0.13882 | G29: 38974 | H29: 12459.02338 | I29: 36844 | J29: 11957.12126 | K29: 36690 | L29: 1158.057393 | M29: 32349 | N29: 988.673113 | O29: 144866 | P29: 26564.10346 | Q29: 4646 | R29: 630.1213455
A30: ='[1]1'!A8 -> $ indicates as on Nov. 30, 2020
A31: Note : 1. Natural Gas volume is in Trillion BTU and is not included in volume ("000 tonnes") of energy contracts.
A32: 2. Options includes both options on futures and goods.
A33: Source: MCX

Sheet 66
A1: Table 66: Trends in commodity derivatives at NCDEX
A2: Year/ Month | B2: No.of Trading days | C2: Futures | M2: Options
C3: Agriculture | F3: Agridex Index | I3: Total | K3: Open interest at the end of the period | M3: Call options | O3: Put options | Q3: Total | S3: Open interest at the end of the period
C4: Volume ('000 tonnes) | D4: No. of contracts traded | E4: Turnover (₹ crore) | F4: Volume ('000 lots) | G4: No. of contracts traded | H4: Turnover (₹ crore) | I4: No. of contracts traded | J4: Turnover (₹ crore) | K4: No. of contracts traded | L4: Value (₹ crore) | M4: No. of contracts traded | N4: Turnover (₹ crore) | O4: No. of contracts traded | P4: Turnover (₹ crore) | Q4: No. of contracts traded | R4: Turnover (₹ crore) | S4: No. of contracts traded | T4: Notional Value (₹ crore)
A6: 2019-20 | B6: 247 | C6: 95258.746 | D6: 13080142 | E6: 441966.9694 | F6: Na | G6: Na | H6: Na | I6: 13080142 | J6: 441966.9694 | K6: 93073 | L6: 2262.96 | M6: 1518 | N6: 41.41 | O6: 22 | P6: 0.74 | Q6: =M6+O6 -> 1540 | R6: 42.15 | S6: 0 | T6: 0
A7: 2020-21$ | B7: =SUM(B8:B15) -> 166 | C7: =SUM(C8:C15) -> 36943.756 | D7: 5775691 | E7: 176784.4229 | F7: 5.555 | G7: 5555 | H7: 294.821375 | I7: 5781246 | J7: 177079.2443 | K7: =K15 -> 121177 | L7: =L15 -> 3517.67 | M7: =SUM(M8:M15) -> 323 | N7: =SUM(N8:N15) -> 9.99 | O7: 123 | P7: 6.33 | Q7: 446 | R7: 16.32 | S7: =S15 -> 188 | T7: =T15 -> 8.04
A8: 2020-04-01 | B8: 18 | C8: 3043.897 | D8: 491426 | E8: 12560.80381 | F8: Na | G8: Na | H8: Na | I8: =SUM(D8,G8) -> 491426 | J8: =SUM(E8,H8) -> 12560.80381 | K8: 69860 | L8: 1730.296536 | M8: 20 | N8: 0.68 | O8: 1 | P8: 0.02 | Q8: 21 | R8: 0.7 | S8: 1 | T8: 0.02
A9: 2020-05-02 | B9: 19 | C9: 2738.565 | D9: 417099 | E9: 11098.38433 | F9: 1.357 | G9: 1357 | H9: 69.0740125 | I9: =SUM(D9,G9) -> 418456 | J9: 11167.45834 | K9: 63805 | L9: 1656.4985 | M9: 50 | N9: 1.53 | O9: 0 | P9: 0 | Q9: 50 | R9: 1.53 | S9: 50 | T9: 0.13
A10: 2020-06-03 | B10: 22 | C10: 4488.21 | D10: 664305 | E10: 18815.04236 | F10: 2.021 | G10: 2021 | H10: 105.1227375 | I10: 666326 | J10: 18920.1651 | K10: 65440 | L10: 1778.6 | M10: 80 | N10: 2.65 | O10: 0 | P10: 0 | Q10: 80 | R10: 2.65 | S10: 80 | T10: 0.26
A11: 2020-07-04 | B11: 23 | C11: 4228.303 | D11: 624760 | E11: 18009.33201 | F11: 0.855 | G11: 855 | H11: 44.82105 | I11: 625615 | J11: 18054.15306 | K11: 65264 | L11: 1959.09 | M11: 2 | N11: 0.1 | O11: 0 | P11: 0 | Q11: 2 | R11: 0.1 | S11: 0 | T11: 0
A12: 2020-08-05 | B12: 21 | C12: 4991.033 | D12: 761709 | E12: 23905.79866 | F12: 0.438 | G12: 438 | H12: 23.934025 | I12: 762147 | J12: 23929.73268 | K12: 74187 | L12: 2323.35889 | M12: 0 | N12: 0 | O12: 0 | P12: 0 | Q12: 0 | R12: 0 | S12: 0 | T12: 0
A13: 2020-09-06 | B13: 22 | C13: 5512.668 | D13: 850386 | E13: 28586.37148 | F13: 0.211 | G13: 211 | H13: 11.9328625 | I13: 850597 | J13: 28598.30434 | K13: 75975 | L13: 2328.35805 | M13: 17 | N13: 0.98 | O13: 4 | P13: 0.09 | Q13: 21 | R13: 1.07 | S13: 19 | T13: 0.1
A14: 2020-10-07 | B14: 21 | C14: 6167.46 | D14: 1016400 | E14: 32532.9357 | F14: 0.416 | G14: 416 | H14: 24.444 | I14: 1016816 | J14: 32557.3797 | K14: 98368 | L14: 3032.17 | M14: 134 | N14: 3.62 | O14: 0 | P14: 0 | Q14: 134 | R14: 3.62 | S14: 59 | T14: 0.19
A15: 2020-11-08 | B15: 20 | C15: 5773.62 | D15: 949606 | E15: 31275.75454 | F15: 0.257 | G15: 257 | H15: 15.4926875 | I15: 949863 | J15: 31291.24723 | K15: 121177 | L15: 3517.67 | M15: 20 | N15: 0.43 | O15: 118 | P15: 6.22 | Q15: 138 | R15: 6.65 | S15: 188 | T15: 8.04
A16: ='[1]1'!A8 -> $ indicates as on Nov. 30, 2020
A17: Note: Agridex volume data are in "000 lots".
A18: Source: NCDEX

Sheet 67
A1: Table 67: Trends in commodity derivatives at ICEX
A2: Year/ Month | B2: No.of Trading days | C2: Agriculture Futures | F2: Metals Futures | I2: Gems and Stones Futures | L2: Total | N2: Open interest at the end of the period
C3: Volume ('000 tonnes) | D3: No. of contracts traded | E3: Turnover (₹ crore) | F3: Volume ('000 tonnes) | G3: No. of contracts traded | H3: Turnover (₹ crore) | I3: Volume (in cents) | J3: No. of contracts traded | K3: Turnover (₹ crore) | L3: No. of contracts traded | M3: Turnover (₹ crore) | N3: No. of contracts traded | O3: Value (₹ crore)
A4: 2019-20 | B4: 259 | C4: 821.739 | D4: 268376 | E4: 5353.523373 | F4: 2450.71 | G4: 245071 | H4: 7437.7323 | I4: 78395209 | J4: 78395209 | K4: 27720.03751 | L4: 78908656 | M4: 40511.29218 | N4: 8290 | O4: 19.32
A5: 2020-21$ | B5: =SUM(B6:B13) -> 170 | C5: =SUM(C6:C13) -> 64.8627 | D5: 15864 | E5: 307.630813 | F5: 251.66 | G5: 25166 | H5: 747.52123 | I5: 1457479 | J5: 1457479 | K5: 553.9394579 | L5: 1498509 | M5: 1609.092151 | N5: =N13 -> 20 | O5: =O13 -> 0.005155
A6: 2020-04-01 | B6: 18 | C6: 50.8377 | D6: 9581 | E6: 213.0219 | F6: 159.34 | G6: 15934 | H6: 472.8693 | I6: 655886 | J6: 655886 | K6: 250.5 | L6: 681401 | M6: 936.39175 | N6: 14307 | O6: 19.65
A7: 2020-05-02 | B7: 21 | C7: 10.79 | D7: 3048 | E7: 53.65 | F7: 83.18 | G7: 8318 | H7: 246.82 | I7: 641368 | J7: 641368 | K7: 242.99 | L7: 652734 | M7: 543.46 | N7: 10497 | O7: 15.64
A8: 2020-06-03 | B8: 22 | C8: 1.321 | D8: 1321 | E8: 16.16 | F8: 8.4 | G8: 840 | H8: 25.6 | I8: 153591 | J8: 153591 | K8: 58.103 | L8: 155752 | M8: 99.863 | N8: 6912 | O8: 7.45
A9: 2020-07-04 | B9: 23 | C9: 1.741 | D9: 1741 | E9: 22.481598 | F9: 0.74 | G9: 74 | H9: 2.23193 | I9: 5821 | J9: 5821 | K9: 2.09509486 | L9: 7636 | M9: 26.80862286 | N9: 3378 | O9: 5.12059014
A10: 2020-08-05 | B10: 21 | C10: 0.17 | D10: 170 | E10: 2.276715 | F10: 0 | G10: 0 | H10: 0 | I10: 5 | J10: 5 | K10: 0.001638 | L10: 175 | M10: 2.278353 | N10: 36 | O10: 0.483696
A11: 2020-09-06 | B11: 22 | C11: 0.003 | D11: 3 | E11: 0.0406 | F11: 0 | G11: 0 | H11: 0 | I11: 382 | J11: 382 | K11: 0.1153 | L11: 385 | M11: 0.156 | N11: 176 | O11: 0.05
A12: 2020-10-07 | B12: 21 | C12: 0 | D12: 0 | E12: 0 | F12: 0 | G12: 0 | H12: 0 | I12: 336 | J12: 336 | K12: 0.1066 | L12: 336 | M12: 0.1066 | N12: 3 | O12: 0.001015695
A13: 2020-11-08 | B13: 22 | C13: 0 | D13: 0 | E13: 0 | F13: 0 | G13: 0 | H13: 0 | I13: 90 | J13: 90 | K13: 0.027825 | L13: 90 | M13: 0.027825 | N13: 20 | O13: 0.005155
A14: ='64'!A14 -> $ indicates as on Nov. 30, 2020
A15: Note : Contract size for all diamond futures contract at ICEX is one cent.
A16: Source: ICEX

Sheet 68
A1: Table 68: Trends in commodity derivatives at BSE
A2: Futures
A3: Year/ Month | B3: No.of Trading days | C3: Metal | F3: Bullion | I3: Energy | L3: Agriculture | O3: Total | Q3: Open interest at the end of the period
C4: Volume ( '000 tonnes) | D4: No. of contracts traded | E4: Turnover (₹ crore) | F4: Volume ( '000 tonnes) | G4: No. of contracts traded | H4: Turnover (₹ crore) | I4: Volume ( '000 tonnes) | J4: No. of contracts traded | K4: Turnover (₹ crore) | L4: Volume ( '000 tonnes) | M4: No. of contracts traded | N4: Turnover (₹ crore) | O4: No. of contracts traded | P4: Turnover (₹ crore) | Q4: No. of contracts traded | R4: Value (₹ crore)
A5: 2019-20 | B5: 259 | C5: 0.874 | D5: 874 | E5: 39.2752 | F5: 0.49412 | G5: 41682 | H5: 8836.561185 | I5: 422.8512934 | J5: 30995 | K5: 1246.95 | L5: 6825.5124 | M5: 834466 | N5: 36315.92885 | O5: 908017 | P5: 46438.71523 | Q5: 1 | R5: 0.03
A6: 2020-21$ | B6: =SUM(B7:B14) -> 169 | C6: =SUM(C7:C14) -> 0 | D6: 0 | E6: 0 | F6: 0.0006847 | G6: 633 | H6: 44.33 | I6: 0.354706685 | J6: 26 | K6: 0.57201 | L6: 819.22575 | M6: 111596 | N6: 4475.67313 | O6: 112255 | P6: 4520.57514 | Q6: =Q14 -> 91 | R6: =R14 -> 5.03
A7: 2020-04-01 | B7: 18 | C7: 0 | D7: 0 | E7: 0 | F7: 0 | G7: 0 | H7: 0 | I7: 0 | J7: 0 | K7: 0 | L7: 200.3805 | M7: 25734 | N7: 1001.73313 | O7: 25734 | P7: 1001.73313 | Q7: 0 | R7: 0
A8: 2020-05-02 | B8: 20 | C8: 0 | D8: 0 | E8: 0 | F8: 0 | G8: 0 | H8: 0 | I8: 0.354706685 | J8: 26 | K8: 0.57201 | L8: 165.684 | M8: 21380 | N8: 847.49 | O8: 21406 | P8: 848.06201 | Q8: 50 | R8: 2.64
A9: 2020-06-03 | B9: 22 | C9: 0 | D9: 0 | E9: 0 | F9: 0.0006337 | G9: 123 | H9: 18.64 | I9: 0 | J9: 0 | K9: 0 | L9: 314.88175 | M9: 39937 | N9: 1565.29 | O9: 40060 | P9: 1583.93 | Q9: 86 | R9: 4.52
A10: 2020-07-04 | B10: 23 | C10: 0 | D10: 0 | E10: 0 | F10: 0 | G10: 0 | H10: 0 | I10: 0 | J10: 0 | K10: 0 | L10: 46.9645 | M10: 7891 | N10: 323.74 | O10: 7891 | P10: 323.74 | Q10: 83 | R10: 4.12
A11: 2020-08-01 | B11: 21 | C11: 0 | D11: 0 | E11: 0 | F11: 0 | G11: 0 | H11: 0 | I11: 0 | J11: 0 | K11: 0 | L11: 19.513 | M11: 3574 | N11: 153.78 | O11: 3574 | P11: 153.78 | Q11: 67 | R11: 4.08
A12: 2020-09-01 | B12: 22 | C12: 0 | D12: 0 | E12: 0 | F12: 1e-05 | G12: 80 | H12: 4.01 | I12: 0 | J12: 0 | K12: 0 | L12: 21.349 | M12: 4042 | N12: 181.2 | O12: 4122 | P12: 185.21 | Q12: 67 | R12: 3.86
A13: 2020-10-01 | B13: 21 | C13: 0 | D13: 0 | E13: 0 | F13: 2e-05 | G13: 220 | H13: 11.15 | I13: 0 | J13: 0 | K13: 0 | L13: 30.783 | M13: 5007 | N13: 236.58 | O13: 5227 | P13: 247.73 | Q13: 83 | R13: 4.55
A14: 2020-11-01 | B14: 22 | C14: 0 | D14: 0 | E14: 0 | F14: 2.1e-05 | G14: 210 | H14: 10.53 | I14: 0 | J14: 0 | K14: 0 | L14: 19.67 | M14: 4031 | N14: 165.86 | O14: 4241 | P14: 176.39 | Q14: 91 | R14: 5.03
A17: Options
A18: Year / Month | B18: No.of Trading days | C18: Bullion | G18: Total | I18: Open interest at the end of the period
C19: Call Options | E19: Put Options | G19: No. of contracts traded | H19: Turnover (₹ crore) | I19: No. of contracts traded | J19: Notional Value (₹ crore)
C20: No. of contracts traded | D20: Turnover (₹ crore) | E20: No. of contracts traded | F20: Turnover (₹ crore)
A21: 2020-21$ | B21: =SUM(B22:B27) -> 131 | C21: =SUM(C22:C27) -> 2303483 | D21: 139752.86 | E21: 3739867 | F21: 199400.77 | G21: 6043350 | H21: 339153.63 | I21: =I27 -> 43 | J21: =J27 -> 0.01
A22: 2020-06-01 | B22: 22 | C22: 298958 | D22: 13332.21 | E22: 294684 | F22: 13484.56 | G22: 593642 | H22: 26816.77 | I22: 389 | J22: 0.11
A23: 2020-07-01 | B23: 23 | C23: 267903 | D23: 13424.07 | E23: 1238158 | F23: 58818.92 | G23: 1506061 | H23: 72242.99 | I23: 376 | J23: 0.38
A24: 2020-08-01 | B24: 21 | C24: 344179 | D24: 20187.25 | E24: 1036730 | F24: 51483.6 | G24: 1380909 | H24: 71670.85 | I24: 329 | J24: 0.17
A25: 2020-09-01 | B25: 22 | C25: 377475 | D25: 29792.17 | E25: 354405 | F25: 28539.24 | G25: 731880 | H25: 58331.41 | I25: 38 | J25: 0.09
A26: 2020-10-01 | B26: 21 | C26: 378630 | D26: 26409.6 | E26: 523275 | F26: 29727.8 | G26: 901905 | H26: 56137.4 | I26: 180 | J26: 0.54
A27: 2020-11-01 | B27: 22 | C27: 636338 | D27: 36607.56 | E27: 292615 | F27: 17346.65 | G27: 928953 | H27: 53954.21 | I27: 43 | J27: 0.01
A28: ='[1]1'!A8 -> $ indicates as on Nov. 30, 2020
A29: Note: 1. Conversion factors: Brent Crude Oil (1 Tonne = 7.33 Barrels)
A30: 2. Option contracts were launched at BSE from June 2020.
A31: Source: BSE

Sheet 69
A1: Table 69: Trends in commodity derivatives at NSE
A2: Futures
A3: Year/ Month | B3: No.of Trading days | C3: Bullion | F3: Energy | I3: Total | K3: Open interest at the end of the period
C4: Volume ('000 tonnes) | D4: No. of contracts traded | E4: Turnover (₹ crore) | F4: Volume ('000 tonnes) | G4: No. of contracts traded | H4: Turnover (₹ crore) | I4: No. of contracts traded | J4: Turnover (₹ crore) | K4: No. of contracts traded | L4: Value (₹ crore)
A5: 2019-20 | B5: 259 | C5: 0.0218643 | D5: 65928 | E5: 5773.602194 | F5: 0.01 | G5: 79626 | H5: 588.697081 | I5: 145554 | J5: 6362.004456 | K5: 8 | L5: 0.33
A6: 2020-21$ | B6: =SUM(B7:B14) -> 170 | C6: =SUM(C7:C14) -> 0.0011975 | D6: 11930 | E6: 578.88201 | F6: 0 | G6: 0 | H6: 0 | I6: 11930 | J6: 578.88201 | K6: =K14 -> 25 | L6: =L14 -> 1.23
A7: 2020-04-01 | B7: 18 | C7: 0.0001256 | D7: 1256 | E7: 57.360367 | F7: 0 | G7: 0 | H7: 0 | I7: 1256 | J7: 57.360367 | K7: 17 | L7: 0.76
A8: 2020-05-02 | B8: 21 | C8: 0.0001651 | D8: 1651 | E8: 76.517431 | F8: 0 | G8: 0 | H8: 0 | I8: 1651 | J8: 76.517431 | K8: 3 | L8: 0.14
A9: 2020-06-03 | B9: 22 | C9: 0.0004474 | D9: 4474 | E9: 209.17938 | F9: 0 | G9: 0 | H9: 0 | I9: =SUM(D9,G9) -> 4474 | J9: =SUM(E9,H9) -> 209.17938 | K9: 18 | L9: 0.87
A10: 2020-07-04 | B10: 23 | C10: 9.11e-05 | D10: 911 | E10: 45.49317 | F10: 0 | G10: 0 | H10: 0 | I10: 911 | J10: 45.49317 | K10: 23 | L10: 1.23
A11: 2020-08-05 | B11: 21 | C11: 0.0001748 | D11: 1748 | E11: 92.012485 | F11: 0 | G11: 0 | H11: 0 | I11: 1748 | J11: 92.012485 | K11: 7 | L11: 0.36
A12: 2020-09-06 | B12: 22 | C12: 0.0001285 | D12: 1240 | E12: 65.526607 | F12: 0 | G12: 0 | H12: 0 | I12: 1240 | J12: 65.526607 | K12: 7 | L12: 0.35
A13: 2020-10-07 | B13: 21 | C13: 2.79e-05 | D13: 279 | E13: 14.122891 | F13: 0 | G13: 0 | H13: 0 | I13: 279 | J13: 14.122891 | K13: 5 | L13: 0.25
A14: 2020-11-08 | B14: 22 | C14: 3.71e-05 | D14: 371 | E14: 18.669679 | F14: 0 | G14: 0 | H14: 0 | I14: 371 | J14: 18.669679 | K14: 25 | L14: 1.23
A17: Options
A18: Year / Month | B18: No.of Trading days | C18: Bullion | G18: Total | I18: Open interest at the end of the period
C19: Call Options | E19: Put Options | G19: No. of contracts traded | H19: Turnover (₹ crore) | I19: No. of contracts traded | J19: Notional Value (₹ crore)
C20: No. of contracts traded | D20: Turnover (₹ crore) | E20: No. of contracts traded | F20: Turnover (₹ crore)
A21: 2020-21$ | B21: =SUM(B22:B27) -> 131 | C21: =SUM(C22:C27) -> 195890 | D21: 10035.77529 | E21: 130117 | F21: 6558.094648 | G21: 326007 | H21: 16593.86994 | I21: =I27 -> 3113 | J21: =J27 -> 157.86
A22: 2020-06-01 | B22: 22 | C22: 21403 | D22: 1028.346146 | E22: 15232 | F22: 723.5290575 | G22: =SUM(C22,E22) -> 36635 | H22: =SUM(D22,F22) -> 1751.875204 | I22: 1181 | J22: 56.33
A23: 2020-07-01 | B23: 23 | C23: 72333 | D23: 3649.582645 | E23: 52135 | F23: 2586.172328 | G23: 124468 | H23: 6235.754974 | I23: 2760 | J23: 140.36
A24: 2020-08-01 | B24: 21 | C24: 23412 | D24: 1275.977891 | E24: 20669 | F24: 1105.942207 | G24: 44081 | H24: 2381.920097 | I24: 547 | J24: 27.41
A25: 2020-09-01 | B25: 22 | C25: 19568 | D25: 1017.146712 | E25: 14137 | F25: 717.2608415 | G25: 33705 | H25: 1734.407553 | I25: 3787 | J25: 191.08
A26: 2020-10-01 | B26: 21 | C26: 25980 | D26: 1340.580544 | E26: 10221 | F26: 516.0190255 | G26: 36201 | H26: 1856.59957 | I26: 4333 | J26: 222.55
A27: 2020-11-01 | B27: 22 | C27: 33194 | D27: 1724.141352 | E27: 17723 | F27: 909.171189 | G27: 50917 | H27: 2633.312541 | I27: 3113 | J27: 157.86
A28: ='[1]1'!A8 -> $ indicates as on Nov. 30, 2020
A29: Note: Option contracts were launched at NSE from June 2020.
A30: Source: NSE

Sheet 70
A1: Table 70: Participant-wise percentage share of turnover at MCX, NCDEX, ICEX, BSE and NSE
A2: Year/ Month | B2: MCX | F2: NCDEX | K2: ICEX | O2: BSE | S2: NSE
B3: Agri Segment | D3: Non-Agri Segment | F3: Agri Segment | I3: Agridex Index | K3: Agri Segment | M3: Non-Agri Segment | O3: Agri Segment | Q3: Non-Agri Segment | S3: Non-Agri Segment
B4: Proprietary | C4: Client | D4: Proprietary | E4: Client | F4: Proprietary | G4: Client | H4: Hedgers | I4: Proprietary | J4: Client | K4: Proprietary | L4: Client | M4: Proprietary | N4: Client | O4: Proprietary | P4: Client | Q4: Proprietary | R4: Client | S4: Proprietary | T4: Client
A5: 2019-20 | B5: 38.2633752 | C5: 61.7366248 | D5: 36.87670666 | E5: 63.12329334 | F5: 47.19185166 | G5: 52.04284054 | H5: 0.7653077977 | I5: Na | J5: Na | K5: 53.65610373 | L5: 46.34384957 | M5: 73.57980896 | N5: 26.42019104 | O5: 65.50017765 | P5: 34.49982235 | Q5: 82.05174851 | R5: 17.94825149 | S5: 45.26539282 | T5: 54.73460718
A6: 2020-21$ | B6: 34.28512633 | C6: 65.71487367 | D6: 38.1484939 | E6: 61.8515061 | F6: 43.09428604 | G6: 55.70276144 | H6: 1.202952524 | I6: 36.43015835 | J6: 63.56984165 | K6: 64.00975213 | L6: 35.99024787 | M6: 68.84318825 | N6: 31.15681175 | O6: 63.99879112 | P6: 36.00120888 | Q6: 50.24464733 | R6: 49.75535267 | S6: 56.83259229 | T6: 43.16740771
A7: 2020-04-01 | B7: 41.228984 | C7: 58.771016 | D7: 36.8383438 | E7: 63.1616562 | F7: 42.83471831 | G7: 55.82364098 | H7: 1.341640711 | I7: Na | J7: Na | K7: 77.48072094 | L7: 22.51927906 | M7: 80.36590679 | N7: 19.63409321 | O7: 50.01482181 | P7: 49.98517819 | Q7: 0 | R7: 0 | S7: 76.10738875 | T7: 23.89261125
A8: 2020-05-02 | B8: 41.82131849 | C8: 58.17868151 | D8: 36.50010864 | E8: 63.49989136 | F8: 44.72332332 | G8: 53.65026611 | H8: 1.626410562 | I8: 42.52468503 | J8: 57.47531497 | K8: 58.5354238 | L8: 41.4645762 | M8: 57.64303036 | N8: 42.35696964 | O8: 59.5197593 | P8: 40.4802407 | Q8: 53.88891803 | R8: 46.11108197 | S8: 66.8194813 | T8: 33.1805187
A9: 2020-06-03 | B9: 34.19076582 | C9: 65.80923418 | D9: 36.83886889 | E9: 63.16113111 | F9: 40.51230272 | G9: 57.69991457 | H9: 1.787782714 | I9: 37.10827189 | J9: 62.89172811 | K9: 2.075695767 | L9: 97.92430423 | M9: 37.15491193 | N9: 62.84508807 | O9: 57.37748383 | P9: 42.62251617 | Q9: 50.46989365 | R9: 49.53010635 | S9: 74.49723535 | T9: 25.50276465
A10: 2020-07-04 | B10: 32.39023161 | C10: 67.60976839 | D10: 39.61896498 | E10: 60.38103502 | F10: 41.66 | G10: 56.87 | H10: 1.48 | I10: 43.08 | J10: 56.92 | K10: 0.451487034 | L10: 99.54851297 | M10: 27.29521156 | N10: 72.70478844 | O10: 93.0979801 | P10: 6.902019896 | Q10: 0 | R10: 0 | S10: 54.19844805 | T10: 45.80155195
A11: 2020-08-05 | B11: 33.03606115 | C11: 66.96393885 | D11: 41.25363052 | E11: 58.74636948 | F11: 43.48908071 | G11: 55.32140406 | H11: 1.189515237 | I11: 23.82925563 | J11: 76.17074437 | K11: 0.8960278296 | L11: 99.10397217 | M11: 100 | N11: 0 | O11: 94.83567872 | P11: 5.164321279 | Q11: 0 | R11: 0 | S11: 58.04069268 | T11: 41.95930732
A12: 2020-09-06 | B12: 33.38559688 | C12: 66.61440312 | D12: 39.14302808 | E12: 60.85697192 | F12: 45.33939712 | G12: 53.9966495 | H12: 0.6639533812 | I12: 17.82310196 | J12: 82.17689804 | K12: 0 | L12: 100 | M12: 1.34 | N12: 98.66 | O12: 98.33421697 | P12: 1.66578303 | Q12: 50 | R12: 50 | S12: 53.40058302 | T12: 46.59941698
A13: 2020-10-07 | B13: 35.29628375 | C13: 64.70371625 | D13: 37.67079406 | E13: 62.32920594 | F13: 43.82394431 | G13: 55.18966754 | H13: 0.9863881496 | I13: 31.8732869 | J13: 68.1267131 | K13: 0 | L13: 0 | M13: 0 | N13: 100 | O13: 93.12488775 | P13: 6.87511225 | Q13: 50 | R13: 50 | S13: 53.12814253 | T13: 46.87185747
A14: 2020-11-08 | B14: 30.75385735 | C14: 69.24614265 | D14: 34.7323378 | E14: 65.2676622 | F14: 41.88961926 | G14: 56.89545705 | H14: 1.214923686 | I14: 26.41100842 | J14: 73.58899158 | K14: 0 | L14: 0 | M14: 1.235401269 | N14: 98.76459873 | O14: 69.38442748 | P14: 30.61557252 | Q14: 50 | R14: 50 | S14: 53.11960853 | T14: 46.88039147
A15: ='64'!A14 -> $ indicates as on Nov. 30, 2020
A16: Source: MCX, NCDEX, ICEX, BSE and NSE

Sheet 71
A1: Table 71: Commodity-wise turnover and trading volume at MCX
A2: Sr.No | B2: Name of the Commodity | C2: 2019-20 | E2: 2020-21$ | G2: 2019-11-01 | I2: 2020-10-01 | K2: 2020-11-01
C3: Volume ('000 tonnes) | D3: Value (₹ crore) | E3: Volume ('000 tonnes) | F3: Value (₹ crore) | G3: Volume ('000 tonnes) | H3: Value (₹ crore) | I3: Volume ('000 tonnes) | J3: Value (₹ crore) | K3: Volume ('000 tonnes) | L3: Value (₹ crore)
A4: Futures
A5: A | B5: Bullion | M5: TO | N5: Vol
B6: Gold | C6: 4.719223986 | D6: 1776343.717 | E6: 2.991851566 | F6: 1483746.87 | G6: 0.344730306 | H6: 130874.7763 | I6: 0.310076439 | J6: 157055.1993 | K6: 0.367704383 | L6: 184689.9533 | M6: =(L6-J6)/J6*100 -> 17.59556775
B7: Silver | C7: 263.221315 | D7: 1139189.846 | E7: 283.564806 | F7: 1664239.218 | G7: 20.639647 | H7: 92565.99515 | I7: 31.820742 | J7: 195823.4905 | K7: 31.526138 | L7: 196330.7655 | M7: =(L7-J7)/J7*100 -> 0.2590471019
B8: Total for A | C8: =SUM(C6:C7) -> 267.940539 | D8: =SUM(D6:D7) -> 2915533.563 | E8: =SUM(E6:E7) -> 286.5566576 | F8: =SUM(F6:F7) -> 3147986.088 | G8: 20.98437731 | H8: 223440.7715 | I8: 32.13081844 | J8: 352878.6897 | K8: 31.89384238 | L8: 381020.7188 | M8: =(L8-J8)/J8*100 -> 7.974986842 | N8: =(K8-I8)/I8*100 -> -0.7375350754
A9: B | B9: Metals other than Bullion
B10: Aluminium | C10: 5357.254 | D10: 74320.62369 | E10: 1625.124 | F10: 23444.96023 | G10: 335.812 | H10: 4453.791585 | I10: 235.125 | J10: 3519.376275 | K10: 269.625 | L10: 4303.166975 | M10: =(L10-J10)/J10*100 -> 22.2707275
B11: Copper | C11: 10467.644 | D11: 454929.945 | E11: 7385.005 | F11: 364559.8513 | G11: 654.625 | H11: 28701.69938 | I11: 1046.1625 | J11: 54869.66763 | K11: 914.8925 | L11: 49905.67922 | M11: -9.046871641
B12: Lead | C12: 11670.041 | D12: 171197.9762 | E12: 3082.049 | F12: 45078.49324 | G12: 616.193 | H12: 9560.769395 | I12: 452.05 | J12: 6703.90515 | K12: 327.905 | L12: 5073.66065 | M12: -24.31783361
B13: Nickel | C13: 4210.50615 | D13: 421940.8026 | E13: 3515.1195 | F13: 371324.4107 | G13: 228.95625 | H13: 25272.81152 | I13: 492.669 | J13: 55614.89791 | K13: 459.519 | L13: 54552.98008 | M13: -1.909412531
B14: Zinc | C14: 23107.258 | D14: 445905.1237 | E14: 9172.913 | F14: 167680.9529 | G14: 1453.29 | H14: 27646.50978 | I14: 1298.655 | J14: 25494.65115 | K14: 1197.73 | L14: 25551.72395 | M14: 0.223861859
B15: Total for B | C15: =SUM(C10:C14) -> 54812.70315 | D15: =SUM(D10:D14) -> 1568294.471 | E15: =SUM(E10:E14) -> 24780.2105 | F15: =SUM(F10:F14) -> 972088.6683 | G15: 3288.87625 | H15: 95635.58166 | I15: 3524.6615 | J15: 146202.4981 | K15: 3169.6715 | L15: 139387.2109 | M15: -4.661539521 | N15: =(K15-I15)/I15*100 -> -10.07160546
A16: C | B16: Agricultural commodities
B17: Cardamom | C17: 1.1468 | D17: 313.306587 | E17: 0.0253 | F17: 4.233368 | G17: 0.099 | H17: 26.231988 | I17: 0.001 | J17: 0.148225 | K17: 0.0006 | L17: 0.088104 | M17: -40.56063417
B18: Cotton | C18: 3045.12075 | D18: 37145.59668 | E18: 583.1255 | F18: 5801.8882 | G18: 101.53675 | H18: 1147.70595 | I18: 41.28025 | J18: 470.2676 | K18: 72.39875 | L18: 853.039875 | M18: 81.39456663
B19: CPO | C19: 8158.95 | D19: 52534.08024 | E19: 5952.89 | F19: 44353.47517 | G19: 760.28 | H19: 4918.39807 | I19: 818.38 | J19: 6472.14496 | K19: 1033.54 | L19: 9173.64569 | M19: 41.74042372
B20: Mentha Oil | C20: 82.45548 | D20: 10577.78167 | E20: 9.7704 | F20: 973.062288 | G20: 6.90984 | H20: 881.907642 | I20: 1.29168 | J20: 121.61286 | K20: 0.9126 | L20: 86.7188484 | M20: -28.69269878
B21: Kapas | C21: 65.78 | D21: 348.72735 | E21: 36.3 | F21: 187.86096 | G21: 7.096 | H21: 38.31516 | I21: 5.86 | J21: 31.91648 | K21: 4.264 | L21: 24.72641 | M21: -22.52776622
B22: Total for C | C22: =SUM(C17:C21) -> 11353.45303 | D22: =SUM(D17:D21) -> 100919.4925 | E22: =SUM(E17:E21) -> 6582.1112 | F22: =SUM(F17:F21) -> 51320.51999 | G22: 875.92159 | H22: 7012.55881 | I22: 866.81293 | J22: 7096.090125 | K22: 1111.11595 | L22: 10138.21893 | M22: 42.87049275 | N22: =(K22-I22)/I22*100 -> 28.18405351
A23: D | B23: Energy
B24: Crude Oil | C24: 1188816.195 | D24: 3353599.834 | E24: 261977.0434 | F24: 487571.6905 | G24: 97379.11465 | H24: 291321.5942 | I24: 24606.35779 | J24: 52340.20701 | K24: 28835.07545 | L24: 64144.71796 | M24: 22.55342809
B25: Natural Gas (trln. Btu) | C25: 29170.88375 | D25: 459427.5959 | E25: 39963.22375 | F25: 681620.2733 | G25: 3258.385 | H25: 61857.81213 | I25: 7970 | J25: 134680.5283 | K25: 6087.795 | L25: 131615.4961 | M25: -2.275779748
B26: Total for D | D26: =SUM(D24:D25) -> 3813027.43 | F26: =SUM(F24:F25) -> 1169191.964 | H26: =SUM(H24:H25) -> 353179.4063 | J26: =SUM(J24:J25) -> 187020.7353 | L26: =SUM(L24:L25) -> 195760.2141 | M26: =(L26-J26)/J26*100 -> 4.672999893 | N26: =(K26-I26)/I26*100 -> 
A27: E | B27: Index Futures
B28: iCOMDEX Bullion | C28: Na | D28: Na | E28: 228.11 | F28: 17854.53696 | G28: Na | H28: Na | I28: 63.268 | J28: 4908.71764 | K28: 72.876 | L28: 5643.283815 | M28: =(L28-J28)/J28*100 -> 14.96452289 | N28: =(K28-I28)/I28*100 -> 15.18619207
B29: iCOMDEX Metal | C29: Na | D29: Na | E29: 26.574 | F29: 1674.919715 | G29: Na | H29: Na | I29: 10.742 | J29: 658.51667 | K29: 15.832 | L29: 1016.403045 | M29: =(L29-J29)/J29*100 -> 54.34735236 | N29: =(K29-I29)/I29*100 -> 47.3840998
B30: Total for E | D30: =SUM(D28:D29) -> 0 | F30: =SUM(F28:F29) -> 19529.45668 | H30: =SUM(H28:H29) -> 0 | J30: =SUM(J28:J29) -> 5567.23431 | L30: =SUM(L28:L29) -> 6659.68686
A31: Grand Total (A+B+C+D+E) | C31: =SUM(C8,C15,C22,C24) -> 1255250.291 | D31: =SUM(D8,D15,D22,D26,D30) -> 8397774.957 | E31: =SUM(E8,E15,E22,E24) -> 293625.9217 | F31: =SUM(F8,F15,F22,F26,F30) -> 5360116.696 | G31: =G30+G24+G22+G15+G8 -> 101564.8969 | H31: =SUM(H8,H15,H22,H26,H30) -> 679268.3183 | I31: =I30+I24+I22+I15+I8 -> 29029.96304 | J31: =SUM(J8,J15,J22,J26,J30) -> 698765.2476 | K31: =K30+K24+K22+K15+K8 -> 33147.75674 | L31: =SUM(L8,L15,L22,L26,L30) -> 732966.0496 | M31: 4.89446235 | N31: =(K31-I31)/I31*100 -> 14.18463295
A32: Options
A33: F | B33: Bullion
B34: Gold | C34: 0.377159 | D34: 144222.8906 | E34: 0.2101198 | F34: 104463.724 | G34: 0.024374 | H34: 9280.901605 | I34: 0.0110961 | J34: 5703.71476 | K34: 0.0408115 | L34: 20796.04784 | M34: =(L34-J34)/J34*100 -> 264.6053268
B35: Silver | C35: 4.59927 | D35: 20431.88259 | E35: 4.11276 | F35: 24823.01365 | G35: 0.41607 | H35: 1909.589307 | I35: 0.34869 | J35: 2234.413284 | K35: 0.57081 | L35: 3620.096524 | M35: =(L35-J35)/J35*100 -> 62.01553
B36: Total of F | C36: =SUM(C34:C35) -> 4.976429 | D36: =SUM(D34:D35) -> 164654.7731 | E36: =SUM(E34:E35) -> 4.3228798 | F36: =SUM(F34:F35) -> 129286.7377 | G36: 0.440444 | H36: 11190.49091 | I36: 0.3597861 | J36: 7938.128044 | K36: 0.6116215 | L36: 24416.14437 | M36: 207.5806315
A37: G | B37: Metals
B38: Copper | C38: 23.1725 | D38: 1023.373526 | E38: 1.155 | F38: 52.6967225 | G38: 0.8075 | H38: 35.957005 | I38: 0.045 | J38: 2.4456225 | K38: 0.0225 | L38: 1.22831 | M38: -49.77515949
B39: Zinc | C39: 59.388 | D39: 1239.783842 | E39: 0.215 | F39: 3.678755 | G39: 2.38 | H39: 45.729085 | I39: 0 | J39: 0 | K39: 0 | L39: 0
B40: Total of G | C40: =SUM(C38:C39) -> 82.5605 | D40: =SUM(D38:D39) -> 2263.157368 | E40: =SUM(E38:E39) -> 1.37 | F40: 56.3754775 | G40: 3.1875 | H40: 81.68609 | I40: 0.045 | J40: 2.4456225 | K40: 0.0225 | L40: 1.22831 | M40: -49.77515949
A41: H | B41: Energy
B42: Crude Oil | C42: 42609.19571 | D42: 124824.7335 | E42: 11425.45719 | F42: 22912.08369 | G42: 3316.916828 | H42: 9947.314987 | I42: 889.4679529 | J42: 1974.951669 | K42: 941.869045 | L42: 2146.730506 | M42: 8.697875482
B43: Total for H | C43: =C42 -> 42609.19571 | D43: =D42 -> 124824.7335 | E43: 11425.45719 | F43: 22912.08369 | G43: 3316.916828 | H43: 9947.314987 | I43: 889.4679529 | J43: 1974.951669 | K43: 941.869045 | L43: 2146.730506
A44: Grand Total (F+G+H) | C44: =SUM(C36,C40,C43) -> 42696.73264 | D44: =SUM(D36,D40,D43) -> 291742.664 | E44: 11431.15007 | F44: 152255.1968 | G44: 3320.544772 | H44: 21219.49199 | I44: 889.872739 | J44: 9915.525336 | K44: 942.5031665 | L44: 26564.10318 | M44: 167.9041431
A45: ='64'!A14 -> $ indicates as on Nov. 30, 2020
A46: Note : 1. Natural Gas volume is in trillion BTU and is not included for computing the total volume in "000 tonnes".
A47: 2. iCOMDEX Bullion volumes are in '000 lots and is not included for computing the total volume in "000 tonnes".
A48: 3. Options includes both options on futures and goods
A49: 4.Conversion factors: Cotton (1 Bale=170 kg), Crude Oil (1 Tonne = 7.33Barrels)
A50: 4. Trading in iCOMDEX Bullion Futures and iCOMDEX Metal Futures launched on 24th Aug, 2020 and 19th Oct. 2020 respectively.
A51: Source : MCX

Sheet 72
A1: Table 72: Commodity-wise turnover and trading volume at NCDEX
A2: Sr.No | B2: Name of Agri. Commodity | C2: 2019-20 | E2: 2020-21$ | G2: 2019-11-17 | I2: 2020-10-18 | K2: 2020-11-18
C3: Volume ('000 tonnes) | D3: Value (₹ crore) | E3: Volume ('000 tonnes) | F3: Value (₹ crore) | G3: Volume ('000 tonnes) | H3: Value (₹ crore) | I3: Volume ('000 tonnes) | J3: Value ( crore) | K3: Volume ('000 tonnes) | L3: Value (₹ crore)
A4: A | B4: Futures | M4: TO | N4: VOT
B5: AGRIDEX Index | C5: Na | D5: Na | E5: 5.555 | F5: 294.821375 | G5: Na | H5: Na | I5: 0.416 | J5: 24.444 | K5: 0.257 | L5: 15.4926875 | M5: =(L5-J5)/J5*100 -> -36.61967149 | N5: =(K5-I5)/I5*100 -> -38.22115385
B6: Barley | C6: 102.46 | D6: 185.62522 | E6: 30.39 | F6: 44.963865 | G6: 0.72 | H6: 1.27997 | I6: 1.99 | J6: 2.6961 | K6: 1.01 | L6: 1.46117 | M6: =(L6-J6)/J6*100 -> -45.80430993 | N6: =(K6-I6)/I6*100 -> -49.24623116
B7: Bajra | C7: 4.29 | D7: 7.37232 | E7: Na | F7: Na | G7: Na | H7: Na | I7: Na | J7: Na | K7: Na | L7: Na
B8: Castorseed | C8: 11053.96 | D8: 60060.97082 | E8: 1300.59 | F8: 5318.56555 | G8: 369.525 | H8: 1608.62625 | I8: 201.15 | J8: 858.662 | K8: 187.63 | L8: 878.86198 | M8: =(L8-J8)/J8*100 -> 2.352494928 | N8: =(K8-I8)/I8*100 -> -6.721352225
B9: Chana | C9: 10985.99 | D9: 47542.73399 | E9: 5993.56 | F9: 28691.2521 | G9: 606.71 | H9: 2719.14788 | I9: 1044.26 | J9: 5712.45551 | K9: 712 | L9: 3719.73588 | M9: =(L9-J9)/J9*100 -> -34.8837663 | N9: -31.81774654
B10: Cotton seed oil cake | C10: 16806.92 | D10: 39603.76346 | E10: 5941.22 | F10: 11637.34594 | G10: 1314.45 | H10: 2836.61813 | I10: 511.47 | J10: 942.2207 | K10: 757.18 | L10: 1519.05033 | M10: 61.22022473 | N10: 48.03996324
B11: Coriander | C11: 2035.75 | D11: 13715.2728 | E11: 247.885 | F11: 1554.12633 | G11: 137.52 | H11: 950.39072 | I11: 21.225 | J11: 142.88784 | K11: 23.105 | L11: 151.60452 | M11: =(L11-J11)/J11*100 -> 6.100365154 | N11: 8.857479388
B12: Guar seed | C12: 15063.85 | D12: 67368.65559 | E12: 4469.27 | F12: 17563.15341 | G12: 432.705 | H12: 3431.945185 | I12: 852.575 | J12: 3559.389285 | K12: 585.97 | L12: 2430.27903 | M12: -31.72202208 | N12: -31.27056271
B13: Guargum | C13: 5943.43 | D13: 38586.70631 | E13: 2650.26 | F13: 15994.71176 | G13: 1455.21 | H13: 6190.11061 | I13: 405.7 | J13: 2592.98509 | K13: 317.975 | L13: 2003.080415 | M13: -22.75002187 | N13: -21.62312053
B14: Jeera | C14: 607.677 | D14: 10064.35006 | E14: 138.486 | F14: 1934.586195 | G14: 40.365 | H14: 660.533625 | I14: 21.183 | J14: 296.772675 | K14: 19.671 | L14: 280.47297 | M14: =(L14-J14)/J14*100 -> -5.492320006 | N14: -7.137799179
B15: Kapas | C15: 1096.299 | D15: 6893.07939 | E15: 355.542 | F15: 1926.90883 | G15: 103.756 | H15: 559.10094 | I15: 97.772 | J15: 536.67622 | K15: 114.304 | L15: 669.04062 | M15: 24.66373487 | N15: 16.90872642
B16: Maize | C16: 68.64 | D16: 135.77199 | E16: 17.38 | F16: 22.24522 | G16: 0.62 | H16: 1.19324 | I16: 0.11 | J16: 0.14337 | K16: Na | L16: Na
B17: Moong | C17: 15.335 | D17: 95.276885 | E17: 0.02 | F17: 0.1413 | G17: 0.295 | H17: 2.00244 | I17: 0.01 | J17: 0.075 | K17: Na | L17: Na | M17: 0 | N17: 0
B18: Paddy Basmati Rice | C18: 0.96 | D18: 3.7552 | E18: Na | F18: Na | G18: Na | H18: Na | I18: Na | J18: Na | K18: Na | L18: Na
B19: RM seed | C19: 6650.54 | D19: 26874.5431 | E19: 4420.56 | F19: 23045.52547 | G19: 439.41 | H19: 1882.37102 | I19: 690.22 | J19: 3915.84342 | K19: 664.36 | L19: 4065.85748 | M19: 3.830951443 | N19: -3.746631509
B20: Soy bean | C20: 15880.07 | D20: 61991.5714 | E20: 6430.77 | F20: 25989.68186 | G20: 2105.84 | H20: 8447.84739 | I20: 1461.85 | J20: 6127.72973 | K20: 1500.2 | L20: 6572.18527 | M20: =(L20-J20)/J20*100 -> 7.253184451 | N20: 2.623388173
B21: Refined Soy Oil | C21: 7463.04 | D21: 60031.72828 | E21: 4533.835 | F21: 40675.44112 | G21: 629.96 | H21: 5044.906725 | I21: 789.81 | J21: 7444.119285 | K21: 844.62 | L21: 8721.716785 | M21: =(L21-J21)/J21*100 -> 17.16250709 | N21: 6.939643712
B22: Turmeric | C22: 1297.855 | D22: 8443.75549 | E22: 368.18 | F22: 2121.63251 | G22: 71.17 | H22: 430.79613 | I22: 68.055 | J22: 399.56278 | K22: 0 | L22: 0 | M22: -100 | N22: -100
B23: Wheat | C23: 181.68 | D23: 362.16702 | E23: 45.595 | F23: 262.41224 | G23: 1.52 | H23: 3.27438 | I23: 0 | J23: 0 | K23: 45.585 | L23: 262.39424 | M23: =(L23-J23)/J23*100 -> 
B24: Sesameseed | C24: Na | D24: Na | E24: 0.195 | F24: 1.7292 | G24: Na | H24: Na | I24: 0.08 | J24: 0.7167 | K24: Na | L24: Na | M24: =(L24-J24)/J24*100 -> 
B25: Total for A | C25: =SUM(C6:C24) -> 95258.746 | D25: =SUM(D5:D24) -> 441967.0993 | E25: =SUM(E6:E24) -> 36943.738 | F25: =SUM(F5:F24) -> 177079.2443 | G25: 7709.776 | H25: 34770.14464 | I25: =SUM(I6:I24) -> 6167.46 | J25: 32557.3797 | K25: =SUM(K6:K24) -> 5773.61 | L25: 31291.23338 | M25: =(L25-J25)/J25*100 -> -3.888968765 | N25: =(K25-I25)/I25*100 -> -6.385935215
A26: B | B26: Options
B27: Chana | C27: 0.29 | D27: 1.27 | E27: 0.34 | F27: 2.28 | G27: 0 | H27: 0 | I27: 0 | J27: 0 | K27: 0.16 | L27: 0.85
B28: Guargum | C28: 1.715 | D28: 11.71 | E28: 0.91 | F28: 5.97006 | G28: Na | H28: Na | I28: 0.21 | J28: 1.56 | K28: 0 | L28: 0 | M28: -100
B29: Guarseed | C29: 6.625 | D29: 29.17 | E29: 0.57 | F29: 2.507325 | G29: 0.17 | H29: 0.74 | I29: 0.46 | J29: 2.06 | K29: 0.1 | L29: 0.43 | M29: -79.12621359
B30: Soybean | C30: Na | D30: Na | E30: 0.02 | F30: 0.09 | G30: Na | H30: Na | I30: Na | J30: Na | K30: 0 | L30: 0
B31: RM Seed | C31: Na | D31: Na | E31: 1.04 | F31: 5.47 | G31: Na | H31: Na | I31: Na | J31: Na | K31: 1.02 | L31: 5.37
B32: Total for B | C32: =SUM(C27:C31) -> 8.63 | D32: =SUM(D27:D31) -> 42.15 | E32: =SUM(E27:E31) -> 2.88 | F32: 16.317385 | G32: 0.17 | H32: 0.74 | I32: 0.67 | J32: 3.62 | K32: 1.28 | L32: 6.65 | M32: 83.70165746
A33: ='64'!A14 -> $ indicates as on Nov. 30, 2020
A34: Note: AGRIDEX volume are in '000 lots and is not included for computing the total volume in "000 tonnes" .
A35: Source: NCDEX

Sheet 73
A1: Table 73: Commodity-wise turnover and trading volume at ICEX, BSE and NSE
A2: Sr.No | B2: Name of the Commodity | C2: 2019-20 | E2: 2020-21$ | G2: 2019-11-01 | I2: 2020-10-01 | K2: 2020-11-01
C3: Volume ('000 tonnes) | D3: Value (₹ crore) | E3: Volume ('000 tonnes) | F3: Value (₹ crore) | G3: Volume ('000 tonnes) | H3: Value (₹ crore) | I3: Volume ('000 tonnes) | J3: Value (₹ crore) | K3: Volume ('000 tonnes) | L3: Value (₹ crore)
A4: 1 | B4: ICEX Futures | G4: ICEX
A5: A | B5: Gems & Stones | M5: TO | N5: VOT
B6: Diamond 1 CT | C6: 778271.69 | D6: 27629.26524 | E6: 14575.9 | F6: 554.056107 | G6: 63286.33 | H6: 2263.850917 | I6: 3.36 | J6: 0.1066 | K6: 0.8 | L6: 0.026107
B7: Diamond .5 CT | C7: 5676.056 | D7: 90.72140993 | E7: 0.19 | F7: 0.003195 | G7: 0.05 | H7: 0.000776 | I7: Na | J7: Na | K7: 0.1 | L7: 0.001718
B8: Diamond .3 CT | C8: 4.29 | D8: 0.04288 | E8: Na | F8: Na | G8: 2.88 | H8: 0.03 | I8: Na | J8: Na | K8: Na | L8: Na
B9: Total for 1A | D9: =SUM(D6:D8) -> 27720.02953 | F9: =SUM(F6:F8) -> 554.059302 | H9: =SUM(H6:H8) -> 2263.881693 | J9: =SUM(J6:J8) -> 0.1066 | L9: =SUM(L6:L8) -> 0.027825 | M9: =(L9-J9)/J9*100 -> -73.89774859
A10: B | B10: Metal other than gems & stones
B11: Steel Long | C11: 2450.71 | D11: 7437.73059 | E11: 251.66 | F11: 747.5187 | G11: 214.69 | H11: 607.29922 | I11: 0 | J11: 0 | K11: 0 | L11: 0
B12: Total for 1B | C12: =SUM(C11) -> 2450.71 | D12: =SUM(D11) -> 7437.73059 | E12: =SUM(E11) -> 251.66 | F12: 747.5187 | G12: 214.69 | H12: 607.29922 | I12: =SUM(I11) -> 0 | J12: =SUM(J11) -> 0 | K12: 0 | L12: 0 | M12: =(L12-J12)/J12*100 ->  | N12: =(K12-I12)/I12*100 -> 
A13: C | B13: Agricultural Commodities
B14: Isabgulseed | C14: 32.91 | D14: 319.81 | E14: Na | F14: Na | G14: 0.061 | H14: 0.50083 | I14: Na | J14: Na | K14: Na | L14: Na
B15: Pepper Mini | C15: 27.004 | D15: 941.64446 | E15: Na | F15: Na | G15: 0.078 | H15: 2.37221 | I15: Na | J15: Na | K15: Na | L15: Na
B16: Rubber | C16: 146.981 | D16: 2034.212919 | E16: 10.42 | F16: 122.585462 | G16: 2.634 | H16: 34.434865 | I16: 0 | J16: 0 | K16: 0 | L16: 0
B17: Paddy Basmati | C17: 614.86 | D17: 2057.88776 | E17: 54.44 | F17: 185.04286 | G17: 71.16 | H17: 230.94616 | I17: Na | J17: Na | K17: Na | L17: Na
B18: Total for 1C | C18: =SUM(C14:C17) -> 821.755 | D18: =SUM(D14:D17) -> 5353.555139 | E18: =SUM(E14:E17) -> 64.86 | F18: 307.628322 | G18: 73.933 | H18: 268.254065 | I18: 0 | J18: 0 | K18: =SUM(K12,K14:K17) -> 0 | L18: 0 | M18: =(L18-J18)/J18*100 ->  | N18: =(K18-I18)/I18*100 -> 
B19: Total - ICEX Futures (1A+1B+1C) | C19: =SUM(C12,C18) -> 3272.465 | D19: =SUM(D9,D12,D18) -> 40511.31526 | E19: =SUM(E12,E18) -> 316.52 | F19: =SUM(F9,F12,F18) -> 1609.206324 | G19: =SUM(G12,G18) -> 288.623 | H19: =SUM(H9,H12,H18) -> 3139.434978 | I19: =SUM(I12,I18) -> 0 | J19: =SUM(J9,J12,J18) -> 0.1066 | K19: =SUM(K12,K18) -> 0 | L19: =SUM(L9,L12,L18) -> 0.027825 | M19: =(L19-J19)/J19*100 -> -73.89774859 | N19: =(K19-I19)/I19-100 -> 
B20: NSE
A21: 2 | B21: NSE Futures
A22: A | B22: Bullion
B23: Gold | C23: 0.010151 | D23: 3847.80826 | E23: 5e-06 | F23: 2.53859 | G23: 0.001709 | H23: 649.80921 | I23: 0 | J23: 0 | K23: 0 | L23: 0
B24: Gold Mini | C24: 0.0055579 | D24: 1903.462408 | E24: 0.0011925 | F24: 576.34342 | G24: 5.07e-05 | H24: 19.274014 | I24: 2.79e-05 | J24: 14.122891 | K24: 3.71e-05 | L24: 18.669679
B25: Silver | C25: 0.00594 | D25: 22.331526 | E25: 0 | F25: 0 | G25: 0 | H25: 0 | I25: 0 | J25: 0 | K25: 0 | L25: 0 | M25: 0 | N25: 0 | O25: 0 | P25: 0 | Q25: 00:00:00 | R25: 00:00:00 | S25: 00:00:00 | T25: 00:00:00 | U25: 00:00:00
B26: Total for 2A | C26: =SUM(C23:C25) -> 0.0216489 | D26: =SUM(D23:D25) -> 5773.602194 | E26: =SUM(E23:E25) -> 0.0011975 | F26: 578.88201 | G26: =SUM(G23:G25) -> 0.0017597 | H26: 669.083224 | I26: 2.79e-05 | J26: 14.122891 | K26: 3.71e-05 | L26: 18.669679 | M26: =(L26-J26)/J26*100 -> 32.1944565 | N26: =(K26-I26)/I26*100 -> 32.97491039
A27: B | B27: Energy
B28: BR Crude | C28: 0.0008211459754 | D28: 256.7567 | E28: 0 | F28: 0 | G28: 3.233287858e-05 | H28: 10.57198 | I28: 0 | J28: 0 | K28: 0 | L28: 0
B29: BR Crude Mini | C29: 0.01004188267 | D29: 331.940381 | E29: 0 | F29: 0 | G29: 0.001263847203 | H29: 41.356747 | I29: 0 | J29: 0 | K29: 0 | L29: 0
B30: Total for 2B | C30: =SUM(C28:C29) -> 0.01086302865 | D30: 588.697081 | E30: 0 | F30: 0 | G30: 0.001296180082 | H30: 51.928727 | I30: =SUM(I28:I29) -> 0 | J30: 0 | K30: 0 | L30: 0
B31: Total -NSE Futures (2A+2B) | C31: =SUM(C26,C30) -> 0.03251192865 | D31: =SUM(D26,D30) -> 6362.299275 | E31: =SUM(E26,E30) -> 0.0011975 | F31: =SUM(F26,F30) -> 578.88201 | G31: 0.003055880082 | H31: 721.011951 | I31: 2.79e-05 | J31: 14.122891 | K31: 3.71e-05 | L31: 18.669679 | M31: =(L31-J31)/J31*100 -> 32.1944565 | N31: =(K31-I31)/I31*100 -> 32.97491039
B32: NSE Options
A33: C | B33: Bullion
B34: Gold Mini | C34: Na | D34: Na | E34: 0.0326007 | F34: 16593.86994 | G34: 0 | H34: 0 | I34: 0.0036201 | J34: 1856.59957 | K34: 0.0050917 | L34: 2633.312541
B35: Total for 2C | C35: =C34 -> Na | D35: =D34 -> Na | E35: 0.0326007 | F35: 16593.86994 | G35: 0 | H35: 0 | I35: 0.0036201 | J35: 1856.59957 | K35: 0.0050917 | L35: 2633.312541
B36: Total - NSE Options( 2C) | C36: Na | D36: Na | E36: =SUM(E34) -> 0.0326007 | F36: =SUM(F35) -> 16593.86994 | G36: =SUM(G35) -> 0 | H36: 0 | I36: 0.0036201 | J36: 1856.59957 | K36: 0.0050917 | L36: 2633.312541 | M36: =(L36-J36)/J36*100 -> 41.83524458 | N36: =(K36-I36)/I36*100 -> 40.65081075
A39: 3 | B39: BSE Futures
A40: A | B40: Bullion
B41: Gold | C41: 0.020115 | D41: 6765.68687 | E41: 3e-05 | F41: 12.07 | G41: 0.000258 | H41: 98.0183 | I41: 0 | J41: 0 | K41: 0 | L41: 0
B42: Silver | C42: 0.47571 | D42: 1887.031472 | E42: 0.0006 | F42: 2.91 | G42: 0.00093 | H42: 4.128762 | I42: 0 | J42: 0 | K42: 0 | L42: 0
B43: Silver KG | C43: 1e-05 | D43: 0.0375 | E43: 0 | F43: 0 | G43: 0 | H43: 0 | I43: 0 | J43: 0 | K43: 0 | L43: 0
B44: Silver M | C44: 1e-05 | D44: 0.03749 | E44: 0 | F44: 0 | G44: 0 | H44: 0 | I44: 0 | J44: 0 | K44: 0 | L44: 0
B45: Gold M | C45: 0.0005694 | D45: 183.77492 | E45: 0.0430157 | F45: 29.356521 | G45: 0 | H45: 0 | I45: 2.2e-05 | J45: 11.15118 | K45: 2.1e-05 | L45: 10.52684
B46: Total for 3A | C46: =SUM(C41:C45) -> 0.4964144 | D46: =SUM(D41:D45) -> 8836.568252 | E46: =SUM(E41:E45) -> 0.0436457 | F46: 44.336521 | G46: =SUM(G41:G45) -> 0.001188 | H46: 102.147062 | I46: 2.2e-05 | J46: 11.15118 | K46: 2.1e-05 | L46: 10.52684 | M46: =(L46-J46)/J46*100 -> -5.598869357 | N46: =(K46-I46)/I46*100 -> -4.545454545
A47: B | B47: Metals other than Bullion
B48: Copper | C48: 0.874 | D48: 39.26844 | E48: 0 | F48: 0 | G48: 0 | H48: 0 | I48: 0 | J48: 0 | K48: 0 | L48: 0
B49: Total for 3B | C49: =SUM(C48) -> 0.874 | D49: =SUM(D48) -> 39.26844 | E49: =SUM(E48) -> 0 | F49: 0 | G49: 0 | H49: 0 | I49: 0 | J49: 0 | K49: 0 | L49: 0 | M49: =(L49-J49)/J49*100 ->  | N49: =(K49-I49)/I49*100 -> 
A50: C | B50: Agricultural Cmmodities
B51: Guar Gum | C51: 0.38 | D51: 3.35386 | E51: 0 | F51: 0 | G51: 0 | H51: 0 | I51: 0 | J51: 0 | K51: 0 | L51: 0
B52: Guar Seed | C52: 5273.01 | D52: 22019.75927 | E52: 467.97 | F52: 1652.09934 | G52: 635.45 | H52: 2687.488255 | I52: 0 | J52: 0 | K52: 0 | L52: 0
B53: Cotton | C53: 431.8935 | D53: 5500.83155 | E53: 0 | F53: 0 | G53: 0 | H53: 0 | I53: 0 | J53: 0 | K53: 0 | L53: 0
B54: Turmeric | C54: 295.4 | D54: 1858.58792 | E54: 190.43 | F54: 1078.12772 | G54: 1.78 | H54: 10.63833 | I54: 28.64 | J54: 168.09714 | K54: 17.38 | L54: 99.50894
B55: Cotton BSE | C55: 423.3034 | D55: 4731.14648 | E55: 0 | F55: 0 | G55: 43.8124 | H55: 486.36452 | I55: 0 | J55: 0 | K55: 0 | L55: 0
B56: Soybean | C56: 150.77 | D56: 622.89709 | E56: 0 | F56: 0 | G56: 40.15 | H56: 161.29748 | I56: 0 | J56: 0 | K56: 0 | L56: 0
B57: Castorseed | C57: 84.3 | D57: 359.40201 | E57: 0 | F57: 0 | G57: 20.15 | H57: 86.38847 | I57: 0 | J57: 0 | K57: 0 | L57: 0
B58: Chana | C58: 83.13 | D58: 369.69528 | E58: 0 | F58: 0 | G58: 19.61 | H58: 87.58728 | I58: 0 | J58: 0 | K58: 0 | L58: 0
B59: Cotton29 | C59: 83.3255 | D59: 850.271075 | E59: 150.47975 | F59: 1423.749175 | G59: 0 | H59: 0 | I59: 0 | J59: 0 | K59: 0 | L59: 0
B60: BSE Almond | C60: Na | D60: Na | E60: 10.349 | F60: 321.70452 | G60: 0 | H60: 0 | I60: 2.119 | J60: 68.48467 | K60: 2.293 | L60: 66.35064
B61: Total for 3C | C61: =SUM(C51:C60) -> 6825.5124 | D61: =SUM(D51:D60) -> 36315.94453 | E61: =SUM(E51:E60) -> 819.22875 | F61: =SUM(F41:F45,F48,F51:F60) -> 4520.017276 | G61: =SUM(G51:G60) -> 760.9524 | H61: 3519.764335 | I61: 30.759 | J61: 236.58181 | K61: 19.673 | L61: 165.85958 | M61: =(L61-J61)/J61*100 -> -29.89335063 | N61: =(K61-I61)/I61*100 -> -36.04148379
A62: D | B62: Energy
B63: Brent Crude | C63: 422.851296 | D63: 1246.94774 | E63: 0.354706685 | F63: 0.57201 | G63: 0 | H63: 0 | I63: 0 | J63: 0 | K63: 0 | L63: 0
A64: C. | B64: NSE
A65: 1 | B65: Gold | G65: Na | H65: Na | I65: Na | J65: Na
A66: 2 | B66: Silver | G66: Na | H66: Na | I66: Na | J66: Na
B67: Total (NSE) | F67: 696.19 | G67: Na | H67: Na | I67: Na | J67: Na | L67: 696.19
B68: Total for 3D | C68: =SUM(C63) -> 422.851296 | D68: =SUM(D63) -> 1246.94774 | E68: =SUM(E63) -> 0.354706685 | F68: 0.57201 | G68: 0 | H68: 0 | I68: 0 | J68: 0 | K68: 0 | L68: 0
B69: Total- BSE Futures (3A+3B+3C+3D) | C69: =SUM(C46,C49,C61,C68) -> 7249.73411 | D69: =SUM(D46,D49,D61,D68) -> 46438.72897 | E69: =SUM(E41:E45,E48,E51:E60,E63) -> 819.6271024 | F69: =SUM(F41:F45,F48,F51:F60,F63) -> 4520.589286 | G69: =SUM(G46,G49,G61,G68) -> 760.953588 | H69: 3621.911397 | I69: 30.759022 | J69: 247.73299 | K69: 19.673021 | L69: =SUM(L46,L49,L61,L63) -> 176.38642 | M69: =(L69-J69)/J69*100 -> -28.79978561 | N69: =(K69-I69)/I69*100 -> -36.04146127
B70: BSE Options
A71: E | B71: Bullion
B72: Gold | C72: Na | D72: Na | E72: 0.087117 | F72: 44644.05102 | G72: 0 | H72: 0 | I72: 0.023033 | J72: 11826.02968 | K72: 0.014066 | L72: 7137.24562
B73: Silver | C73: Na | D73: Na | E73: 0.30681 | F73: 1947.750135 | G73: 0 | H73: 0 | I73: 0.09564 | J73: 592.2499335 | K73: 0.06768 | L73: 423.9934695
B74: Silver KG | C74: Na | D74: Na | E74: 0.084298 | F74: 493.3443942 | G74: 0 | H74: 0 | I74: 0.013368 | J74: 83.55139565 | K74: 0.011562 | L74: 73.7709133
B75: Gold M | C75: Na | D75: Na | E75: 0.5861708 | F75: 292068.4883 | G75: 0 | H75: 0 | I75: 0.0862316 | J75: 43635.56575 | K75: 0.0901069 | L75: 46319.19704
B76: Total for 3E | C76: Na | D76: Na | E76: =SUM(E72:E75) -> 1.0643958 | F76: =SUM(F72:F75) -> 339153.6339 | G76: 0 | H76: 0 | I76: 0.2182726 | J76: 56137.39676 | K76: 0.1834149 | L76: 53954.20704
B77: Total - BSE Options (3E) | C77: Na | D77: Na | E77: =E76 -> 1.0643958 | F77: =F76 -> 339153.6339 | G77: 0 | H77: 0 | I77: 0.2182726 | J77: 56137.39676 | K77: 0.1834149 | L77: 53954.20704 | M77: 0 | N77: 0 | O77: 0 | P77: 0 | Q77: 0 | R77: 0 | S77: 0 | T77: 0 | U77: 0
A78: ='64'!A14 -> $ indicates as on Nov. 30, 2020
A79: Note: | B79: 1 Volume for Diamond 1 CT, 0.5CT & 0.3CT are in cents and hence not included in volume ("000" tonnes)
B80: 2 Conversion factors: Brent Crude Oil (1 Tonne = 7.33 Barrels)
A81: Source : ICEX, BSE and NSE

Sheet 74
A1: Table 74: Macro Economic Indicators
A2: I. GDP at Current prices for 2019-20 (₹ crore)# | F2: 20339849
A3: II. Gross Saving as a per cent of Gross national Disposable Income at current market prices in 2018-19! | F3: 29.7
A4: III. Gross Fixed Capital Formation as a per cent of GDP at current market prices in 2019-20# | F4: 29.8
A5: IV. Monetary and Banking Indicators | B5: 2020-07-01 | C5: 2020-08-01 | D5: 2020-09-01 | E5: 2020-10-01 | F5: 2020-11-01
A6: Cash Reserve Ratio (per cent) | B6: 3 | C6: 3 | D6: 3 | E6: 3 | F6: 3
A7: Repo Rate (per cent) | B7: 4 | C7: 4 | D7: 4 | E7: 4 | F7: 4
A8: Money Supply (M3) (₹ billion) | B8: 174906.73 | C8: 176478.74 | D8: 177410.65 | E8: 178048.85 | F8: 179382
A9: Aggregate Deposit (₹ billion) | B9: 140204.87 | C9: 141767.65 | D9: 142636.74 | E9: 142926.24 | F9: 143707
A10: Bank Credit (₹ billion) | B10: 102194.62 | C10: 102117.3 | D10: 102718.57 | E10: 103388.53 | F10: 104345
A11: V. Interest Rate
A12: Call Money Rate (Weighted Average) | B12: 3.46 | C12: 3.43 | D12: 3.41 | E12: 3.41 | F12: 3.1
A13: 91-Day-Treasury Bill (Primary Yield) | B13: 3.3 | C13: 3.24 | D13: 3.36 | E13: 3.36 | F13: 2.93
A14: Base rate (per cent) | B14: 7.40/9.00 | C14: 7.40/9.00 | D14: 7.40/9.00 | E14: 7.40/8.80 | F14: 7.40/8.80
A15: Term Deposit Rate > 1 year (Maximum) | B15: 5.10/5.50 | C15: 5.00/5.50 | D15: 4.90/5.50 | E15: 4.90/5.50 | F15: 4.90/5.50
A16: VI. Capital Market Indicators (₹ crore)
A17: Equity Cash Turnover (BSE+NSE) | B17: 1428613.725 | C17: 1375636.495 | D17: 1293354.004 | E17: 1156750.075 | F17: 1407947.89
A18: Market Cap-BSE | B18: 14739115.83 | C18: 15376302.71 | D18: 15524267.37 | E18: 15792249.91 | F18: 17414859.59
A19: Market Cap-NSE | B19: 14629658.61 | C19: 15234206.7 | D19: 15304722.35 | E19: 15587902.94 | F19: 17271314
A20: Net FPI Investment in Equity | B20: 7563 | C20: 47080 | D20: -7783 | E20: 19541 | F20: 60357.67
A21: VII. Exchange Rate and Reserves
A22: Forex Reserves (USD million) | B22: 534568 | C22: 542013 | D22: 545638 | E22: 568494 | F22: 574821
A23: Re/ Dollar | B23: 74.77 | C23: 73.35 | D23: 73.73 | E23: 73.97 | F23: 73.8
A24: Re/Euro | B24: 88.87 | C24: 87.07 | D24: 86.04 | E24: 86.97 | F24: 88.02
A25: Forward Premia of USD 6-month | B25: 3.8 | C25: 4.01 | D25: 3.91 | E25: 3.89 | F25: 4.23
A26: VIII. Public Borrowing and Inflation Rate (Y-o-Y)
A27: Govt. Market Borrowing-Gross (₹ billion) | B27: 4,820^ | C27: 6,460^ | D27: 7660^ | E27: 8760^ | F27: 9270
A28: Wholesale Price Index (2011-12=100) Rate (in per cent) | B28: -0.25 | C28: 0.41 | D28: 1.32 | E28: 1.48 | F28: NA
A29: Consumer Price Index (2012 =100) Rate (in per cent) | B29: 6.73 | C29: 6.69 | D29: 7.27 | E29: 7.61 | F29: NA
A30: IX. Index of Industrial Production (Base year 2011-12 = 100)
A31: General | B31: 117.6 | C31: 116.1 | D31: 123.2 | E31: NA | F31: NA
A32: Mining | B32: 87.4 | C32: 83 | D32: 87.6 | E32: NA | F32: NA
A33: Manufacturing | B33: 118.2 | C33: 117.4 | D33: 125.3 | E33: NA | F33: NA
A34: Electricity | B34: 166.3 | C34: 162.7 | D34: 166.4 | E34: NA | F34: NA
A35: X. External Sector Indicators (USD million)
A36: Exports | B36: 23642.85 | C36: 22700 | D36: 27580 | E36: 24890 | F36: 26509
A37: Imports | B37: 28469.11 | C37: 29470 | D37: 30310 | E37: 33610 | F37: 24858
A38: Trade Balance | B38: -4826.26 | C38: -6770 | D38: -2730 | E38: -8720 | F38: 1652
A39: Notes:
A40: # Provisional Extimates as per MOSPI press release dated 31.05.2020
A41: ^ cumulative figure value of the respective month for 2020-21
A42: Data for CPI, WPI, IIP and External sector have been compiled based on available information.
A43: Source : RBI, FBIL, MOSPI, Ministry of Commerce & Industry, Office of the Economic Adviser.
